Organisation Code,Organisation Label,Effective Date,Organisational Unit,Service Division Label,Category Internal Name,Purpose,Detailed Expenditure Code,Payment Date,Transaction Number,Irrecoverable VAT Amount,Amount,Capital Or Revenue,Benificiary Name,Procurement Card
Http://opendatacommunities.org/id/metropolitan-district-council/leeds,Leeds City Council,30/09/2019,City Development,Economic Development,Capital,Other Costs,7,05/09/2019,1909-00001,0.00,14800.00,C,A & J Bunton,No
Http://opendatacommunities.org/id/metropolitan-district-council/leeds,Leeds City Council,30/09/2019,Adults and Health,Services For Older People Under 65 P/Dis,Third Party Payments,Sheltered Accommodation,569,18/09/2019,1909-00002,0.00,5400.00,R,A & V Transitional Homes,No
Http://opendatacommunities.org/id/metropolitan-district-council/leeds,Leeds City Council,30/09/2019,Resources and Housing,HRA Housing Leeds,Capital,Other Costs,7,18/09/2019,1909-00003,0.00,80.00,C,REDACTED PERSONAL DATA,No
Http://opendatacommunities.org/id/metropolitan-district-council/leeds,Leeds City Council,30/09/2019,Resources and Housing,HRA Housing Leeds,Capital,Other Costs,7,05/09/2019,1909-00004,0.00,100.00,C,REDACTED PERSONAL DATA,No
Http://opendatacommunities.org/id/metropolitan-district-council/leeds,Leeds City Council,30/09/2019,Resources and Housing,HRA Housing Leeds,Capital,Other Costs,7,05/09/2019,1909-00005,0.00,80.00,C,REDACTED PERSONAL DATA,No
Http://opendatacommunities.org/id/metropolitan-district-council/leeds,Leeds City Council,30/09/2019,Resources and Housing,Leeds Building Services,Supplies and Services,Operational Materials,205,10/09/2019,1909-00006,0.00,37.54,R,A Andrews & Sons (Marbles & Tiles),No
Http://opendatacommunities.org/id/metropolitan-district-council/leeds,Leeds City Council,30/09/2019,Resources and Housing,Leeds Building Services,Supplies and Services,Operational Materials,205,10/09/2019,1909-00007,0.00,33.86,R,A Andrews & Sons (Marbles & Tiles),No
Http://opendatacommunities.org/id/metropolitan-district-council/leeds,Leeds City Council,30/09/2019,Children and Families,Social Care,Third Party Payments,Services Rendered By Other Organisations,511,06/09/2019,1909-00008,0.00,225.75,R,REDACTED PERSONAL DATA,No
Http://opendatacommunities.org/id/metropolitan-district-council/leeds,Leeds City Council,30/09/2019,City Development,Libraries  Arts & Heritage,Supplies and Services,Other Hired And Contracted Services,265,09/09/2019,1909-00009,0.00,800.00,R,REDACTED PERSONAL DATA,No
Http://opendatacommunities.org/id/metropolitan-district-council/leeds,Leeds City Council,30/09/2019,Resources and Housing,HRA Housing Leeds,Capital,Other Costs,7,23/09/2019,1909-00010,0.00,100.00,C,REDACTED PERSONAL DATA,No
Http://opendatacommunities.org/id/metropolitan-district-council/leeds,Leeds City Council,30/09/2019,Children and Families,Social Care,Third Party Payments,Services Rendered By Other Organisations,511,04/09/2019,1909-00011,0.00,273.00,R,REDACTED PERSONAL DATA,No
Http://opendatacommunities.org/id/metropolitan-district-council/leeds,Leeds City Council,30/09/2019,Children and Families,Social Care,Third Party Payments,Services Rendered By Other Organisations,511,06/09/2019,1909-00012,0.00,451.50,R,REDACTED PERSONAL DATA,No
Http://opendatacommunities.org/id/metropolitan-district-council/leeds,Leeds City Council,30/09/2019,Resources and Housing,HRA Housing Leeds,Capital,Other Costs,7,19/09/2019,1909-00013,0.00,35.00,C,REDACTED PERSONAL DATA,No
Http://opendatacommunities.org/id/metropolitan-district-council/leeds,Leeds City Council,30/09/2019,Resources and Housing,HRA Housing Leeds,Capital,Construction,3,02/09/2019,1909-00014,0.00,85820.82,C,A Connolly Limited,No
Http://opendatacommunities.org/id/metropolitan-district-council/leeds,Leeds City Council,30/09/2019,Resources and Housing,Leeds Building Services,Supplies and Services,Other Hired And Contracted Services,265,04/09/2019,1909-00015,0.00,3197.00,R,A Coole Electrical Ltd,No
Http://opendatacommunities.org/id/metropolitan-district-council/leeds,Leeds City Council,30/09/2019,Resources and Housing,Leeds Building Services,Supplies and Services,Other Hired And Contracted Services,265,04/09/2019,1909-00016,0.00,85.00,R,A Coole Electrical Ltd,No
Http://opendatacommunities.org/id/metropolitan-district-council/leeds,Leeds City Council,30/09/2019,Resources and Housing,Leeds Building Services,Supplies and Services,Other Hired And Contracted Services,265,04/09/2019,1909-00017,0.00,85.00,R,A Coole Electrical Ltd,No
Http://opendatacommunities.org/id/metropolitan-district-council/leeds,Leeds City Council,30/09/2019,Resources and Housing,Leeds Building Services,Supplies and Services,Other Hired And Contracted Services,265,13/09/2019,1909-00018,0.00,85.00,R,A Coole Electrical Ltd,No
Http://opendatacommunities.org/id/metropolitan-district-council/leeds,Leeds City Council,30/09/2019,Resources and Housing,Leeds Building Services,Supplies and Services,Other Hired And Contracted Services,265,20/09/2019,1909-00019,0.00,85.00,R,A Coole Electrical Ltd,No
Http://opendatacommunities.org/id/metropolitan-district-council/leeds,Leeds City Council,30/09/2019,Resources and Housing,Leeds Building Services,Supplies and Services,Other Hired And Contracted Services,265,20/09/2019,1909-00020,0.00,85.00,R,A Coole Electrical Ltd,No
Http://opendatacommunities.org/id/metropolitan-district-council/leeds,Leeds City Council,30/09/2019,Resources and Housing,Leeds Building Services,Supplies and Services,Other Hired And Contracted Services,265,20/09/2019,1909-00021,0.00,85.00,R,A Coole Electrical Ltd,No
Http://opendatacommunities.org/id/metropolitan-district-council/leeds,Leeds City Council,30/09/2019,Resources and Housing,Leeds Building Services,Supplies and Services,Other Hired And Contracted Services,265,20/09/2019,1909-00022,0.00,85.00,R,A Coole Electrical Ltd,No
Http://opendatacommunities.org/id/metropolitan-district-council/leeds,Leeds City Council,30/09/2019,Resources and Housing,Leeds Building Services,Supplies and Services,Other Hired And Contracted Services,265,20/09/2019,1909-00023,0.00,85.00,R,A Coole Electrical Ltd,No
Http://opendatacommunities.org/id/metropolitan-district-council/leeds,Leeds City Council,30/09/2019,Resources and Housing,Leeds Building Services,Supplies and Services,Other Hired And Contracted Services,265,20/09/2019,1909-00024,0.00,85.00,R,A Coole Electrical Ltd,No
Http://opendatacommunities.org/id/metropolitan-district-council/leeds,Leeds City Council,30/09/2019,Resources and Housing,Leeds Building Services,Supplies and Services,Other Hired And Contracted Services,265,20/09/2019,1909-00025,0.00,85.00,R,A Coole Electrical Ltd,No
Http://opendatacommunities.org/id/metropolitan-district-council/leeds,Leeds City Council,30/09/2019,Resources and Housing,Leeds Building Services,Supplies and Services,Other Hired And Contracted Services,265,20/09/2019,1909-00026,0.00,85.00,R,A Coole Electrical Ltd,No
Http://opendatacommunities.org/id/metropolitan-district-council/leeds,Leeds City Council,30/09/2019,Resources and Housing,Leeds Building Services,Supplies and Services,Other Hired And Contracted Services,265,20/09/2019,1909-00027,0.00,85.00,R,A Coole Electrical Ltd,No
Http://opendatacommunities.org/id/metropolitan-district-council/leeds,Leeds City Council,30/09/2019,Resources and Housing,Leeds Building Services,Supplies and Services,Other Hired And Contracted Services,265,20/09/2019,1909-00028,0.00,85.00,R,A Coole Electrical Ltd,No
Http://opendatacommunities.org/id/metropolitan-district-council/leeds,Leeds City Council,30/09/2019,Resources and Housing,Leeds Building Services,Supplies and Services,Other Hired And Contracted Services,265,20/09/2019,1909-00029,0.00,85.00,R,A Coole Electrical Ltd,No
Http://opendatacommunities.org/id/metropolitan-district-council/leeds,Leeds City Council,30/09/2019,Resources and Housing,Leeds Building Services,Supplies and Services,Other Hired And Contracted Services,265,20/09/2019,1909-00030,0.00,85.00,R,A Coole Electrical Ltd,No
Http://opendatacommunities.org/id/metropolitan-district-council/leeds,Leeds City Council,30/09/2019,Resources and Housing,Leeds Building Services,Supplies and Services,Other Hired And Contracted Services,265,20/09/2019,1909-00031,0.00,85.00,R,A Coole Electrical Ltd,No
Http://opendatacommunities.org/id/metropolitan-district-council/leeds,Leeds City Council,30/09/2019,Resources and Housing,Leeds Building Services,Supplies and Services,Other Hired And Contracted Services,265,27/09/2019,1909-00032,0.00,160.00,R,A Coole Electrical Ltd,No
Http://opendatacommunities.org/id/metropolitan-district-council/leeds,Leeds City Council,30/09/2019,Resources and Housing,Leeds Building Services,Supplies and Services,Other Hired And Contracted Services,265,27/09/2019,1909-00033,0.00,85.00,R,A Coole Electrical Ltd,No
Http://opendatacommunities.org/id/metropolitan-district-council/leeds,Leeds City Council,30/09/2019,Children and Families,Social Care,Third Party Payments,Services Rendered By Voluntary Sector,505,04/09/2019,1909-00034,0.00,2675.40,R,REDACTED PERSONAL DATA,No
Http://opendatacommunities.org/id/metropolitan-district-council/leeds,Leeds City Council,30/09/2019,Children and Families,Social Care,Third Party Payments,Services Rendered By Voluntary Sector,505,06/09/2019,1909-00035,0.00,4515.00,R,REDACTED PERSONAL DATA,No
Http://opendatacommunities.org/id/metropolitan-district-council/leeds,Leeds City Council,30/09/2019,City Development,Highways,Capital,Construction,3,09/09/2019,1909-00036,0.00,16664.92,C,A E Yates Ltd,No
Http://opendatacommunities.org/id/metropolitan-district-council/leeds,Leeds City Council,30/09/2019,Children and Families,Social Care,Third Party Payments,Services Rendered By Other Organisations,511,04/09/2019,1909-00037,0.00,273.00,R,REDACTED PERSONAL DATA,No
Http://opendatacommunities.org/id/metropolitan-district-council/leeds,Leeds City Council,30/09/2019,Children and Families,Social Care,Third Party Payments,Services Rendered By Other Organisations,511,06/09/2019,1909-00038,0.00,903.00,R,REDACTED PERSONAL DATA,No
Http://opendatacommunities.org/id/metropolitan-district-council/leeds,Leeds City Council,30/09/2019,Resources and Housing,HRA Housing Leeds,Capital,Other Costs,7,05/09/2019,1909-00039,0.00,80.00,C,REDACTED PERSONAL DATA,No
Http://opendatacommunities.org/id/metropolitan-district-council/leeds,Leeds City Council,30/09/2019,Children and Families,Social Care,Third Party Payments,Services Rendered By Other Organisations,511,06/09/2019,1909-00040,0.00,180.60,R,REDACTED PERSONAL DATA,No
Http://opendatacommunities.org/id/metropolitan-district-council/leeds,Leeds City Council,30/09/2019,Children and Families,Social Care,Third Party Payments,Services Rendered By Other Organisations,511,06/09/2019,1909-00041,0.00,216.61,R,REDACTED PERSONAL DATA,No
Http://opendatacommunities.org/id/metropolitan-district-council/leeds,Leeds City Council,30/09/2019,Resources and Housing,HRA Housing Leeds,Capital,Other Costs,7,17/09/2019,1909-00042,0.00,299.22,C,REDACTED PERSONAL DATA,No
Http://opendatacommunities.org/id/metropolitan-district-council/leeds,Leeds City Council,30/09/2019,Resources and Housing,Leeds Building Services,Supplies and Services,Operational Materials,205,09/09/2019,1909-00043,0.00,27.00,R,A J H  Pump Supply & Repair Ltd,No
Http://opendatacommunities.org/id/metropolitan-district-council/leeds,Leeds City Council,30/09/2019,Resources and Housing,Leeds Building Services,Supplies and Services,Operational Materials,205,09/09/2019,1909-00044,0.00,117.50,R,A J H  Pump Supply & Repair Ltd,No
Http://opendatacommunities.org/id/metropolitan-district-council/leeds,Leeds City Council,30/09/2019,Resources and Housing,Leeds Building Services,Supplies and Services,Operational Materials,205,09/09/2019,1909-00045,0.00,9.00,R,A J H  Pump Supply & Repair Ltd,No
Http://opendatacommunities.org/id/metropolitan-district-council/leeds,Leeds City Council,30/09/2019,Resources and Housing,Leeds Building Services,Supplies and Services,Operational Materials,205,09/09/2019,1909-00046,0.00,19.90,R,A J H  Pump Supply & Repair Ltd,No
Http://opendatacommunities.org/id/metropolitan-district-council/leeds,Leeds City Council,30/09/2019,Resources and Housing,Leeds Building Services,Supplies and Services,Operational Materials,205,09/09/2019,1909-00047,0.00,417.15,R,A J H  Pump Supply & Repair Ltd,No
Http://opendatacommunities.org/id/metropolitan-district-council/leeds,Leeds City Council,30/09/2019,Resources and Housing,Leeds Building Services,Supplies and Services,Operational Materials,205,09/09/2019,1909-00048,0.00,37.50,R,A J H  Pump Supply & Repair Ltd,No
Http://opendatacommunities.org/id/metropolitan-district-council/leeds,Leeds City Council,30/09/2019,Resources and Housing,Leeds Building Services,Supplies and Services,Operational Materials,205,09/09/2019,1909-00049,0.00,13.49,R,A J H  Pump Supply & Repair Ltd,No
Http://opendatacommunities.org/id/metropolitan-district-council/leeds,Leeds City Council,30/09/2019,Resources and Housing,Leeds Building Services,Supplies and Services,Operational Materials,205,09/09/2019,1909-00050,0.00,141.00,R,A J H  Pump Supply & Repair Ltd,No
Http://opendatacommunities.org/id/metropolitan-district-council/leeds,Leeds City Council,30/09/2019,Resources and Housing,Leeds Building Services,Supplies and Services,Operational Materials,205,10/09/2019,1909-00051,0.00,306.49,R,A J H  Pump Supply & Repair Ltd,No
Http://opendatacommunities.org/id/metropolitan-district-council/leeds,Leeds City Council,30/09/2019,Resources and Housing,Leeds Building Services,Supplies and Services,Operational Materials,205,11/09/2019,1909-00052,0.00,132.80,R,A J H  Pump Supply & Repair Ltd,No
Http://opendatacommunities.org/id/metropolitan-district-council/leeds,Leeds City Council,30/09/2019,Resources and Housing,Leeds Building Services,Supplies and Services,Operational Materials,205,11/09/2019,1909-00053,0.00,47.55,R,A J H  Pump Supply & Repair Ltd,No
Http://opendatacommunities.org/id/metropolitan-district-council/leeds,Leeds City Council,30/09/2019,Resources and Housing,Leeds Building Services,Supplies and Services,Operational Materials,205,11/09/2019,1909-00054,0.00,249.60,R,A J H  Pump Supply & Repair Ltd,No
Http://opendatacommunities.org/id/metropolitan-district-council/leeds,Leeds City Council,30/09/2019,Resources and Housing,Leeds Building Services,Supplies and Services,Operational Materials,205,11/09/2019,1909-00055,0.00,14.85,R,A J H  Pump Supply & Repair Ltd,No
Http://opendatacommunities.org/id/metropolitan-district-council/leeds,Leeds City Council,30/09/2019,Resources and Housing,Leeds Building Services,Supplies and Services,Operational Materials,205,11/09/2019,1909-00056,0.00,158.73,R,A J H  Pump Supply & Repair Ltd,No
Http://opendatacommunities.org/id/metropolitan-district-council/leeds,Leeds City Council,30/09/2019,Resources and Housing,Leeds Building Services,Supplies and Services,Operational Materials,205,11/09/2019,1909-00057,0.00,73.61,R,A J H  Pump Supply & Repair Ltd,No
Http://opendatacommunities.org/id/metropolitan-district-council/leeds,Leeds City Council,30/09/2019,Resources and Housing,Leeds Building Services,Supplies and Services,Operational Materials,205,12/09/2019,1909-00058,0.00,48.85,R,A J H  Pump Supply & Repair Ltd,No
Http://opendatacommunities.org/id/metropolitan-district-council/leeds,Leeds City Council,30/09/2019,Resources and Housing,Leeds Building Services,Supplies and Services,Operational Materials,205,12/09/2019,1909-00059,0.00,41.26,R,A J H  Pump Supply & Repair Ltd,No
Http://opendatacommunities.org/id/metropolitan-district-council/leeds,Leeds City Council,30/09/2019,Resources and Housing,Leeds Building Services,Supplies and Services,Operational Materials,205,12/09/2019,1909-00060,0.00,33.60,R,A J H  Pump Supply & Repair Ltd,No
Http://opendatacommunities.org/id/metropolitan-district-council/leeds,Leeds City Council,30/09/2019,Resources and Housing,Leeds Building Services,Supplies and Services,Operational Materials,205,12/09/2019,1909-00061,0.00,50.40,R,A J H  Pump Supply & Repair Ltd,No
Http://opendatacommunities.org/id/metropolitan-district-council/leeds,Leeds City Council,30/09/2019,Resources and Housing,Leeds Building Services,Supplies and Services,Operational Materials,205,12/09/2019,1909-00062,0.00,446.00,R,A J H  Pump Supply & Repair Ltd,No
Http://opendatacommunities.org/id/metropolitan-district-council/leeds,Leeds City Council,30/09/2019,Resources and Housing,Leeds Building Services,Supplies and Services,Operational Materials,205,12/09/2019,1909-00063,0.00,57.21,R,A J H  Pump Supply & Repair Ltd,No
Http://opendatacommunities.org/id/metropolitan-district-council/leeds,Leeds City Council,30/09/2019,Resources and Housing,Leeds Building Services,Supplies and Services,Operational Materials,205,12/09/2019,1909-00064,0.00,515.75,R,A J H  Pump Supply & Repair Ltd,No
Http://opendatacommunities.org/id/metropolitan-district-council/leeds,Leeds City Council,30/09/2019,Resources and Housing,Leeds Building Services,Supplies and Services,Operational Materials,205,12/09/2019,1909-00065,0.00,881.28,R,A J H  Pump Supply & Repair Ltd,No
Http://opendatacommunities.org/id/metropolitan-district-council/leeds,Leeds City Council,30/09/2019,Resources and Housing,Leeds Building Services,Supplies and Services,Operational Materials,205,12/09/2019,1909-00066,0.00,3943.00,R,A J H  Pump Supply & Repair Ltd,No
Http://opendatacommunities.org/id/metropolitan-district-council/leeds,Leeds City Council,30/09/2019,Resources and Housing,Leeds Building Services,Supplies and Services,Operational Materials,205,12/09/2019,1909-00067,0.00,515.00,R,A J H  Pump Supply & Repair Ltd,No
Http://opendatacommunities.org/id/metropolitan-district-council/leeds,Leeds City Council,30/09/2019,Resources and Housing,Leeds Building Services,Supplies and Services,Operational Materials,205,12/09/2019,1909-00068,0.00,176.90,R,A J H  Pump Supply & Repair Ltd,No
Http://opendatacommunities.org/id/metropolitan-district-council/leeds,Leeds City Council,30/09/2019,Resources and Housing,Leeds Building Services,Supplies and Services,Operational Materials,205,12/09/2019,1909-00069,0.00,17.98,R,A J H  Pump Supply & Repair Ltd,No
Http://opendatacommunities.org/id/metropolitan-district-council/leeds,Leeds City Council,30/09/2019,Resources and Housing,Leeds Building Services,Supplies and Services,Operational Materials,205,12/09/2019,1909-00070,0.00,25.84,R,A J H  Pump Supply & Repair Ltd,No
Http://opendatacommunities.org/id/metropolitan-district-council/leeds,Leeds City Council,30/09/2019,Resources and Housing,Leeds Building Services,Supplies and Services,Operational Materials,205,12/09/2019,1909-00071,0.00,59.82,R,A J H  Pump Supply & Repair Ltd,No
Http://opendatacommunities.org/id/metropolitan-district-council/leeds,Leeds City Council,30/09/2019,Resources and Housing,Leeds Building Services,Supplies and Services,Operational Materials,205,13/09/2019,1909-00072,0.00,176.90,R,A J H  Pump Supply & Repair Ltd,No
Http://opendatacommunities.org/id/metropolitan-district-council/leeds,Leeds City Council,30/09/2019,Resources and Housing,Leeds Building Services,Supplies and Services,Operational Materials,205,17/09/2019,1909-00073,0.00,680.00,R,A J H  Pump Supply & Repair Ltd,No
Http://opendatacommunities.org/id/metropolitan-district-council/leeds,Leeds City Council,30/09/2019,Resources and Housing,Leeds Building Services,Supplies and Services,Operational Materials,205,17/09/2019,1909-00074,0.00,98.75,R,A J H  Pump Supply & Repair Ltd,No
Http://opendatacommunities.org/id/metropolitan-district-council/leeds,Leeds City Council,30/09/2019,Resources and Housing,Leeds Building Services,Supplies and Services,Operational Materials,205,17/09/2019,1909-00075,0.00,13.00,R,A J H  Pump Supply & Repair Ltd,No
Http://opendatacommunities.org/id/metropolitan-district-council/leeds,Leeds City Council,30/09/2019,Resources and Housing,Leeds Building Services,Supplies and Services,Operational Materials,205,17/09/2019,1909-00076,0.00,19.50,R,A J H  Pump Supply & Repair Ltd,No
Http://opendatacommunities.org/id/metropolitan-district-council/leeds,Leeds City Council,30/09/2019,Resources and Housing,Leeds Building Services,Supplies and Services,Operational Materials,205,26/09/2019,1909-00077,0.00,75.00,R,A J H  Pump Supply & Repair Ltd,No
Http://opendatacommunities.org/id/metropolitan-district-council/leeds,Leeds City Council,30/09/2019,Resources and Housing,Leeds Building Services,Supplies and Services,Operational Materials,205,26/09/2019,1909-00078,0.00,5.90,R,A J H  Pump Supply & Repair Ltd,No
Http://opendatacommunities.org/id/metropolitan-district-council/leeds,Leeds City Council,30/09/2019,Resources and Housing,Leeds Building Services,Supplies and Services,Operational Materials,205,26/09/2019,1909-00079,0.00,149.65,R,A J H  Pump Supply & Repair Ltd,No
Http://opendatacommunities.org/id/metropolitan-district-council/leeds,Leeds City Council,30/09/2019,Resources and Housing,Leeds Building Services,Supplies and Services,Operational Materials,205,26/09/2019,1909-00080,0.00,99.80,R,A J H  Pump Supply & Repair Ltd,No
Http://opendatacommunities.org/id/metropolitan-district-council/leeds,Leeds City Council,30/09/2019,Resources and Housing,Leeds Building Services,Supplies and Services,Operational Materials,205,26/09/2019,1909-00081,0.00,425.90,R,A J H  Pump Supply & Repair Ltd,No
Http://opendatacommunities.org/id/metropolitan-district-council/leeds,Leeds City Council,30/09/2019,Resources and Housing,Leeds Building Services,Supplies and Services,Operational Materials,205,26/09/2019,1909-00082,0.00,340.65,R,A J H  Pump Supply & Repair Ltd,No
Http://opendatacommunities.org/id/metropolitan-district-council/leeds,Leeds City Council,30/09/2019,Resources and Housing,Leeds Building Services,Supplies and Services,Operational Materials,205,26/09/2019,1909-00083,0.00,495.00,R,A J H  Pump Supply & Repair Ltd,No
Http://opendatacommunities.org/id/metropolitan-district-council/leeds,Leeds City Council,30/09/2019,Resources and Housing,Leeds Building Services,Supplies and Services,Operational Materials,205,26/09/2019,1909-00084,0.00,146.88,R,A J H  Pump Supply & Repair Ltd,No
Http://opendatacommunities.org/id/metropolitan-district-council/leeds,Leeds City Council,30/09/2019,Resources and Housing,Leeds Building Services,Supplies and Services,Operational Materials,205,26/09/2019,1909-00085,0.00,16.94,R,A J H  Pump Supply & Repair Ltd,No
Http://opendatacommunities.org/id/metropolitan-district-council/leeds,Leeds City Council,30/09/2019,Resources and Housing,Leeds Building Services,Supplies and Services,Operational Materials,205,26/09/2019,1909-00086,0.00,170.04,R,A J H  Pump Supply & Repair Ltd,No
Http://opendatacommunities.org/id/metropolitan-district-council/leeds,Leeds City Council,30/09/2019,Resources and Housing,Leeds Building Services,Supplies and Services,Operational Materials,205,26/09/2019,1909-00087,0.00,73.45,R,A J H  Pump Supply & Repair Ltd,No
Http://opendatacommunities.org/id/metropolitan-district-council/leeds,Leeds City Council,30/09/2019,Resources and Housing,Leeds Building Services,Supplies and Services,Operational Materials,205,26/09/2019,1909-00088,0.00,40.00,R,A J H  Pump Supply & Repair Ltd,No
Http://opendatacommunities.org/id/metropolitan-district-council/leeds,Leeds City Council,30/09/2019,Resources and Housing,Leeds Building Services,Supplies and Services,Operational Materials,205,26/09/2019,1909-00089,0.00,179.06,R,A J H  Pump Supply & Repair Ltd,No
Http://opendatacommunities.org/id/metropolitan-district-council/leeds,Leeds City Council,30/09/2019,Resources and Housing,Leeds Building Services,Supplies and Services,Operational Materials,205,26/09/2019,1909-00090,0.00,28.96,R,A J H  Pump Supply & Repair Ltd,No
Http://opendatacommunities.org/id/metropolitan-district-council/leeds,Leeds City Council,30/09/2019,Resources and Housing,Leeds Building Services,Supplies and Services,Operational Materials,205,26/09/2019,1909-00091,0.00,27.92,R,A J H  Pump Supply & Repair Ltd,No
Http://opendatacommunities.org/id/metropolitan-district-council/leeds,Leeds City Council,30/09/2019,Resources and Housing,Leeds Building Services,Supplies and Services,Operational Materials,205,26/09/2019,1909-00092,0.00,68.35,R,A J H  Pump Supply & Repair Ltd,No
Http://opendatacommunities.org/id/metropolitan-district-council/leeds,Leeds City Council,30/09/2019,Resources and Housing,Leeds Building Services,Supplies and Services,Operational Materials,205,26/09/2019,1909-00093,0.00,147.00,R,A J H  Pump Supply & Repair Ltd,No
Http://opendatacommunities.org/id/metropolitan-district-council/leeds,Leeds City Council,30/09/2019,Resources and Housing,Leeds Building Services,Supplies and Services,Operational Materials,205,26/09/2019,1909-00094,0.00,225.86,R,A J H  Pump Supply & Repair Ltd,No
Http://opendatacommunities.org/id/metropolitan-district-council/leeds,Leeds City Council,30/09/2019,Resources and Housing,Leeds Building Services,Supplies and Services,Operational Materials,205,26/09/2019,1909-00095,0.00,112.45,R,A J H  Pump Supply & Repair Ltd,No
Http://opendatacommunities.org/id/metropolitan-district-council/leeds,Leeds City Council,30/09/2019,Resources and Housing,Leeds Building Services,Supplies and Services,Operational Materials,205,27/09/2019,1909-00096,0.00,201.70,R,A J H  Pump Supply & Repair Ltd,No
Http://opendatacommunities.org/id/metropolitan-district-council/leeds,Leeds City Council,30/09/2019,Resources and Housing,Leeds Building Services,Supplies and Services,Operational Materials,205,27/09/2019,1909-00097,0.00,125.00,R,A J H  Pump Supply & Repair Ltd,No
Http://opendatacommunities.org/id/metropolitan-district-council/leeds,Leeds City Council,30/09/2019,Resources and Housing,Leeds Building Services,Supplies and Services,Operational Materials,205,27/09/2019,1909-00098,0.00,65.40,R,A J H  Pump Supply & Repair Ltd,No
Http://opendatacommunities.org/id/metropolitan-district-council/leeds,Leeds City Council,30/09/2019,Resources and Housing,Leeds Building Services,Supplies and Services,Operational Materials,205,27/09/2019,1909-00099,0.00,83.77,R,A J H  Pump Supply & Repair Ltd,No
Http://opendatacommunities.org/id/metropolitan-district-council/leeds,Leeds City Council,30/09/2019,Resources and Housing,Leeds Building Services,Supplies and Services,Operational Materials,205,27/09/2019,1909-00100,0.00,96.68,R,A J H  Pump Supply & Repair Ltd,No
Http://opendatacommunities.org/id/metropolitan-district-council/leeds,Leeds City Council,30/09/2019,Resources and Housing,Leeds Building Services,Supplies and Services,Operational Materials,205,27/09/2019,1909-00101,0.00,50.94,R,A J H  Pump Supply & Repair Ltd,No
Http://opendatacommunities.org/id/metropolitan-district-council/leeds,Leeds City Council,30/09/2019,City Development,Libraries  Arts & Heritage,Supplies and Services,Art Galleries Total Stores,3,06/09/2019,1909-00102,0.00,526.18,R,A J Promotions,No
Http://opendatacommunities.org/id/metropolitan-district-council/leeds,Leeds City Council,30/09/2019,Communities and Environment,Customer Access,Supplies and Services,Resaleable Materials,204,12/09/2019,1909-00103,0.00,19.60,R,A J Promotions,No
Http://opendatacommunities.org/id/metropolitan-district-council/leeds,Leeds City Council,30/09/2019,Communities and Environment,Customer Access,Supplies and Services,Resaleable Materials,204,26/09/2019,1909-00104,0.00,54.30,R,A J Promotions,No
Http://opendatacommunities.org/id/metropolitan-district-council/leeds,Leeds City Council,30/09/2019,City Development,Libraries  Arts & Heritage,Supplies and Services,Other Hired And Contracted Services,265,16/09/2019,1909-00105,0.00,460.00,R,A J Wightman,No
Http://opendatacommunities.org/id/metropolitan-district-council/leeds,Leeds City Council,30/09/2019,Children and Families,Social Care,Third Party Payments,Services Rendered By Other Organisations,511,04/09/2019,1909-00106,0.00,546.00,R,REDACTED PERSONAL DATA,No
Http://opendatacommunities.org/id/metropolitan-district-council/leeds,Leeds City Council,30/09/2019,Children and Families,Social Care,Third Party Payments,Services Rendered By Other Organisations,511,06/09/2019,1909-00107,0.00,2257.50,R,REDACTED PERSONAL DATA,No
Http://opendatacommunities.org/id/metropolitan-district-council/leeds,Leeds City Council,30/09/2019,Children and Families,Social Care,Third Party Payments, Direct Work,549,09/09/2019,1909-00108,0.00,15.00,R,REDACTED PERSONAL DATA,No
Http://opendatacommunities.org/id/metropolitan-district-council/leeds,Leeds City Council,30/09/2019,Children and Families,Social Care,Third Party Payments,Services Rendered By Voluntary Sector,505,26/09/2019,1909-00109,0.00,437.50,R,A Little Something Extra Ltd,No
Http://opendatacommunities.org/id/metropolitan-district-council/leeds,Leeds City Council,30/09/2019,Children and Families,Social Care,Third Party Payments,Services Rendered By Other Organisations,511,26/09/2019,1909-00110,0.00,787.50,R,A Little Something Extra Ltd,No
Http://opendatacommunities.org/id/metropolitan-district-council/leeds,Leeds City Council,30/09/2019,Resources and Housing,HRA Housing Leeds,Capital,Other Costs,7,30/09/2019,1909-00111,0.00,80.00,C,REDACTED PERSONAL DATA,No
Http://opendatacommunities.org/id/metropolitan-district-council/leeds,Leeds City Council,30/09/2019,Communities and Environment,Customer Access,Supplies and Services,Bought In Professional Services,277,09/09/2019,1909-00112,0.00,9.00,R,A Mohammed,No
Http://opendatacommunities.org/id/metropolitan-district-council/leeds,Leeds City Council,30/09/2019,Communities and Environment,Customer Access,Supplies and Services,Bought In Professional Services,277,26/09/2019,1909-00113,0.00,18.00,R,A Mohammed,No
Http://opendatacommunities.org/id/metropolitan-district-council/leeds,Leeds City Council,30/09/2019,Communities and Environment,Customer Access,Supplies and Services,Bought In Professional Services,277,26/09/2019,1909-00114,0.00,18.00,R,A Mohammed,No
Http://opendatacommunities.org/id/metropolitan-district-council/leeds,Leeds City Council,30/09/2019,Communities and Environment,Customer Access,Supplies and Services,Bought In Professional Services,277,26/09/2019,1909-00115,0.00,18.00,R,A Mohammed,No
Http://opendatacommunities.org/id/metropolitan-district-council/leeds,Leeds City Council,30/09/2019,Communities and Environment,Customer Access,Supplies and Services,Bought In Professional Services,277,26/09/2019,1909-00116,0.00,18.00,R,A Mohammed,No
Http://opendatacommunities.org/id/metropolitan-district-council/leeds,Leeds City Council,30/09/2019,Resources and Housing,HRA Housing Leeds,Capital,Other Costs,7,05/09/2019,1909-00117,0.00,80.00,C,REDACTED PERSONAL DATA,No
Http://opendatacommunities.org/id/metropolitan-district-council/leeds,Leeds City Council,30/09/2019,Communities and Environment,Customer Access,Supplies and Services,Bought In Professional Services,277,19/09/2019,1909-00118,0.00,18.00,R,A Musalam,No
Http://opendatacommunities.org/id/metropolitan-district-council/leeds,Leeds City Council,30/09/2019,Communities and Environment,Customer Access,Supplies and Services,Bought In Professional Services,277,19/09/2019,1909-00119,0.00,18.00,R,A Musalam,No
Http://opendatacommunities.org/id/metropolitan-district-council/leeds,Leeds City Council,30/09/2019,Children and Families,Social Care,Third Party Payments,Services Rendered By Other Organisations,511,04/09/2019,1909-00120,0.00,1365.00,R,A Myland,No
Http://opendatacommunities.org/id/metropolitan-district-council/leeds,Leeds City Council,30/09/2019,Children and Families,Social Care,Third Party Payments,Services Rendered By Other Organisations,511,06/09/2019,1909-00121,0.00,2257.50,R,A Myland,No
Http://opendatacommunities.org/id/metropolitan-district-council/leeds,Leeds City Council,30/09/2019,Communities and Environment,Customer Access,Supplies and Services,Bought In Professional Services,277,05/09/2019,1909-00122,0.00,18.00,R,A Namaki,No
Http://opendatacommunities.org/id/metropolitan-district-council/leeds,Leeds City Council,30/09/2019,Communities and Environment,Customer Access,Supplies and Services,Bought In Professional Services,277,05/09/2019,1909-00123,0.00,18.00,R,A Namaki,No
Http://opendatacommunities.org/id/metropolitan-district-council/leeds,Leeds City Council,30/09/2019,Communities and Environment,Customer Access,Supplies and Services,Bought In Professional Services,277,05/09/2019,1909-00124,0.00,18.00,R,A Namaki,No
Http://opendatacommunities.org/id/metropolitan-district-council/leeds,Leeds City Council,30/09/2019,Communities and Environment,Customer Access,Supplies and Services,Bought In Professional Services,277,05/09/2019,1909-00125,0.00,27.00,R,A Namaki,No
Http://opendatacommunities.org/id/metropolitan-district-council/leeds,Leeds City Council,30/09/2019,Communities and Environment,Customer Access,Supplies and Services,Bought In Professional Services,277,05/09/2019,1909-00126,0.00,36.00,R,A Namaki,No
Http://opendatacommunities.org/id/metropolitan-district-council/leeds,Leeds City Council,30/09/2019,Communities and Environment,Customer Access,Supplies and Services,Bought In Professional Services,277,05/09/2019,1909-00127,0.00,18.00,R,A Namaki,No
Http://opendatacommunities.org/id/metropolitan-district-council/leeds,Leeds City Council,30/09/2019,Communities and Environment,Customer Access,Supplies and Services,Bought In Professional Services,277,05/09/2019,1909-00128,0.00,18.00,R,A Namaki,No
Http://opendatacommunities.org/id/metropolitan-district-council/leeds,Leeds City Council,30/09/2019,Resources and Housing,HRA Housing Leeds,Capital,Other Costs,7,26/09/2019,1909-00129,0.00,20.00,C,REDACTED PERSONAL DATA,No
Http://opendatacommunities.org/id/metropolitan-district-council/leeds,Leeds City Council,30/09/2019,Resources and Housing,HRA Housing Leeds,Capital,Other Costs,7,05/09/2019,1909-00130,0.00,100.00,C,REDACTED PERSONAL DATA,No
Http://opendatacommunities.org/id/metropolitan-district-council/leeds,Leeds City Council,30/09/2019,Children and Families,Social Care,Third Party Payments,Services Rendered By Other Organisations,511,06/09/2019,1909-00131,0.00,225.75,R,REDACTED PERSONAL DATA,No
Http://opendatacommunities.org/id/metropolitan-district-council/leeds,Leeds City Council,30/09/2019,Resources and Housing,Shared Services,Supplies and Services,Other Hired And Contracted Services,265,04/09/2019,1909-00132,0.00,49.75,R,A Star Couriers Ltd,No
Http://opendatacommunities.org/id/metropolitan-district-council/leeds,Leeds City Council,30/09/2019,Resources and Housing,Shared Services,Supplies and Services,Other Hired And Contracted Services,265,06/09/2019,1909-00133,0.00,99.50,R,A Star Couriers Ltd,No
Http://opendatacommunities.org/id/metropolitan-district-council/leeds,Leeds City Council,30/09/2019,Resources and Housing,Shared Services,Supplies and Services,Other Hired And Contracted Services,265,20/09/2019,1909-00134,0.00,59.75,R,A Star Couriers Ltd,No
Http://opendatacommunities.org/id/metropolitan-district-council/leeds,Leeds City Council,30/09/2019,Resources and Housing,Shared Services,Supplies and Services,Other Hired And Contracted Services,265,27/09/2019,1909-00135,0.00,38.00,R,A Star Couriers Ltd,No
Http://opendatacommunities.org/id/metropolitan-district-council/leeds,Leeds City Council,30/09/2019,Resources and Housing,HRA Housing Leeds,Capital,Other Costs,7,25/09/2019,1909-00136,0.00,80.00,C,REDACTED PERSONAL DATA,No
Http://opendatacommunities.org/id/metropolitan-district-council/leeds,Leeds City Council,30/09/2019,Communities and Environment,Communities,Supplies and Services,Other Hired And Contracted Services,265,06/09/2019,1909-00137,0.00,100.00,R,REDACTED PERSONAL DATA,No
Http://opendatacommunities.org/id/metropolitan-district-council/leeds,Leeds City Council,30/09/2019,Communities and Environment,Communities,Supplies and Services,Other Hired And Contracted Services,265,10/09/2019,1909-00138,0.00,75.00,R,REDACTED PERSONAL DATA,No
Http://opendatacommunities.org/id/metropolitan-district-council/leeds,Leeds City Council,30/09/2019,Communities and Environment,Waste Management,Employees,Training & Development,70,23/09/2019,1909-00139,0.00,328.10,R,A T Nerac Ltd,No
Http://opendatacommunities.org/id/metropolitan-district-council/leeds,Leeds City Council,30/09/2019,Communities and Environment,Waste Management,Employees,Training & Development,70,23/09/2019,1909-00140,0.00,169.00,R,A T Nerac Ltd,No
Http://opendatacommunities.org/id/metropolitan-district-council/leeds,Leeds City Council,30/09/2019,Communities and Environment,Waste Management,Employees,Training & Development,70,23/09/2019,1909-00141,0.00,199.50,R,A T Nerac Ltd,No
Http://opendatacommunities.org/id/metropolitan-district-council/leeds,Leeds City Council,30/09/2019,Resources and Housing,HRA Housing Leeds,Capital,Other Costs,7,19/09/2019,1909-00142,0.00,100.00,C,REDACTED PERSONAL DATA,No
Http://opendatacommunities.org/id/metropolitan-district-council/leeds,Leeds City Council,30/09/2019,Children and Families,Social Care,Third Party Payments,Services Rendered By Other Organisations,511,06/09/2019,1909-00143,0.00,451.50,R,REDACTED PERSONAL DATA,No
Http://opendatacommunities.org/id/metropolitan-district-council/leeds,Leeds City Council,30/09/2019,Children and Families,Social Care,Third Party Payments,Services Rendered By Other Organisations,511,06/09/2019,1909-00144,0.00,677.25,R,REDACTED PERSONAL DATA,No
Http://opendatacommunities.org/id/metropolitan-district-council/leeds,Leeds City Council,30/09/2019,Children and Families,Social Care,Third Party Payments,General External Residential Placements,507,04/09/2019,1909-00145,0.00,661.50,R,A Wilderness Way Ltd,No
Http://opendatacommunities.org/id/metropolitan-district-council/leeds,Leeds City Council,30/09/2019,Children and Families,Social Care,Third Party Payments,General External Residential Placements,507,04/09/2019,1909-00146,0.00,785.25,R,A Wilderness Way Ltd,No
Http://opendatacommunities.org/id/metropolitan-district-council/leeds,Leeds City Council,30/09/2019,Children and Families,Social Care,Third Party Payments,General External Residential Placements,507,04/09/2019,1909-00147,0.00,207.00,R,A Wilderness Way Ltd,No
Http://opendatacommunities.org/id/metropolitan-district-council/leeds,Leeds City Council,30/09/2019,Children and Families,Social Care,Third Party Payments,General External Residential Placements,507,23/09/2019,1909-00148,0.00,-415.80,R,A Wilderness Way Ltd,No
Http://opendatacommunities.org/id/metropolitan-district-council/leeds,Leeds City Council,30/09/2019,Children and Families,Social Care,Third Party Payments,General External Residential Placements,507,23/09/2019,1909-00149,0.00,-429.66,R,A Wilderness Way Ltd,No
Http://opendatacommunities.org/id/metropolitan-district-council/leeds,Leeds City Council,30/09/2019,Children and Families,Social Care,Third Party Payments,General External Residential Placements,507,23/09/2019,1909-00150,0.00,-291.60,R,A Wilderness Way Ltd,No
Http://opendatacommunities.org/id/metropolitan-district-council/leeds,Leeds City Council,30/09/2019,Children and Families,Social Care,Third Party Payments,General External Residential Placements,507,23/09/2019,1909-00151,0.00,-454.50,R,A Wilderness Way Ltd,No
Http://opendatacommunities.org/id/metropolitan-district-council/leeds,Leeds City Council,30/09/2019,Children and Families,Social Care,Third Party Payments,General External Residential Placements,507,23/09/2019,1909-00152,0.00,-535.80,R,A Wilderness Way Ltd,No
Http://opendatacommunities.org/id/metropolitan-district-council/leeds,Leeds City Council,30/09/2019,Children and Families,Social Care,Third Party Payments,General External Residential Placements,507,23/09/2019,1909-00153,0.00,-553.66,R,A Wilderness Way Ltd,No
Http://opendatacommunities.org/id/metropolitan-district-council/leeds,Leeds City Council,30/09/2019,Children and Families,Social Care,Third Party Payments,General External Residential Placements,507,23/09/2019,1909-00154,0.00,9182.10,R,A Wilderness Way Ltd,No
Http://opendatacommunities.org/id/metropolitan-district-council/leeds,Leeds City Council,30/09/2019,Children and Families,Social Care,Third Party Payments,General External Residential Placements,507,23/09/2019,1909-00155,0.00,22585.67,R,A Wilderness Way Ltd,No
Http://opendatacommunities.org/id/metropolitan-district-council/leeds,Leeds City Council,30/09/2019,Children and Families,Social Care,Third Party Payments,General External Residential Placements,507,23/09/2019,1909-00156,0.00,535.80,R,A Wilderness Way Ltd,No
Http://opendatacommunities.org/id/metropolitan-district-council/leeds,Leeds City Council,30/09/2019,Children and Families,Social Care,Third Party Payments,General External Residential Placements,507,23/09/2019,1909-00157,0.00,415.80,R,A Wilderness Way Ltd,No
Http://opendatacommunities.org/id/metropolitan-district-council/leeds,Leeds City Council,30/09/2019,Children and Families,Social Care,Third Party Payments,General External Residential Placements,507,23/09/2019,1909-00158,0.00,553.66,R,A Wilderness Way Ltd,No
Http://opendatacommunities.org/id/metropolitan-district-council/leeds,Leeds City Council,30/09/2019,Children and Families,Social Care,Third Party Payments,General External Residential Placements,507,23/09/2019,1909-00159,0.00,429.66,R,A Wilderness Way Ltd,No
Http://opendatacommunities.org/id/metropolitan-district-council/leeds,Leeds City Council,30/09/2019,Children and Families,Social Care,Third Party Payments,General External Residential Placements,507,23/09/2019,1909-00160,0.00,454.50,R,A Wilderness Way Ltd,No
Http://opendatacommunities.org/id/metropolitan-district-council/leeds,Leeds City Council,30/09/2019,Children and Families,Social Care,Third Party Payments,General External Residential Placements,507,23/09/2019,1909-00161,0.00,291.60,R,A Wilderness Way Ltd,No
Http://opendatacommunities.org/id/metropolitan-district-council/leeds,Leeds City Council,30/09/2019,Children and Families,Social Care,Third Party Payments,General External Residential Placements,507,26/09/2019,1909-00162,0.00,11214.84,R,A Wilderness Way Ltd,No
Http://opendatacommunities.org/id/metropolitan-district-council/leeds,Leeds City Council,30/09/2019,Children and Families,Social Care,Third Party Payments,General External Residential Placements,507,27/09/2019,1909-00163,0.00,22585.67,R,A Wilderness Way Ltd,No
Http://opendatacommunities.org/id/metropolitan-district-council/leeds,Leeds City Council,30/09/2019,Children and Families,Social Care,Third Party Payments,General External Residential Placements,507,27/09/2019,1909-00164,0.00,3574.20,R,A Wilderness Way Ltd,No
Http://opendatacommunities.org/id/metropolitan-district-council/leeds,Leeds City Council,30/09/2019,Children and Families,Social Care,Third Party Payments,General External Residential Placements,507,27/09/2019,1909-00165,0.00,3480.00,R,A Wilderness Way Ltd,No
Http://opendatacommunities.org/id/metropolitan-district-council/leeds,Leeds City Council,30/09/2019,Children and Families,Social Care,Third Party Payments,General External Residential Placements,507,30/09/2019,1909-00166,0.00,3693.34,R,A Wilderness Way Ltd,No
Http://opendatacommunities.org/id/metropolitan-district-council/leeds,Leeds City Council,30/09/2019,City Development,Recreation  ,Supplies and Services,Operational Furniture And Equipment,203,06/08/2019,1909-00167,0.00,86.00,R,Aal Ltd,Yes
Http://opendatacommunities.org/id/metropolitan-district-council/leeds,Leeds City Council,30/09/2019,Resources and Housing,Leeds Building Services,Supplies and Services,Operational Materials,205,16/09/2019,1909-00168,0.00,115.00,R,Aalco Leeds,No
Http://opendatacommunities.org/id/metropolitan-district-council/leeds,Leeds City Council,30/09/2019,Children and Families,Social Care  ,Supplies and Services,Operational Furniture And Equipment,203,22/08/2019,1909-00169,0.00,28.50,R,Aardvark Archery,Yes
Http://opendatacommunities.org/id/metropolitan-district-council/leeds,Leeds City Council as Accountable Body,30/09/2019,Social Services Pooled Budgets,Leeds Community Equip Store Pooled Budgt,Supplies and Services,Other Equipment,203,11/09/2019,1909-00170,0.00,1099.00,R,Aat (Gb) Ltd,No
Http://opendatacommunities.org/id/metropolitan-district-council/leeds,Leeds City Council as Accountable Body,30/09/2019,Social Services Pooled Budgets,Leeds Community Equip Store Pooled Budgt,Supplies and Services,Other Equipment,203,18/09/2019,1909-00171,0.00,110.00,R,Aat (Gb) Ltd,No
Http://opendatacommunities.org/id/metropolitan-district-council/leeds,Leeds City Council,30/09/2019,Communities and Environment,Parks and Countryside,Capital,Other Costs,7,06/09/2019,1909-00172,0.00,1870.00,C,Abacus Cost Management Ltd,No
Http://opendatacommunities.org/id/metropolitan-district-council/leeds,Leeds City Council,30/09/2019,Adults and Health,Services For Adults Under 65 Mental/Dis,Third Party Payments,Nursing Home,570,18/09/2019,1909-00173,0.00,1924.00,R,Abbey Grange Nursing Home,No
Http://opendatacommunities.org/id/metropolitan-district-council/leeds,Leeds City Council,30/09/2019,Communities and Environment,Customer Access,Supplies and Services,Other Hired And Contracted Services,265,09/09/2019,1909-00174,0.00,280.50,R,Abbey J Forster,No
Http://opendatacommunities.org/id/metropolitan-district-council/leeds,Leeds City Council,30/09/2019,Children and Families,Learning,Supplies and Services,Other Hired And Contracted Services,265,02/09/2019,1909-00175,0.00,54.00,R,Abbey Multi Academy Trust,No
Http://opendatacommunities.org/id/metropolitan-district-council/leeds,Leeds City Council,30/09/2019,Children and Families,Learning,Supplies and Services,Other Hired And Contracted Services,265,02/09/2019,1909-00176,0.00,68.40,R,Abbey Multi Academy Trust,No
Http://opendatacommunities.org/id/metropolitan-district-council/leeds,Leeds City Council,30/09/2019,Children and Families,Learning,Supplies and Services,Other Hired And Contracted Services,265,02/09/2019,1909-00177,0.00,105.00,R,Abbey Multi Academy Trust,No
Http://opendatacommunities.org/id/metropolitan-district-council/leeds,Leeds City Council,30/09/2019,Children and Families,Learning,Supplies and Services,Other Hired And Contracted Services,265,02/09/2019,1909-00178,0.00,366.25,R,Abbey Multi Academy Trust,No
Http://opendatacommunities.org/id/metropolitan-district-council/leeds,Leeds City Council,30/09/2019,Children and Families,Social Care,Premises,Hire of meeting rooms,143,02/09/2019,1909-00179,0.00,50.00,R,Abbey Multi Academy Trust,No
Http://opendatacommunities.org/id/metropolitan-district-council/leeds,Leeds City Council,30/09/2019,Children and Families,Social Care,Supplies and Services,Food & Drink,231,02/09/2019,1909-00180,0.00,108.00,R,Abbey Multi Academy Trust,No
Http://opendatacommunities.org/id/metropolitan-district-council/leeds,Leeds City Council,30/09/2019,Children and Families,Social Care,Third Party Payments,Services Rendered By Other Organisations,511,20/09/2019,1909-00181,0.00,1986.09,R,Abbey Multi Academy Trust,No
Http://opendatacommunities.org/id/metropolitan-district-council/leeds,Leeds City Council,30/09/2019,Children and Families,Learning,Supplies and Services,Other Hired And Contracted Services,265,26/09/2019,1909-00182,0.00,900.00,R,Abbey Multi Academy Trust,No
Http://opendatacommunities.org/id/metropolitan-district-council/leeds,Leeds City Council,30/09/2019,Children and Families,Social Care,Third Party Payments,Allowances,546,04/09/2019,1909-00183,0.00,750.50,R,ABBIE O'MAHONY,No
Http://opendatacommunities.org/id/metropolitan-district-council/leeds,Leeds City Council,30/09/2019,Children and Families,Social Care,Third Party Payments,Services Rendered By Other Organisations,511,04/09/2019,1909-00184,0.00,1911.00,R,Abc Daycare And Ozone Out Of School,No
Http://opendatacommunities.org/id/metropolitan-district-council/leeds,Leeds City Council,30/09/2019,Children and Families,Social Care,Third Party Payments,Services Rendered By Other Organisations,511,06/09/2019,1909-00185,0.00,6622.00,R,Abc Daycare And Ozone Out Of School,No
Http://opendatacommunities.org/id/metropolitan-district-council/leeds,Leeds City Council,30/09/2019,Children and Families,Social Care,Third Party Payments,Services Rendered By Other Organisations,511,04/09/2019,1909-00186,0.00,2093.00,R,Abc Nursery At Lufc,No
Http://opendatacommunities.org/id/metropolitan-district-council/leeds,Leeds City Council,30/09/2019,Children and Families,Social Care,Third Party Payments,Services Rendered By Other Organisations,511,06/09/2019,1909-00187,0.00,8352.75,R,Abc Nursery At Lufc,No
Http://opendatacommunities.org/id/metropolitan-district-council/leeds,Leeds City Council,30/09/2019,Children and Families,Social Care,Third Party Payments,Services Rendered By Other Organisations,511,04/09/2019,1909-00188,0.00,1365.00,R,Abc@D'S Childcare Services,No
Http://opendatacommunities.org/id/metropolitan-district-council/leeds,Leeds City Council,30/09/2019,Children and Families,Social Care,Third Party Payments,Services Rendered By Other Organisations,511,06/09/2019,1909-00189,0.00,4515.00,R,Abc@D'S Childcare Services,No
Http://opendatacommunities.org/id/metropolitan-district-council/leeds,Leeds City Council,30/09/2019,Communities and Environment,Customer Access,Supplies and Services,Bought In Professional Services,277,09/09/2019,1909-00190,0.00,22.50,R,Abdul Wadood Kazizadha,No
Http://opendatacommunities.org/id/metropolitan-district-council/leeds,Leeds City Council,30/09/2019,Communities and Environment,Customer Access,Supplies and Services,Bought In Professional Services,277,09/09/2019,1909-00191,0.00,22.50,R,Abdul Wadood Kazizadha,No
Http://opendatacommunities.org/id/metropolitan-district-council/leeds,Leeds City Council,30/09/2019,Communities and Environment,Customer Access,Supplies and Services,Bought In Professional Services,277,09/09/2019,1909-00192,0.00,31.50,R,Abdul Wadood Kazizadha,No
Http://opendatacommunities.org/id/metropolitan-district-council/leeds,Leeds City Council,30/09/2019,Communities and Environment,Customer Access,Supplies and Services,Bought In Professional Services,277,13/09/2019,1909-00193,0.00,31.50,R,Abdul Wadood Kazizadha,No
Http://opendatacommunities.org/id/metropolitan-district-council/leeds,Leeds City Council,30/09/2019,Communities and Environment,Customer Access,Supplies and Services,Bought In Professional Services,277,19/09/2019,1909-00194,0.00,40.50,R,Abdul Wadood Kazizadha,No
Http://opendatacommunities.org/id/metropolitan-district-council/leeds,Leeds City Council,30/09/2019,Communities and Environment,Customer Access,Supplies and Services,Bought In Professional Services,277,19/09/2019,1909-00195,0.00,18.00,R,Abdul Wadood Kazizadha,No
Http://opendatacommunities.org/id/metropolitan-district-council/leeds,Leeds City Council,30/09/2019,Communities and Environment,Customer Access,Supplies and Services,Bought In Professional Services,277,19/09/2019,1909-00196,0.00,22.50,R,Abdul Wadood Kazizadha,No
Http://opendatacommunities.org/id/metropolitan-district-council/leeds,Leeds City Council,30/09/2019,Communities and Environment,Customer Access,Supplies and Services,Bought In Professional Services,277,26/09/2019,1909-00197,0.00,27.00,R,Abdul Wadood Kazizadha,No
Http://opendatacommunities.org/id/metropolitan-district-council/leeds,Leeds City Council,30/09/2019,Communities and Environment,Customer Access,Supplies and Services,Bought In Professional Services,277,09/09/2019,1909-00198,0.00,18.00,R,Abdulahad Denha,No
Http://opendatacommunities.org/id/metropolitan-district-council/leeds,Leeds City Council,30/09/2019,Communities and Environment,Customer Access,Supplies and Services,Bought In Professional Services,277,09/09/2019,1909-00199,0.00,18.00,R,Abdulahad Denha,No
Http://opendatacommunities.org/id/metropolitan-district-council/leeds,Leeds City Council,30/09/2019,Communities and Environment,Customer Access,Supplies and Services,Bought In Professional Services,277,09/09/2019,1909-00200,0.00,22.50,R,Abdulahad Denha,No
Http://opendatacommunities.org/id/metropolitan-district-council/leeds,Leeds City Council,30/09/2019,Communities and Environment,Customer Access,Supplies and Services,Bought In Professional Services,277,13/09/2019,1909-00201,0.00,18.00,R,Abdulahad Denha,No
Http://opendatacommunities.org/id/metropolitan-district-council/leeds,Leeds City Council,30/09/2019,Communities and Environment,Customer Access,Supplies and Services,Bought In Professional Services,277,19/09/2019,1909-00202,0.00,18.00,R,Abdulahad Denha,No
Http://opendatacommunities.org/id/metropolitan-district-council/leeds,Leeds City Council,30/09/2019,Communities and Environment,Customer Access,Supplies and Services,Bought In Professional Services,277,19/09/2019,1909-00203,0.00,18.00,R,Abdulahad Denha,No
Http://opendatacommunities.org/id/metropolitan-district-council/leeds,Leeds City Council,30/09/2019,Communities and Environment,Customer Access,Supplies and Services,Bought In Professional Services,277,19/09/2019,1909-00204,0.00,18.00,R,Abdulahad Denha,No
Http://opendatacommunities.org/id/metropolitan-district-council/leeds,Leeds City Council,30/09/2019,Communities and Environment,Customer Access,Supplies and Services,Bought In Professional Services,277,26/09/2019,1909-00205,0.00,27.00,R,Abdulahad Denha,No
Http://opendatacommunities.org/id/metropolitan-district-council/leeds,Leeds City Council,30/09/2019,Communities and Environment,Customer Access,Supplies and Services,Bought In Professional Services,277,26/09/2019,1909-00206,0.00,22.50,R,Abdulahad Denha,No
Http://opendatacommunities.org/id/metropolitan-district-council/leeds,Leeds City Council,30/09/2019,Communities and Environment,Customer Access,Supplies and Services,Bought In Professional Services,277,26/09/2019,1909-00207,0.00,18.00,R,Abdulahad Denha,No
Http://opendatacommunities.org/id/metropolitan-district-council/leeds,Leeds City Council,30/09/2019,Communities and Environment,Customer Access,Supplies and Services,Bought In Professional Services,277,26/09/2019,1909-00208,0.00,18.00,R,Abdulahad Denha,No
Http://opendatacommunities.org/id/metropolitan-district-council/leeds,Leeds City Council,30/09/2019,Communities and Environment,Customer Access,Supplies and Services,Bought In Professional Services,277,26/09/2019,1909-00209,0.00,27.00,R,Abdulahad Denha,No
Http://opendatacommunities.org/id/metropolitan-district-council/leeds,Leeds City Council,30/09/2019,Communities and Environment,Customer Access,Supplies and Services,Bought In Professional Services,277,26/09/2019,1909-00210,0.00,18.00,R,Abdulahad Denha,No
Http://opendatacommunities.org/id/metropolitan-district-council/leeds,Leeds City Council,30/09/2019,Communities and Environment,Customer Access,Supplies and Services,Bought In Professional Services,277,26/09/2019,1909-00211,0.00,18.00,R,Abdulahad Denha,No
Http://opendatacommunities.org/id/metropolitan-district-council/leeds,Leeds City Council,30/09/2019,Communities and Environment,Customer Access,Supplies and Services,Bought In Professional Services,277,26/09/2019,1909-00212,0.00,18.00,R,Abdulahad Denha,No
Http://opendatacommunities.org/id/metropolitan-district-council/leeds,Leeds City Council,30/09/2019,Communities and Environment,Customer Access,Supplies and Services,Bought In Professional Services,277,26/09/2019,1909-00213,0.00,18.00,R,Abdulahad Denha,No
Http://opendatacommunities.org/id/metropolitan-district-council/leeds,Leeds City Council,30/09/2019,Children and Families,Social Care,Third Party Payments,Rents (non supported),552,06/09/2019,1909-00214,0.00,90.00,R,REDACTED PERSONAL DATA,No
Http://opendatacommunities.org/id/metropolitan-district-council/leeds,Leeds City Council,30/09/2019,Children and Families,Social Care,Third Party Payments,Rents (non supported),552,13/09/2019,1909-00215,0.00,90.00,R,REDACTED PERSONAL DATA,No
Http://opendatacommunities.org/id/metropolitan-district-council/leeds,Leeds City Council,30/09/2019,Children and Families,Social Care,Third Party Payments,Placement Support,550,20/09/2019,1909-00216,0.00,90.00,R,REDACTED PERSONAL DATA,No
Http://opendatacommunities.org/id/metropolitan-district-council/leeds,Leeds City Council,30/09/2019,Communities and Environment,Customer Access,Supplies and Services,Bought In Professional Services,277,26/09/2019,1909-00217,0.00,18.00,R,Abdulrahim Dastyar,No
Http://opendatacommunities.org/id/metropolitan-district-council/leeds,Leeds City Council,30/09/2019,Communities and Environment,Customer Access,Supplies and Services,Bought In Professional Services,277,26/09/2019,1909-00218,0.00,18.00,R,Abdulrahim Dastyar,No
Http://opendatacommunities.org/id/metropolitan-district-council/leeds,Leeds City Council,30/09/2019,Communities and Environment,Customer Access,Supplies and Services,Bought In Professional Services,277,26/09/2019,1909-00219,0.00,18.00,R,Abdulrahim Dastyar,No
Http://opendatacommunities.org/id/metropolitan-district-council/leeds,Leeds City Council,30/09/2019,Communities and Environment,Customer Access,Supplies and Services,Bought In Professional Services,277,26/09/2019,1909-00220,0.00,18.00,R,Abdulrahim Dastyar,No
Http://opendatacommunities.org/id/metropolitan-district-council/leeds,Leeds City Council,30/09/2019,Communities and Environment,Customer Access,Supplies and Services,Bought In Professional Services,277,26/09/2019,1909-00221,0.00,22.50,R,Abdulrahim Dastyar,No
Http://opendatacommunities.org/id/metropolitan-district-council/leeds,Leeds City Council,30/09/2019,Communities and Environment,Customer Access,Supplies and Services,Bought In Professional Services,277,26/09/2019,1909-00222,0.00,27.00,R,Abdulrahim Dastyar,No
Http://opendatacommunities.org/id/metropolitan-district-council/leeds,Leeds City Council,30/09/2019,Communities and Environment,Customer Access,Supplies and Services,Bought In Professional Services,277,26/09/2019,1909-00223,0.00,42.00,R,Abdulrahim Dastyar,No
Http://opendatacommunities.org/id/metropolitan-district-council/leeds,Leeds City Council,30/09/2019,Communities and Environment,Customer Access,Supplies and Services,Bought In Professional Services,277,26/09/2019,1909-00224,0.00,18.00,R,Abdulrahim Dastyar,No
Http://opendatacommunities.org/id/metropolitan-district-council/leeds,Leeds City Council,30/09/2019,Communities and Environment,Customer Access,Supplies and Services,Bought In Professional Services,277,26/09/2019,1909-00225,0.00,18.00,R,Abdulrahim Dastyar,No
Http://opendatacommunities.org/id/metropolitan-district-council/leeds,Leeds City Council,30/09/2019,Communities and Environment,Customer Access,Supplies and Services,Bought In Professional Services,277,26/09/2019,1909-00226,0.00,18.00,R,Abdulrahim Dastyar,No
Http://opendatacommunities.org/id/metropolitan-district-council/leeds,Leeds City Council,30/09/2019,Communities and Environment,Customer Access,Supplies and Services,Bought In Professional Services,277,26/09/2019,1909-00227,0.00,18.00,R,Abdulrahim Dastyar,No
Http://opendatacommunities.org/id/metropolitan-district-council/leeds,Leeds City Council,30/09/2019,Communities and Environment,Customer Access,Supplies and Services,Bought In Professional Services,277,26/09/2019,1909-00228,0.00,18.00,R,Abdulrahim Dastyar,No
Http://opendatacommunities.org/id/metropolitan-district-council/leeds,Leeds City Council,30/09/2019,Communities and Environment,Customer Access,Supplies and Services,Bought In Professional Services,277,26/09/2019,1909-00229,0.00,18.00,R,Abdulrahim Dastyar,No
Http://opendatacommunities.org/id/metropolitan-district-council/leeds,Leeds City Council,30/09/2019,Communities and Environment,Customer Access,Supplies and Services,Bought In Professional Services,277,26/09/2019,1909-00230,0.00,18.00,R,Abdulrahim Dastyar,No
Http://opendatacommunities.org/id/metropolitan-district-council/leeds,Leeds City Council,30/09/2019,Communities and Environment,Customer Access,Supplies and Services,Bought In Professional Services,277,26/09/2019,1909-00231,0.00,18.00,R,Abdulrahim Dastyar,No
Http://opendatacommunities.org/id/metropolitan-district-council/leeds,Leeds City Council,30/09/2019,Communities and Environment,Customer Access,Supplies and Services,Bought In Professional Services,277,26/09/2019,1909-00232,0.00,18.00,R,Abdulrahim Dastyar,No
Http://opendatacommunities.org/id/metropolitan-district-council/leeds,Leeds City Council,30/09/2019,Communities and Environment,Customer Access,Supplies and Services,Bought In Professional Services,277,26/09/2019,1909-00233,0.00,27.00,R,Abdulrahim Dastyar,No
Http://opendatacommunities.org/id/metropolitan-district-council/leeds,Leeds City Council,30/09/2019,Communities and Environment,Customer Access,Supplies and Services,Bought In Professional Services,277,26/09/2019,1909-00234,0.00,18.00,R,Abdulrahim Dastyar,No
Http://opendatacommunities.org/id/metropolitan-district-council/leeds,Leeds City Council,30/09/2019,Communities and Environment,Customer Access,Supplies and Services,Bought In Professional Services,277,26/09/2019,1909-00235,0.00,18.00,R,Abdulrahim Dastyar,No
Http://opendatacommunities.org/id/metropolitan-district-council/leeds,Leeds City Council,30/09/2019,Children and Families,Social Care,Transfer Payments,16 Plus Top Up Allowance,625,19/09/2019,1909-00236,0.00,80.00,R,REDACTED PERSONAL DATA,No
Http://opendatacommunities.org/id/metropolitan-district-council/leeds,Leeds City Council,30/09/2019,Children and Families,Social Care,Transfer Payments,16 Plus Top Up Allowance,625,27/09/2019,1909-00237,0.00,20.00,R,REDACTED PERSONAL DATA,No
Http://opendatacommunities.org/id/metropolitan-district-council/leeds,Leeds City Council,30/09/2019,Children and Families,Learning  ,Supplies and Services,Teaching Materials,202,01/08/2019,1909-00238,0.00,16.27,R,Abebooks G2if54,Yes
Http://opendatacommunities.org/id/metropolitan-district-council/leeds,Leeds City Council,30/09/2019,Adults and Health,Services For Older People - 65 And Over,Third Party Payments,Nursing Home,570,18/09/2019,1909-00239,0.00,41933.44,R,Aberford Hall,No
Http://opendatacommunities.org/id/metropolitan-district-council/leeds,Leeds City Council,30/09/2019,Adults and Health,Services For Older People - 65 And Over,Third Party Payments,Residential,580,18/09/2019,1909-00240,0.00,2011.40,R,Aberford Hall,No
Http://opendatacommunities.org/id/metropolitan-district-council/leeds,Leeds City Council,30/09/2019,Resources and Housing,Leeds Building Services,Supplies and Services,Operational Materials,205,03/09/2019,1909-00241,0.00,18.00,R,Abi Garage Doors Ltd,No
Http://opendatacommunities.org/id/metropolitan-district-council/leeds,Leeds City Council,30/09/2019,Resources and Housing,Leeds Building Services,Supplies and Services,Operational Materials,205,09/09/2019,1909-00242,0.00,78.00,R,Abi Garage Doors Ltd,No
Http://opendatacommunities.org/id/metropolitan-district-council/leeds,Leeds City Council,30/09/2019,Resources and Housing,Leeds Building Services,Supplies and Services,Operational Materials,205,12/09/2019,1909-00243,0.00,20.00,R,Abi Garage Doors Ltd,No
Http://opendatacommunities.org/id/metropolitan-district-council/leeds,Leeds City Council,30/09/2019,Resources and Housing,Leeds Building Services,Supplies and Services,Operational Materials,205,12/09/2019,1909-00244,0.00,395.95,R,Abi Garage Doors Ltd,No
Http://opendatacommunities.org/id/metropolitan-district-council/leeds,Leeds City Council,30/09/2019,Resources and Housing,Leeds Building Services,Supplies and Services,Operational Materials,205,13/09/2019,1909-00245,0.00,310.00,R,Abi Garage Doors Ltd,No
Http://opendatacommunities.org/id/metropolitan-district-council/leeds,Leeds City Council,30/09/2019,Resources and Housing,Leeds Building Services,Supplies and Services,Operational Materials,205,20/09/2019,1909-00246,0.00,260.46,R,Abi Garage Doors Ltd,No
Http://opendatacommunities.org/id/metropolitan-district-council/leeds,Leeds City Council,30/09/2019,Children and Families,Social Care,Employees,Occupational Health,85,18/09/2019,1909-00247,0.00,285.00,R,Ability Smart Limited,No
Http://opendatacommunities.org/id/metropolitan-district-council/leeds,Leeds City Council,30/09/2019,Communities and Environment,Parks and Countryside,Supplies and Services,Operational Materials,205,05/09/2019,1909-00248,0.00,600.50,R,Abram Pulman & Sons Limited,No
Http://opendatacommunities.org/id/metropolitan-district-council/leeds,Leeds City Council,30/09/2019,Communities and Environment,Parks and Countryside,Supplies and Services,Operational Materials,205,27/09/2019,1909-00249,0.00,591.20,R,Abram Pulman & Sons Limited,No
Http://opendatacommunities.org/id/metropolitan-district-council/leeds,Leeds City Council,30/09/2019,Communities and Environment,Parks and Countryside,Supplies and Services,Operational Materials,205,27/09/2019,1909-00250,0.00,1113.00,R,Abram Pulman & Sons Limited,No
Http://opendatacommunities.org/id/metropolitan-district-council/leeds,Leeds City Council,30/09/2019,Children and Families,Social Care  ,Supplies and Services,Subsistence,256,26/08/2019,1909-00251,0.00,7.45,R,Absurd Bird Leeds,Yes
Http://opendatacommunities.org/id/metropolitan-district-council/leeds,Leeds City Council,30/09/2019,Children and Families,Social Care  ,Transfer Payments,Leaving Care Allowances,634,31/07/2019,1909-00252,0.00,6.99,R,Abu Bakar Limited,Yes
Http://opendatacommunities.org/id/metropolitan-district-council/leeds,Leeds City Council,30/09/2019,Adults and Health,Services For Adults Under 65 Mental/Dis,Third Party Payments,Fees - Level 4,520,18/09/2019,1909-00253,0.00,175.00,R,Abubaker Denja Mohammed,No
Http://opendatacommunities.org/id/metropolitan-district-council/leeds,Leeds City Council,30/09/2019,Adults and Health,Services For Adults Under 65 Mental/Dis,Third Party Payments,Fees - Level 4,520,18/09/2019,1909-00254,0.00,175.00,R,Abubaker Denja Mohammed,No
Http://opendatacommunities.org/id/metropolitan-district-council/leeds,Leeds City Council,30/09/2019,Adults and Health,Services For Adults Under 65 Mental/Dis,Third Party Payments,Fees - Level 4,520,18/09/2019,1909-00255,0.00,175.00,R,Abubaker Denja Mohammed,No
Http://opendatacommunities.org/id/metropolitan-district-council/leeds,Leeds City Council,30/09/2019,Adults and Health,Services For Adults Under 65 Mental/Dis,Third Party Payments,Fees - Level 4,520,18/09/2019,1909-00256,0.00,175.00,R,Abubaker Denja Mohammed,No
Http://opendatacommunities.org/id/metropolitan-district-council/leeds,Leeds City Council,30/09/2019,Adults and Health,Services For Adults Under 65 Mental/Dis,Third Party Payments,Fees - Level 4,520,18/09/2019,1909-00257,0.00,175.00,R,Abubaker Denja Mohammed,No
Http://opendatacommunities.org/id/metropolitan-district-council/leeds,Leeds City Council,30/09/2019,Adults and Health,Services For Adults Under 65 Mental/Dis,Third Party Payments,Fees - Level 4,520,18/09/2019,1909-00258,0.00,175.00,R,Abubaker Denja Mohammed,No
Http://opendatacommunities.org/id/metropolitan-district-council/leeds,Leeds City Council,30/09/2019,Adults and Health,Services For Adults Under 65 Mental/Dis,Third Party Payments,Fees - Level 4,520,18/09/2019,1909-00259,0.00,175.00,R,Abubaker Denja Mohammed,No
Http://opendatacommunities.org/id/metropolitan-district-council/leeds,Leeds City Council,30/09/2019,Adults and Health,Services For Adults Under 65 Mental/Dis,Third Party Payments,Fees - Level 4,520,18/09/2019,1909-00260,0.00,223.16,R,Abubaker Denja Mohammed,No
Http://opendatacommunities.org/id/metropolitan-district-council/leeds,Leeds City Council,30/09/2019,Adults and Health,Services For Adults Under 65 Mental/Dis,Third Party Payments,Fees - Level 4,520,18/09/2019,1909-00261,0.00,175.00,R,Abubaker Denja Mohammed,No
Http://opendatacommunities.org/id/metropolitan-district-council/leeds,Leeds City Council,30/09/2019,Adults and Health,Services For Adults Under 65 Mental/Dis,Third Party Payments,Fees - Level 4,520,18/09/2019,1909-00262,0.00,175.00,R,Abubaker Denja Mohammed,No
Http://opendatacommunities.org/id/metropolitan-district-council/leeds,Leeds City Council,30/09/2019,Children and Families,Social Care,Employees,Agency Staff,8,13/09/2019,1909-00263,0.00,1585.00,R,Academic Appointments Ltd,No
Http://opendatacommunities.org/id/metropolitan-district-council/leeds,Leeds City Council,30/09/2019,Children and Families,Social Care,Third Party Payments,Services Rendered By Other Organisations,511,20/09/2019,1909-00264,0.00,6041.88,R,Academies Enterprise Trust (Aet),No
Http://opendatacommunities.org/id/metropolitan-district-council/leeds,Leeds City Council,30/09/2019,Children and Families,Learning,Supplies and Services,Other Hired And Contracted Services,265,26/09/2019,1909-00265,0.00,900.00,R,Academies Enterprise Trust (Aet),No
Http://opendatacommunities.org/id/metropolitan-district-council/leeds,Leeds City Council,30/09/2019,Children and Families,Partnerships & Health,Employees,Training & Development,70,13/09/2019,1909-00266,0.00,125.00,R,Acamh,No
Http://opendatacommunities.org/id/metropolitan-district-council/leeds,Leeds City Council,30/09/2019,Resources and Housing,Strategic Housing Partnerships,Capital,Construction,3,05/09/2019,1909-00267,0.00,3422.73,C,Accent Homes Ltd,No
Http://opendatacommunities.org/id/metropolitan-district-council/leeds,Leeds City Council,30/09/2019,Communities and Environment,Community Safety,Transport,Hire Of Movable Plant & Machinery,315,02/09/2019,1909-00268,0.00,1268.57,R,Access Hire Nationwide Ltd,No
Http://opendatacommunities.org/id/metropolitan-district-council/leeds,Leeds City Council,30/09/2019,Communities and Environment,Community Safety,Transport,Hire Of Movable Plant & Machinery,315,02/09/2019,1909-00269,0.00,33.50,R,Access Hire Nationwide Ltd,No
Http://opendatacommunities.org/id/metropolitan-district-council/leeds,Leeds City Council,30/09/2019,Communities and Environment,Community Safety,Transport,Hire Of Movable Plant & Machinery,315,02/09/2019,1909-00270,0.00,1310.86,R,Access Hire Nationwide Ltd,No
Http://opendatacommunities.org/id/metropolitan-district-council/leeds,Leeds City Council,30/09/2019,Communities and Environment,Community Safety,Transport,Hire Of Movable Plant & Machinery,315,26/09/2019,1909-00271,0.00,930.29,R,Access Hire Nationwide Ltd,No
Http://opendatacommunities.org/id/metropolitan-district-council/leeds,Leeds City Council,30/09/2019,Adults and Health,Services For Adults Under 65 Learn/Dis  ,Supplies and Services,Office Furniture & Equipment,201,31/07/2019,1909-00272,0.00,13.54,R,Access Locksmiths,Yes
Http://opendatacommunities.org/id/metropolitan-district-council/leeds,Leeds City Council,30/09/2019,Resources and Housing,Commercial Services  ,Supplies and Services,Operational Materials,205,16/08/2019,1909-00273,0.00,658.72,R,Access Locksmiths,Yes
Http://opendatacommunities.org/id/metropolitan-district-council/leeds,Leeds City Council,30/09/2019,Resources and Housing,Commercial Services  ,Supplies and Services,Operational Materials,205,16/08/2019,1909-00274,0.00,725.36,R,Access Locksmiths,Yes
Http://opendatacommunities.org/id/metropolitan-district-council/leeds,Leeds City Council,30/09/2019,Communities and Environment,Parks And Countryside  ,Supplies and Services,Operational Materials,205,28/08/2019,1909-00275,0.00,4.58,R,Access Locksmiths,Yes
Http://opendatacommunities.org/id/metropolitan-district-council/leeds,Leeds City Council,30/09/2019,Resources and Housing,Leeds Building Services,Supplies and Services,Other Hired And Contracted Services,265,04/09/2019,1909-00276,0.00,20.25,R,Access Locksmiths (Leeds) Limited,No
Http://opendatacommunities.org/id/metropolitan-district-council/leeds,Leeds City Council,30/09/2019,Strategic Landlord,Housing Management,Income,Other Income,973,04/09/2019,1909-00277,0.00,350.58,R,Access Locksmiths (Leeds) Limited,No
Http://opendatacommunities.org/id/metropolitan-district-council/leeds,Leeds City Council,30/09/2019,Resources and Housing,Leeds Building Services,Supplies and Services,Operational Materials,205,09/09/2019,1909-00278,0.00,18.03,R,Access Locksmiths (Leeds) Limited,No
Http://opendatacommunities.org/id/metropolitan-district-council/leeds,Leeds City Council,30/09/2019,Resources and Housing,Leeds Building Services,Supplies and Services,Operational Materials,205,09/09/2019,1909-00279,0.00,2.60,R,Access Locksmiths (Leeds) Limited,No
Http://opendatacommunities.org/id/metropolitan-district-council/leeds,Leeds City Council,30/09/2019,Resources and Housing,Commercial Services,Supplies and Services,Operational Furniture And Equipment,203,13/09/2019,1909-00280,0.00,403.60,R,Access Locksmiths (Leeds) Limited,No
Http://opendatacommunities.org/id/metropolitan-district-council/leeds,Leeds City Council,30/09/2019,Resources and Housing,Corporate Property Management,Premises,Maintenance Of Buildings,101,13/09/2019,1909-00281,0.00,167.29,R,Access Locksmiths (Leeds) Limited,No
Http://opendatacommunities.org/id/metropolitan-district-council/leeds,Leeds City Council,30/09/2019,Strategic Landlord,Housing Management,Supplies and Services,Resaleable Materials,204,13/09/2019,1909-00282,0.00,144.36,R,Access Locksmiths (Leeds) Limited,No
Http://opendatacommunities.org/id/metropolitan-district-council/leeds,Leeds City Council,30/09/2019,Strategic Landlord,Property and Contracts,Premises,General Maintenance,104,13/09/2019,1909-00283,0.00,106.24,R,Access Locksmiths (Leeds) Limited,No
Http://opendatacommunities.org/id/metropolitan-district-council/leeds,Leeds City Council,30/09/2019,Strategic Landlord,Property and Contracts,Premises,General Maintenance,104,19/09/2019,1909-00284,0.00,127.63,R,Access Locksmiths (Leeds) Limited,No
Http://opendatacommunities.org/id/metropolitan-district-council/leeds,Leeds City Council,30/09/2019,Strategic Landlord,Property and Contracts,Premises,General Maintenance,104,19/09/2019,1909-00285,0.00,185.34,R,Access Locksmiths (Leeds) Limited,No
Http://opendatacommunities.org/id/metropolitan-district-council/leeds,Leeds City Council,30/09/2019,Strategic Landlord,Property and Contracts,Premises,General Maintenance,104,19/09/2019,1909-00286,0.00,97.24,R,Access Locksmiths (Leeds) Limited,No
Http://opendatacommunities.org/id/metropolitan-district-council/leeds,Leeds City Council,30/09/2019,Strategic Landlord,Property and Contracts,Premises,General Maintenance,104,26/09/2019,1909-00287,0.00,1058.00,R,Access Locksmiths (Leeds) Limited,No
Http://opendatacommunities.org/id/metropolitan-district-council/leeds,Leeds City Council,30/09/2019,Strategic Landlord,Property and Contracts,Premises,General Maintenance,104,26/09/2019,1909-00288,0.00,201.80,R,Access Locksmiths (Leeds) Limited,No
Http://opendatacommunities.org/id/metropolitan-district-council/leeds,Leeds City Council,30/09/2019,Strategic Landlord,Property and Contracts,Premises,General Maintenance,104,26/09/2019,1909-00289,0.00,199.58,R,Access Locksmiths (Leeds) Limited,No
Http://opendatacommunities.org/id/metropolitan-district-council/leeds,Leeds City Council,30/09/2019,Strategic Landlord,Property and Contracts,Premises,General Maintenance,104,26/09/2019,1909-00290,0.00,45.83,R,Access Locksmiths (Leeds) Limited,No
Http://opendatacommunities.org/id/metropolitan-district-council/leeds,Leeds City Council,30/09/2019,Strategic Landlord,Property and Contracts,Premises,General Maintenance,104,26/09/2019,1909-00291,0.00,216.26,R,Access Locksmiths (Leeds) Limited,No
Http://opendatacommunities.org/id/metropolitan-district-council/leeds,Leeds City Council,30/09/2019,Insurance,Insurance,Supplies and Services,Insurance Claims,248,18/09/2019,1909-00292,0.00,749.04,R,Accident Exchange Ltd,No
Http://opendatacommunities.org/id/metropolitan-district-council/leeds,Leeds City Council,30/09/2019,City Development,Libraries  Arts & Heritage,Supplies and Services,Other Hired And Contracted Services,265,30/09/2019,1909-00293,0.00,45.00,R,Ace Container Services Limited,No
Http://opendatacommunities.org/id/metropolitan-district-council/leeds,Leeds City Council,30/09/2019,Resources and Housing,Leeds Building Services,Supplies and Services,Other Hired And Contracted Services,265,19/09/2019,1909-00294,0.00,1925.00,R,Acme Facilities Group Ltd,No
Http://opendatacommunities.org/id/metropolitan-district-council/leeds,Leeds City Council,30/09/2019,Resources and Housing,Leeds Building Services,Supplies and Services,Other Hired And Contracted Services,265,27/09/2019,1909-00295,0.00,900.00,R,Acme Facilities Group Ltd,No
Http://opendatacommunities.org/id/metropolitan-district-council/leeds,Leeds City Council,30/09/2019,Adults and Health,Services For Older People - 65 And Over,Third Party Payments,Residential Care Dementia,571,18/09/2019,1909-00296,0.00,5889.16,R,Acorn Nursing Home,No
Http://opendatacommunities.org/id/metropolitan-district-council/leeds,Leeds City Council,30/09/2019,Adults and Health,Services For Older People - 65 And Over,Third Party Payments,Nursing Care Dementia,574,18/09/2019,1909-00297,0.00,1646.24,R,Acorn Nursing Home,No
Http://opendatacommunities.org/id/metropolitan-district-council/leeds,Leeds City Council,30/09/2019,City Development,Libraries  Arts & Heritage,Supplies and Services,Other Hired And Contracted Services,265,03/09/2019,1909-00298,0.00,435.00,R,Acorn Scaffolding (Yorkshire) Ltd,No
Http://opendatacommunities.org/id/metropolitan-district-council/leeds,Leeds City Council,30/09/2019,City Development,Libraries  Arts & Heritage,Supplies and Services,Other Hired And Contracted Services,265,20/09/2019,1909-00299,0.00,390.00,R,Acorn Scaffolding (Yorkshire) Ltd,No
Http://opendatacommunities.org/id/metropolitan-district-council/leeds,Leeds City Council,30/09/2019,Children and Families,Social Care,Third Party Payments,Services Rendered By Other Organisations,511,04/09/2019,1909-00300,0.00,546.00,R,Acorns Nursery,No
Http://opendatacommunities.org/id/metropolitan-district-council/leeds,Leeds City Council,30/09/2019,Children and Families,Social Care,Third Party Payments,Services Rendered By Other Organisations,511,06/09/2019,1909-00301,0.00,1124.45,R,Acorns Nursery,No
Http://opendatacommunities.org/id/metropolitan-district-council/leeds,Leeds City Council,30/09/2019,Adults and Health,Services For Older People - 65 And Over,Third Party Payments,Nursing Home,570,18/09/2019,1909-00302,0.00,33227.38,R,Acre Green,No
Http://opendatacommunities.org/id/metropolitan-district-council/leeds,Leeds City Council,30/09/2019,Adults and Health,Services For Older People - 65 And Over,Third Party Payments,Residential,580,18/09/2019,1909-00303,0.00,3742.60,R,Acre Green,No
Http://opendatacommunities.org/id/metropolitan-district-council/leeds,Leeds City Council,30/09/2019,Adults and Health,Services For Older People Under 65 P/Dis,Third Party Payments,Nursing Home,570,18/09/2019,1909-00304,0.00,2268.00,R,Acre Green,No
Http://opendatacommunities.org/id/metropolitan-district-council/leeds,Leeds City Council,30/09/2019,Adults and Health,Services For Older People Under 65 P/Dis,Third Party Payments,Residential,580,18/09/2019,1909-00305,0.00,1574.20,R,Acre Green,No
Http://opendatacommunities.org/id/metropolitan-district-council/leeds,Leeds City Council,30/09/2019,Children and Families,Social Care,Third Party Payments,Services Rendered By Other Organisations,511,04/09/2019,1909-00306,0.00,2281.50,R,Acre Wood Day Nursery,No
Http://opendatacommunities.org/id/metropolitan-district-council/leeds,Leeds City Council,30/09/2019,Children and Families,Social Care,Third Party Payments,Services Rendered By Other Organisations,511,06/09/2019,1909-00307,0.00,10271.63,R,Acre Wood Day Nursery,No
Http://opendatacommunities.org/id/metropolitan-district-council/leeds,Leeds City Council,30/09/2019,Children and Families,Social Care,Third Party Payments,Services Rendered By Voluntary Sector,505,27/09/2019,1909-00308,0.00,2394.74,R,Acre Wood Day Nursery,No
Http://opendatacommunities.org/id/metropolitan-district-council/leeds,Leeds City Council,30/09/2019,Resources and Housing,Leeds Building Services,Supplies and Services,Other Hired And Contracted Services,265,04/09/2019,1909-00309,0.00,147.26,R,Actavo (Leeds H & S),No
Http://opendatacommunities.org/id/metropolitan-district-council/leeds,Leeds City Council,30/09/2019,Resources and Housing,Leeds Building Services,Supplies and Services,Other Hired And Contracted Services,265,04/09/2019,1909-00310,0.00,176.70,R,Actavo (Leeds H & S),No
Http://opendatacommunities.org/id/metropolitan-district-council/leeds,Leeds City Council,30/09/2019,City Development,Highways,Supplies and Services,Operational Materials,205,06/09/2019,1909-00311,0.00,759.00,R,Actavo (Leeds H & S),No
Http://opendatacommunities.org/id/metropolitan-district-council/leeds,Leeds City Council,30/09/2019,City Development,Highways,Supplies and Services,Operational Materials,205,18/09/2019,1909-00312,0.00,484.00,R,Actavo (Leeds H & S),No
Http://opendatacommunities.org/id/metropolitan-district-council/leeds,Leeds City Council,30/09/2019,Children and Families,Social Care,Third Party Payments,Independent Fostering Agencies,509,27/09/2019,1909-00313,0.00,4776.48,R,Action For Children,No
Http://opendatacommunities.org/id/metropolitan-district-council/leeds,Leeds City Council,30/09/2019,Children and Families,Social Care,Third Party Payments,Independent Fostering Agencies,509,27/09/2019,1909-00314,0.00,4776.48,R,Action For Children,No
Http://opendatacommunities.org/id/metropolitan-district-council/leeds,Leeds City Council,30/09/2019,Children and Families,Social Care,Third Party Payments,Independent Fostering Agencies,509,24/09/2019,1909-00315,0.00,4776.48,R,Action For Children Services Ltd,No
Http://opendatacommunities.org/id/metropolitan-district-council/leeds,Leeds City Council,30/09/2019,Children and Families,Social Care,Third Party Payments,Placement Support,550,26/09/2019,1909-00316,0.00,503.82,R,Action For Children Services Ltd,No
Http://opendatacommunities.org/id/metropolitan-district-council/leeds,Leeds City Council,30/09/2019,City Development,Markets & City Centre Management,Supplies and Services,Publication And Promotion,267,27/09/2019,1909-00317,0.00,3500.00,R,Active Hire (Leeds) Ltd,No
Http://opendatacommunities.org/id/metropolitan-district-council/leeds,Leeds City Council,30/09/2019,Children and Families,Social Care,Third Party Payments,Services Rendered By Other Organisations,511,04/09/2019,1909-00318,0.00,507.00,R,Active Kids Yeadon Llp,No
Http://opendatacommunities.org/id/metropolitan-district-council/leeds,Leeds City Council,30/09/2019,Children and Families,Social Care,Third Party Payments,Services Rendered By Other Organisations,511,06/09/2019,1909-00319,0.00,4066.73,R,Active Kids Yeadon Llp,No
Http://opendatacommunities.org/id/metropolitan-district-council/leeds,Leeds City Council as Accountable Body,30/09/2019,Social Services Pooled Budgets,Leeds Community Equip Store Pooled Budgt,Supplies and Services,Other Equipment,203,13/09/2019,1909-00320,0.00,255.00,R,Active Mobility Centre Ltd,No
Http://opendatacommunities.org/id/metropolitan-district-council/leeds,Leeds City Council as Accountable Body,30/09/2019,Social Services Pooled Budgets,Leeds Community Equip Store Pooled Budgt,Supplies and Services,Other Equipment,203,13/09/2019,1909-00321,0.00,255.00,R,Active Mobility Centre Ltd,No
Http://opendatacommunities.org/id/metropolitan-district-council/leeds,Leeds City Council,30/09/2019,Communities and Environment,Cleaner Neighbourhood Teams,Premises,Removal Of Workplace Waste,126,04/09/2019,1909-00322,0.00,45.00,R,Acumen Waste Services Ltd,No
Http://opendatacommunities.org/id/metropolitan-district-council/leeds,Leeds City Council,30/09/2019,Communities and Environment,Waste Management,Supplies and Services,Recycling & Reuse Charges,234,04/09/2019,1909-00323,0.00,982.24,R,Acumen Waste Services Ltd,No
Http://opendatacommunities.org/id/metropolitan-district-council/leeds,Leeds City Council,30/09/2019,Communities and Environment,Cleaner Neighbourhood Teams,Premises,Removal Of Workplace Waste,126,06/09/2019,1909-00324,0.00,116.60,R,Acumen Waste Services Ltd,No
Http://opendatacommunities.org/id/metropolitan-district-council/leeds,Leeds City Council,30/09/2019,Communities and Environment,Cleaner Neighbourhood Teams,Premises,Removal Of Workplace Waste,126,06/09/2019,1909-00325,0.00,116.60,R,Acumen Waste Services Ltd,No
Http://opendatacommunities.org/id/metropolitan-district-council/leeds,Leeds City Council,30/09/2019,Communities and Environment,Cleaner Neighbourhood Teams,Premises,Removal Of Workplace Waste,126,06/09/2019,1909-00326,0.00,116.60,R,Acumen Waste Services Ltd,No
Http://opendatacommunities.org/id/metropolitan-district-council/leeds,Leeds City Council,30/09/2019,Communities and Environment,Cleaner Neighbourhood Teams,Premises,Removal Of Workplace Waste,126,06/09/2019,1909-00327,0.00,116.60,R,Acumen Waste Services Ltd,No
Http://opendatacommunities.org/id/metropolitan-district-council/leeds,Leeds City Council,30/09/2019,Communities and Environment,Cleaner Neighbourhood Teams,Premises,Removal Of Workplace Waste,126,06/09/2019,1909-00328,0.00,116.60,R,Acumen Waste Services Ltd,No
Http://opendatacommunities.org/id/metropolitan-district-council/leeds,Leeds City Council,30/09/2019,Communities and Environment,Cleaner Neighbourhood Teams,Premises,Removal Of Workplace Waste,126,06/09/2019,1909-00329,0.00,116.60,R,Acumen Waste Services Ltd,No
Http://opendatacommunities.org/id/metropolitan-district-council/leeds,Leeds City Council,30/09/2019,Communities and Environment,Cleaner Neighbourhood Teams,Premises,Removal Of Workplace Waste,126,06/09/2019,1909-00330,0.00,116.60,R,Acumen Waste Services Ltd,No
Http://opendatacommunities.org/id/metropolitan-district-council/leeds,Leeds City Council,30/09/2019,Communities and Environment,Cleaner Neighbourhood Teams,Premises,Removal Of Workplace Waste,126,06/09/2019,1909-00331,0.00,116.60,R,Acumen Waste Services Ltd,No
Http://opendatacommunities.org/id/metropolitan-district-council/leeds,Leeds City Council,30/09/2019,Communities and Environment,Cleaner Neighbourhood Teams,Premises,Removal Of Workplace Waste,126,11/09/2019,1909-00332,0.00,116.60,R,Acumen Waste Services Ltd,No
Http://opendatacommunities.org/id/metropolitan-district-council/leeds,Leeds City Council,30/09/2019,Communities and Environment,Cleaner Neighbourhood Teams,Premises,Removal Of Workplace Waste,126,11/09/2019,1909-00333,0.00,116.60,R,Acumen Waste Services Ltd,No
Http://opendatacommunities.org/id/metropolitan-district-council/leeds,Leeds City Council,30/09/2019,Communities and Environment,Cleaner Neighbourhood Teams,Premises,Removal Of Workplace Waste,126,11/09/2019,1909-00334,0.00,116.60,R,Acumen Waste Services Ltd,No
Http://opendatacommunities.org/id/metropolitan-district-council/leeds,Leeds City Council,30/09/2019,Communities and Environment,Cleaner Neighbourhood Teams,Premises,Removal Of Workplace Waste,126,11/09/2019,1909-00335,0.00,116.60,R,Acumen Waste Services Ltd,No
Http://opendatacommunities.org/id/metropolitan-district-council/leeds,Leeds City Council,30/09/2019,Communities and Environment,Cleaner Neighbourhood Teams,Premises,Removal Of Workplace Waste,126,11/09/2019,1909-00336,0.00,116.60,R,Acumen Waste Services Ltd,No
Http://opendatacommunities.org/id/metropolitan-district-council/leeds,Leeds City Council,30/09/2019,Communities and Environment,Waste Management,Supplies and Services,Recycling & Reuse Charges,234,11/09/2019,1909-00337,0.00,2961.53,R,Acumen Waste Services Ltd,No
Http://opendatacommunities.org/id/metropolitan-district-council/leeds,Leeds City Council,30/09/2019,Communities and Environment,Waste Management,Supplies and Services,Recycling & Reuse Charges,234,11/09/2019,1909-00338,0.00,6008.29,R,Acumen Waste Services Ltd,No
Http://opendatacommunities.org/id/metropolitan-district-council/leeds,Leeds City Council,30/09/2019,Communities and Environment,Cleaner Neighbourhood Teams,Premises,Removal Of Workplace Waste,126,19/09/2019,1909-00339,0.00,116.60,R,Acumen Waste Services Ltd,No
Http://opendatacommunities.org/id/metropolitan-district-council/leeds,Leeds City Council,30/09/2019,Communities and Environment,Cleaner Neighbourhood Teams,Premises,Removal Of Workplace Waste,126,19/09/2019,1909-00340,0.00,116.60,R,Acumen Waste Services Ltd,No
Http://opendatacommunities.org/id/metropolitan-district-council/leeds,Leeds City Council,30/09/2019,Communities and Environment,Cleaner Neighbourhood Teams,Premises,Removal Of Workplace Waste,126,19/09/2019,1909-00341,0.00,116.60,R,Acumen Waste Services Ltd,No
Http://opendatacommunities.org/id/metropolitan-district-council/leeds,Leeds City Council,30/09/2019,Communities and Environment,Cleaner Neighbourhood Teams,Premises,Removal Of Workplace Waste,126,19/09/2019,1909-00342,0.00,116.60,R,Acumen Waste Services Ltd,No
Http://opendatacommunities.org/id/metropolitan-district-council/leeds,Leeds City Council,30/09/2019,Communities and Environment,Cleaner Neighbourhood Teams,Premises,Removal Of Workplace Waste,126,19/09/2019,1909-00343,0.00,116.60,R,Acumen Waste Services Ltd,No
Http://opendatacommunities.org/id/metropolitan-district-council/leeds,Leeds City Council,30/09/2019,Communities and Environment,Cleaner Neighbourhood Teams,Premises,Removal Of Workplace Waste,126,19/09/2019,1909-00344,0.00,116.60,R,Acumen Waste Services Ltd,No
Http://opendatacommunities.org/id/metropolitan-district-council/leeds,Leeds City Council,30/09/2019,Communities and Environment,Cleaner Neighbourhood Teams,Premises,Removal Of Workplace Waste,126,19/09/2019,1909-00345,0.00,116.60,R,Acumen Waste Services Ltd,No
Http://opendatacommunities.org/id/metropolitan-district-council/leeds,Leeds City Council,30/09/2019,Communities and Environment,Cleaner Neighbourhood Teams,Premises,Removal Of Workplace Waste,126,19/09/2019,1909-00346,0.00,116.60,R,Acumen Waste Services Ltd,No
Http://opendatacommunities.org/id/metropolitan-district-council/leeds,Leeds City Council,30/09/2019,Communities and Environment,Waste Management,Supplies and Services,Recycling & Reuse Charges,234,19/09/2019,1909-00347,0.00,5077.93,R,Acumen Waste Services Ltd,No
Http://opendatacommunities.org/id/metropolitan-district-council/leeds,Leeds City Council,30/09/2019,Communities and Environment,Cleaner Neighbourhood Teams,Premises,Removal Of Workplace Waste,126,20/09/2019,1909-00348,0.00,116.60,R,Acumen Waste Services Ltd,No
Http://opendatacommunities.org/id/metropolitan-district-council/leeds,Leeds City Council,30/09/2019,Communities and Environment,Cleaner Neighbourhood Teams,Premises,Removal Of Workplace Waste,126,26/09/2019,1909-00349,0.00,116.60,R,Acumen Waste Services Ltd,No
Http://opendatacommunities.org/id/metropolitan-district-council/leeds,Leeds City Council,30/09/2019,Communities and Environment,Cleaner Neighbourhood Teams,Premises,Removal Of Workplace Waste,126,26/09/2019,1909-00350,0.00,116.60,R,Acumen Waste Services Ltd,No
Http://opendatacommunities.org/id/metropolitan-district-council/leeds,Leeds City Council,30/09/2019,Communities and Environment,Cleaner Neighbourhood Teams,Premises,Removal Of Workplace Waste,126,26/09/2019,1909-00351,0.00,116.60,R,Acumen Waste Services Ltd,No
Http://opendatacommunities.org/id/metropolitan-district-council/leeds,Leeds City Council,30/09/2019,Communities and Environment,Cleaner Neighbourhood Teams,Premises,Removal Of Workplace Waste,126,26/09/2019,1909-00352,0.00,116.60,R,Acumen Waste Services Ltd,No
Http://opendatacommunities.org/id/metropolitan-district-council/leeds,Leeds City Council,30/09/2019,Communities and Environment,Waste Management,Supplies and Services,Recycling & Reuse Charges,234,26/09/2019,1909-00353,0.00,3995.59,R,Acumen Waste Services Ltd,No
Http://opendatacommunities.org/id/metropolitan-district-council/leeds,Leeds City Council,30/09/2019,Communities and Environment,Cleaner Neighbourhood Teams,Premises,Removal Of Workplace Waste,126,27/09/2019,1909-00354,0.00,50.00,R,Acumen Waste Services Ltd,No
Http://opendatacommunities.org/id/metropolitan-district-council/leeds,Leeds City Council,30/09/2019,Communities and Environment,Cleaner Neighbourhood Teams,Premises,Removal Of Workplace Waste,126,27/09/2019,1909-00355,0.00,116.60,R,Acumen Waste Services Ltd,No
Http://opendatacommunities.org/id/metropolitan-district-council/leeds,Leeds City Council,30/09/2019,Resources and Housing,Shared Services,Supplies and Services,Other Hired And Contracted Services,265,20/09/2019,1909-00356,0.00,96.44,R,Ad3 Envelope Printers Limited,No
Http://opendatacommunities.org/id/metropolitan-district-council/leeds,Leeds City Council,30/09/2019,Resources and Housing,Shared Services,Supplies and Services,Operational Materials,205,30/09/2019,1909-00357,0.00,1131.75,R,Ad3 Envelope Printers Limited,No
Http://opendatacommunities.org/id/metropolitan-district-council/leeds,Leeds City Council,30/09/2019,Resources and Housing,Shared Services,Supplies and Services,Other Hired And Contracted Services,265,30/09/2019,1909-00358,0.00,56.77,R,Ad3 Envelope Printers Limited,No
Http://opendatacommunities.org/id/metropolitan-district-council/leeds,Leeds City Council,30/09/2019,Adults and Health,Services For Older People - 65 And Over,Third Party Payments,Nursing Home,570,18/09/2019,1909-00359,0.00,2480.00,R,Adbolton Hall,No
Http://opendatacommunities.org/id/metropolitan-district-council/leeds,Leeds City Council,30/09/2019,Adults and Health,Services For Older People Under 65 P/Dis,Supplies and Services,Operational Furniture And Equipment,203,13/09/2019,1909-00360,0.00,1300.00,R,Addictive Audio,No
Http://opendatacommunities.org/id/metropolitan-district-council/leeds,Leeds City Council,30/09/2019,City Development,Asset Management Services,Support Services,Legal Disbursements,411,30/09/2019,1909-00361,0.00,1800.00,R,Addleshaw Goddard Llp,No
Http://opendatacommunities.org/id/metropolitan-district-council/leeds,Leeds City Council,30/09/2019,Resources and Housing,Technology  ,Employees,Agency Staff,8,31/07/2019,1909-00362,0.00,17957.05,R,Adecco Alfred Marks,Yes
Http://opendatacommunities.org/id/metropolitan-district-council/leeds,Leeds City Council,30/09/2019,Resources and Housing,Technology  ,Employees,Agency Staff,8,12/08/2019,1909-00363,0.00,28846.72,R,Adecco Alfred Marks,Yes
Http://opendatacommunities.org/id/metropolitan-district-council/leeds,Leeds City Council,30/09/2019,Resources and Housing,Technology  ,Employees,Agency Staff,8,15/08/2019,1909-00364,0.00,8408.35,R,Adecco Alfred Marks,Yes
Http://opendatacommunities.org/id/metropolitan-district-council/leeds,Leeds City Council,30/09/2019,Resources and Housing,Technology  ,Employees,Agency Staff,8,27/08/2019,1909-00365,0.00,54177.78,R,Adecco Alfred Marks,Yes
Http://opendatacommunities.org/id/metropolitan-district-council/leeds,Leeds City Council,30/09/2019,Strategic Landlord,Housing Management,Supplies and Services,Grants To Voluntary Organisations,293,06/09/2019,1909-00366,0.00,29.99,R,Adel Crag Community Association,No
Http://opendatacommunities.org/id/metropolitan-district-council/leeds,Leeds City Council,30/09/2019,Strategic Accounts,Miscellaneous,Supplies and Services,Non-Recurring Grants,227,16/09/2019,1909-00367,0.00,50.00,R,Adel Crag Community Association,No
Http://opendatacommunities.org/id/metropolitan-district-council/leeds,Leeds City Council,30/09/2019,Children and Families,Social Care,Third Party Payments,Services Rendered By Voluntary Sector,505,06/09/2019,1909-00368,0.00,6224.25,R,Adel Pre School,No
Http://opendatacommunities.org/id/metropolitan-district-council/leeds,Leeds City Council,30/09/2019,Children and Families,Social Care  ,Transport,Fuel (Non LCC Supplies),321,30/07/2019,1909-00369,0.00,40.00,R,Adel Sf Connect,Yes
Http://opendatacommunities.org/id/metropolitan-district-council/leeds,Leeds City Council,30/09/2019,City Development,Libraries  Arts & Heritage  ,Supplies and Services,Teaching Materials,202,13/08/2019,1909-00370,0.00,80.83,R,Adelaide Walker Llp,Yes
Http://opendatacommunities.org/id/metropolitan-district-council/leeds,Leeds City Council,30/09/2019,Children and Families,Social Care,Third Party Payments,Services Rendered By Other Organisations,511,04/09/2019,1909-00371,0.00,273.00,R,REDACTED PERSONAL DATA,No
Http://opendatacommunities.org/id/metropolitan-district-council/leeds,Leeds City Council,30/09/2019,Children and Families,Social Care,Third Party Payments,Services Rendered By Other Organisations,511,06/09/2019,1909-00372,0.00,225.75,R,REDACTED PERSONAL DATA,No
Http://opendatacommunities.org/id/metropolitan-district-council/leeds,Leeds City Council,30/09/2019,Children and Families,Social Care,Third Party Payments,Services Rendered By Other Organisations,511,06/09/2019,1909-00373,0.00,600.93,R,REDACTED PERSONAL DATA,No
Http://opendatacommunities.org/id/metropolitan-district-council/leeds,Leeds City Council,30/09/2019,Children and Families,Social Care,Third Party Payments,Placement Support,550,03/09/2019,1909-00374,0.00,200.00,R,Adele Watiez,No
Http://opendatacommunities.org/id/metropolitan-district-council/leeds,Leeds City Council,30/09/2019,Children and Families,Social Care,Third Party Payments,Placement Support,550,26/09/2019,1909-00375,0.00,200.00,R,Adele Watiez,No
Http://opendatacommunities.org/id/metropolitan-district-council/leeds,Leeds City Council,30/09/2019,Resources and Housing,Leeds Building Services,Supplies and Services,Operational Materials,205,03/09/2019,1909-00376,0.00,475.10,R,Adi Global,No
Http://opendatacommunities.org/id/metropolitan-district-council/leeds,Leeds City Council,30/09/2019,Resources and Housing,Leeds Building Services,Supplies and Services,Operational Materials,205,03/09/2019,1909-00377,0.00,649.34,R,Adi Global,No
Http://opendatacommunities.org/id/metropolitan-district-council/leeds,Leeds City Council,30/09/2019,Resources and Housing,Leeds Building Services,Supplies and Services,Operational Materials,205,03/09/2019,1909-00378,0.00,345.70,R,Adi Global,No
Http://opendatacommunities.org/id/metropolitan-district-council/leeds,Leeds City Council,30/09/2019,Resources and Housing,Leeds Building Services,Supplies and Services,Operational Materials,205,10/09/2019,1909-00379,0.00,625.56,R,Adi Global,No
Http://opendatacommunities.org/id/metropolitan-district-council/leeds,Leeds City Council,30/09/2019,Resources and Housing,Leeds Building Services,Supplies and Services,Operational Materials,205,11/09/2019,1909-00380,0.00,187.08,R,Adi Global,No
Http://opendatacommunities.org/id/metropolitan-district-council/leeds,Leeds City Council,30/09/2019,Resources and Housing,Leeds Building Services,Supplies and Services,Operational Materials,205,12/09/2019,1909-00381,0.00,295.45,R,Adi Global,No
Http://opendatacommunities.org/id/metropolitan-district-council/leeds,Leeds City Council,30/09/2019,Resources and Housing,Leeds Building Services,Supplies and Services,Operational Materials,205,12/09/2019,1909-00382,0.00,29.97,R,Adi Global,No
Http://opendatacommunities.org/id/metropolitan-district-council/leeds,Leeds City Council,30/09/2019,Resources and Housing,Leeds Building Services,Supplies and Services,Operational Materials,205,12/09/2019,1909-00383,0.00,98.28,R,Adi Global,No
Http://opendatacommunities.org/id/metropolitan-district-council/leeds,Leeds City Council,30/09/2019,Resources and Housing,Leeds Building Services,Supplies and Services,Operational Materials,205,12/09/2019,1909-00384,0.00,243.00,R,Adi Global,No
Http://opendatacommunities.org/id/metropolitan-district-council/leeds,Leeds City Council,30/09/2019,Resources and Housing,Leeds Building Services,Supplies and Services,Operational Materials,205,12/09/2019,1909-00385,0.00,1051.33,R,Adi Global,No
Http://opendatacommunities.org/id/metropolitan-district-council/leeds,Leeds City Council,30/09/2019,Resources and Housing,Leeds Building Services,Supplies and Services,Operational Materials,205,13/09/2019,1909-00386,0.00,5804.95,R,Adi Global,No
Http://opendatacommunities.org/id/metropolitan-district-council/leeds,Leeds City Council,30/09/2019,Resources and Housing,Leeds Building Services,Supplies and Services,Operational Materials,205,27/09/2019,1909-00387,0.00,32.13,R,Adi Global,No
Http://opendatacommunities.org/id/metropolitan-district-council/leeds,Leeds City Council,30/09/2019,City Development,Libraries  Arts & Heritage  ,Supplies and Services,Computer Software & Equipment,214,02/08/2019,1909-00388,0.00,9.98,R,Adobe Photogphy Plan,Yes
Http://opendatacommunities.org/id/metropolitan-district-council/leeds,Leeds City Council,30/09/2019,Children and Families,Social Care,Third Party Payments,Independent Fostering Agencies,509,05/09/2019,1909-00389,0.00,3345.44,R,Adolescent And Childrens Trust,No
Http://opendatacommunities.org/id/metropolitan-district-council/leeds,Leeds City Council,30/09/2019,Children and Families,Social Care,Third Party Payments,Independent Fostering Agencies,509,05/09/2019,1909-00390,0.00,2974.38,R,Adolescent And Childrens Trust,No
Http://opendatacommunities.org/id/metropolitan-district-council/leeds,Leeds City Council,30/09/2019,Children and Families,Social Care,Third Party Payments,Independent Fostering Agencies,509,06/09/2019,1909-00391,0.00,698.54,R,Adolescent And Childrens Trust,No
Http://opendatacommunities.org/id/metropolitan-district-council/leeds,Leeds City Council,30/09/2019,Children and Families,Social Care,Third Party Payments,Independent Fostering Agencies,509,06/09/2019,1909-00392,0.00,673.62,R,Adolescent And Childrens Trust,No
Http://opendatacommunities.org/id/metropolitan-district-council/leeds,Leeds City Council,30/09/2019,Children and Families,Social Care,Third Party Payments,Independent Fostering Agencies,509,06/09/2019,1909-00393,0.00,315.18,R,Adolescent And Childrens Trust,No
Http://opendatacommunities.org/id/metropolitan-district-council/leeds,Leeds City Council,30/09/2019,Children and Families,Social Care,Third Party Payments,Independent Fostering Agencies,509,06/09/2019,1909-00394,0.00,710.19,R,Adolescent And Childrens Trust,No
Http://opendatacommunities.org/id/metropolitan-district-council/leeds,Leeds City Council,30/09/2019,Children and Families,Social Care,Third Party Payments,Independent Fostering Agencies,509,06/09/2019,1909-00395,0.00,710.19,R,Adolescent And Childrens Trust,No
Http://opendatacommunities.org/id/metropolitan-district-council/leeds,Leeds City Council,30/09/2019,Children and Families,Social Care,Third Party Payments,Independent Fostering Agencies,509,06/09/2019,1909-00396,0.00,724.68,R,Adolescent And Childrens Trust,No
Http://opendatacommunities.org/id/metropolitan-district-council/leeds,Leeds City Council,30/09/2019,Children and Families,Social Care,Third Party Payments,Independent Fostering Agencies,509,06/09/2019,1909-00397,0.00,724.68,R,Adolescent And Childrens Trust,No
Http://opendatacommunities.org/id/metropolitan-district-council/leeds,Leeds City Council,30/09/2019,Children and Families,Social Care,Third Party Payments,Independent Fostering Agencies,509,06/09/2019,1909-00398,0.00,1965.24,R,Adolescent And Childrens Trust,No
Http://opendatacommunities.org/id/metropolitan-district-council/leeds,Leeds City Council,30/09/2019,Children and Families,Social Care,Third Party Payments,Independent Fostering Agencies,509,06/09/2019,1909-00399,0.00,2945.00,R,Adolescent And Childrens Trust,No
Http://opendatacommunities.org/id/metropolitan-district-council/leeds,Leeds City Council,30/09/2019,Children and Families,Social Care,Third Party Payments,Independent Fostering Agencies,509,18/09/2019,1909-00400,0.00,698.54,R,Adolescent And Childrens Trust,No
Http://opendatacommunities.org/id/metropolitan-district-council/leeds,Leeds City Council,30/09/2019,Children and Families,Social Care,Third Party Payments,Independent Fostering Agencies,509,18/09/2019,1909-00401,0.00,710.19,R,Adolescent And Childrens Trust,No
Http://opendatacommunities.org/id/metropolitan-district-council/leeds,Leeds City Council,30/09/2019,Children and Families,Social Care,Third Party Payments,Independent Fostering Agencies,509,18/09/2019,1909-00402,0.00,835.70,R,Adolescent And Childrens Trust,No
Http://opendatacommunities.org/id/metropolitan-district-council/leeds,Leeds City Council,30/09/2019,Resources and Housing,Corporate Property Management,Premises,Maintenance Of Buildings,101,19/09/2019,1909-00403,0.00,1428.93,R,Adt Fire And Security Plc,No
Http://opendatacommunities.org/id/metropolitan-district-council/leeds,Leeds City Council,30/09/2019,Strategic Landlord,Housing Management,Premises,Premises Security Services,162,27/09/2019,1909-00404,0.00,154.95,R,Adt Fire And Security Plc,No
Http://opendatacommunities.org/id/metropolitan-district-council/leeds,Leeds City Council as Accountable Body,30/09/2019,Social Services Pooled Budgets,Jcs For People With Learning Disabilitie,Third Party Payments,Residential,580,06/09/2019,1909-00405,0.00,1332.20,R,Adult Placement Services,No
Http://opendatacommunities.org/id/metropolitan-district-council/leeds,Leeds City Council,30/09/2019,City Development,Recreation,Supplies and Services,External Audit Fees,261,27/09/2019,1909-00406,0.00,135.00,R,Advance Stocks Ltd,No
Http://opendatacommunities.org/id/metropolitan-district-council/leeds,Leeds City Council,30/09/2019,City Development,Recreation,Supplies and Services,External Audit Fees,261,27/09/2019,1909-00407,0.00,85.00,R,Advance Stocks Ltd,No
Http://opendatacommunities.org/id/metropolitan-district-council/leeds,Leeds City Council,30/09/2019,City Development,Recreation  ,Supplies and Services,Office Furniture & Equipment,201,15/08/2019,1909-00408,0.00,469.62,R,Advanced Moulds Ltd,Yes
Http://opendatacommunities.org/id/metropolitan-district-council/leeds,Leeds City Council,30/09/2019,Resources and Housing,HRA Council Housing Growth Programme,Capital,Land,1,05/09/2019,1909-00409,0.00,100000.00,C,Advantage Property Lawyers,No
Http://opendatacommunities.org/id/metropolitan-district-council/leeds,Leeds City Council,30/09/2019,Resources and Housing,HRA Council Housing Growth Programme,Capital,Land,1,19/09/2019,1909-00410,0.00,65000.00,C,Advantage Property Lawyers,No
Http://opendatacommunities.org/id/metropolitan-district-council/leeds,Leeds City Council as Accountable Body,30/09/2019,Social Services Pooled Budgets,Jcs For People With Learning Disabilitie,Third Party Payments,Residential,580,18/09/2019,1909-00411,0.00,17213.56,R,Advitam Ltd,No
Http://opendatacommunities.org/id/metropolitan-district-council/leeds,Leeds City Council as Accountable Body,30/09/2019,Social Services Pooled Budgets,Jcs For People With Learning Disabilitie,Third Party Payments,Day Centre,564,25/09/2019,1909-00412,0.00,454.20,R,Advitam Ltd,No
Http://opendatacommunities.org/id/metropolitan-district-council/leeds,Leeds City Council as Accountable Body,30/09/2019,Social Services Pooled Budgets,Jcs For People With Learning Disabilitie,Third Party Payments,Other Agency Services,561,26/09/2019,1909-00413,0.00,135.00,R,Advonet,No
Http://opendatacommunities.org/id/metropolitan-district-council/leeds,Leeds City Council,30/09/2019,Adults and Health,Services For Older People - 65 And Over,Third Party Payments,Payments To Voluntary Organisations,561,27/09/2019,1909-00414,0.00,103916.67,R,Advonet,No
Http://opendatacommunities.org/id/metropolitan-district-council/leeds,Leeds City Council,30/09/2019,Adults and Health,Services For Adults Under 65 Mental/Dis,Third Party Payments,Fees - Level 4,520,03/09/2019,1909-00415,0.00,223.22,R,Ae Bia Assessments Limited,No
Http://opendatacommunities.org/id/metropolitan-district-council/leeds,Leeds City Council,30/09/2019,Adults and Health,Services For Adults Under 65 Mental/Dis,Third Party Payments,Fees - Level 4,520,11/09/2019,1909-00416,0.00,200.00,R,Ae Bia Assessments Limited,No
Http://opendatacommunities.org/id/metropolitan-district-council/leeds,Leeds City Council,30/09/2019,Adults and Health,Services For Adults Under 65 Mental/Dis,Third Party Payments,Fees - Level 4,520,11/09/2019,1909-00417,0.00,248.16,R,Ae Bia Assessments Limited,No
Http://opendatacommunities.org/id/metropolitan-district-council/leeds,Leeds City Council,30/09/2019,Adults and Health,Services For Adults Under 65 Mental/Dis,Third Party Payments,Fees - Level 4,520,11/09/2019,1909-00418,0.00,200.00,R,Ae Bia Assessments Limited,No
Http://opendatacommunities.org/id/metropolitan-district-council/leeds,Leeds City Council,30/09/2019,Adults and Health,Services For Adults Under 65 Mental/Dis,Third Party Payments,Fees - Level 4,520,27/09/2019,1909-00419,0.00,248.16,R,Ae Bia Assessments Limited,No
Http://opendatacommunities.org/id/metropolitan-district-council/leeds,Leeds City Council,30/09/2019,City Development,Highways,Capital,Other Costs,7,18/09/2019,1909-00420,0.00,24708.69,C,Aecom Limited,No
Http://opendatacommunities.org/id/metropolitan-district-council/leeds,Leeds City Council,30/09/2019,City Development,Highways,Capital,Other Costs,7,18/09/2019,1909-00421,0.00,23699.05,C,Aecom Limited,No
Http://opendatacommunities.org/id/metropolitan-district-council/leeds,Leeds City Council,30/09/2019,Adults and Health,Services For Adults Under 65 Mental/Dis,Third Party Payments,Home Care,568,04/09/2019,1909-00422,0.00,852.60,R,Aegis Care Solutions Ltd,No
Http://opendatacommunities.org/id/metropolitan-district-council/leeds,Leeds City Council,30/09/2019,Adults and Health,Services For Adults Under 65 Mental/Dis,Third Party Payments,Home Care,568,04/09/2019,1909-00423,0.00,403.20,R,Aegis Care Solutions Ltd,No
Http://opendatacommunities.org/id/metropolitan-district-council/leeds,Leeds City Council,30/09/2019,City Development,Libraries  Arts & Heritage,Supplies and Services,Other Hired And Contracted Services,265,26/09/2019,1909-00424,0.00,350.00,R,Aesg Ltd,No
Http://opendatacommunities.org/id/metropolitan-district-council/leeds,Leeds City Council,30/09/2019,City Development,Libraries  Arts & Heritage,Supplies and Services,Other Hired And Contracted Services,265,26/09/2019,1909-00425,0.00,350.00,R,Aesg Ltd,No
Http://opendatacommunities.org/id/metropolitan-district-council/leeds,Leeds City Council,30/09/2019,City Development,Libraries  Arts & Heritage,Supplies and Services,Other Hired And Contracted Services,265,26/09/2019,1909-00426,0.00,4341.00,R,Aesg Ltd,No
Http://opendatacommunities.org/id/metropolitan-district-council/leeds,Leeds City Council,30/09/2019,City Development,Libraries  Arts & Heritage,Supplies and Services,Other Hired And Contracted Services,265,26/09/2019,1909-00427,0.00,149.00,R,Aesg Ltd,No
Http://opendatacommunities.org/id/metropolitan-district-council/leeds,Leeds City Council,30/09/2019,City Development,Libraries  Arts & Heritage,Supplies and Services,Operational Furniture And Equipment,203,27/09/2019,1909-00428,0.00,420.00,R,Aesg Ltd,No
Http://opendatacommunities.org/id/metropolitan-district-council/leeds,Leeds City Council,30/09/2019,Communities and Environment,Parks and Countryside,Supplies and Services,Other Hired And Contracted Services,265,27/09/2019,1909-00429,0.00,25161.00,R,Aesg Ltd,No
Http://opendatacommunities.org/id/metropolitan-district-council/leeds,Leeds City Council,30/09/2019,Resources and Housing,HRA Housing Leeds,Capital,Other Costs,7,26/09/2019,1909-00430,0.00,100.00,C,REDACTED PERSONAL DATA,No
Http://opendatacommunities.org/id/metropolitan-district-council/leeds,Leeds City Council,30/09/2019,Adults and Health,Services For Older People - 65 And Over,Third Party Payments,Home Care,568,03/09/2019,1909-00431,0.00,10.71,R,Affinity Trust,No
Http://opendatacommunities.org/id/metropolitan-district-council/leeds,Leeds City Council,30/09/2019,Adults and Health,Services For Older People - 65 And Over,Third Party Payments,Home Care,568,03/09/2019,1909-00432,0.00,511.36,R,Affinity Trust,No
Http://opendatacommunities.org/id/metropolitan-district-council/leeds,Leeds City Council as Accountable Body,30/09/2019,Social Services Pooled Budgets,Jcs For People With Learning Disabilitie,Third Party Payments,Day Centre,564,06/09/2019,1909-00433,0.00,1899.81,R,Affinity Trust,No
Http://opendatacommunities.org/id/metropolitan-district-council/leeds,Leeds City Council as Accountable Body,30/09/2019,Social Services Pooled Budgets,Jcs For People With Learning Disabilitie,Third Party Payments,Day Centre,564,06/09/2019,1909-00434,0.00,1655.28,R,Affinity Trust,No
Http://opendatacommunities.org/id/metropolitan-district-council/leeds,Leeds City Council as Accountable Body,30/09/2019,Social Services Pooled Budgets,Jcs For People With Learning Disabilitie,Third Party Payments,Home Care,568,06/09/2019,1909-00435,0.00,127.84,R,Affinity Trust,No
Http://opendatacommunities.org/id/metropolitan-district-council/leeds,Leeds City Council as Accountable Body,30/09/2019,Social Services Pooled Budgets,Jcs For People With Learning Disabilitie,Third Party Payments,Home Care,568,11/09/2019,1909-00436,0.00,79.90,R,Affinity Trust,No
Http://opendatacommunities.org/id/metropolitan-district-council/leeds,Leeds City Council,30/09/2019,Adults and Health,Services For Older People - 65 And Over,Third Party Payments,HCAIT Community Support,575,17/09/2019,1909-00437,0.00,575.28,R,Affinity Trust,No
Http://opendatacommunities.org/id/metropolitan-district-council/leeds,Leeds City Council,30/09/2019,Adults and Health,Services For Older People Under 65 P/Dis,Third Party Payments,Home Care,568,17/09/2019,1909-00438,0.00,575.28,R,Affinity Trust,No
Http://opendatacommunities.org/id/metropolitan-district-council/leeds,Leeds City Council,30/09/2019,Adults and Health,Services For Older People Under 65 P/Dis,Third Party Payments,Home Care,568,17/09/2019,1909-00439,0.00,526.68,R,Affinity Trust,No
Http://opendatacommunities.org/id/metropolitan-district-council/leeds,Leeds City Council as Accountable Body,30/09/2019,Social Services Pooled Budgets,Jcs For People With Learning Disabilitie,Third Party Payments,Home Care,568,17/09/2019,1909-00440,0.00,804.48,R,Affinity Trust,No
Http://opendatacommunities.org/id/metropolitan-district-council/leeds,Leeds City Council,30/09/2019,Adults and Health,Services For Older People - 65 And Over,Third Party Payments,Home Care,568,20/09/2019,1909-00441,0.00,511.36,R,Affinity Trust,No
Http://opendatacommunities.org/id/metropolitan-district-council/leeds,Leeds City Council as Accountable Body,30/09/2019,Social Services Pooled Budgets,Jcs For People With Learning Disabilitie,Third Party Payments,Home Care,568,20/09/2019,1909-00442,0.00,639.20,R,Affinity Trust,No
Http://opendatacommunities.org/id/metropolitan-district-council/leeds,Leeds City Council as Accountable Body,30/09/2019,Social Services Pooled Budgets,Jcs For People With Learning Disabilitie,Third Party Payments,Home Care,568,20/09/2019,1909-00443,0.00,319.60,R,Affinity Trust,No
Http://opendatacommunities.org/id/metropolitan-district-council/leeds,Leeds City Council as Accountable Body,30/09/2019,Social Services Pooled Budgets,Jcs For People With Learning Disabilitie,Third Party Payments,Home Care,568,20/09/2019,1909-00444,0.00,319.60,R,Affinity Trust,No
Http://opendatacommunities.org/id/metropolitan-district-council/leeds,Leeds City Council as Accountable Body,30/09/2019,Social Services Pooled Budgets,Jcs For People With Learning Disabilitie,Third Party Payments,Home Care,568,20/09/2019,1909-00445,0.00,1106.62,R,Affinity Trust,No
Http://opendatacommunities.org/id/metropolitan-district-council/leeds,Leeds City Council as Accountable Body,30/09/2019,Social Services Pooled Budgets,Jcs For People With Learning Disabilitie,Third Party Payments,Home Care,568,20/09/2019,1909-00446,0.00,255.68,R,Affinity Trust,No
Http://opendatacommunities.org/id/metropolitan-district-council/leeds,Leeds City Council as Accountable Body,30/09/2019,Social Services Pooled Budgets,Jcs For People With Learning Disabilitie,Third Party Payments,Home Care,568,20/09/2019,1909-00447,0.00,639.20,R,Affinity Trust,No
Http://opendatacommunities.org/id/metropolitan-district-council/leeds,Leeds City Council as Accountable Body,30/09/2019,Social Services Pooled Budgets,Jcs For People With Learning Disabilitie,Third Party Payments,Home Care,568,20/09/2019,1909-00448,0.00,535.33,R,Affinity Trust,No
Http://opendatacommunities.org/id/metropolitan-district-council/leeds,Leeds City Council as Accountable Body,30/09/2019,Social Services Pooled Budgets,Jcs For People With Learning Disabilitie,Third Party Payments,Home Care,568,20/09/2019,1909-00449,0.00,639.20,R,Affinity Trust,No
Http://opendatacommunities.org/id/metropolitan-district-council/leeds,Leeds City Council as Accountable Body,30/09/2019,Social Services Pooled Budgets,Jcs For People With Learning Disabilitie,Third Party Payments,Home Care,568,20/09/2019,1909-00450,0.00,408.64,R,Affinity Trust,No
Http://opendatacommunities.org/id/metropolitan-district-council/leeds,Leeds City Council as Accountable Body,30/09/2019,Social Services Pooled Budgets,Jcs For People With Learning Disabilitie,Third Party Payments,Home Care,568,20/09/2019,1909-00451,0.00,2277.15,R,Affinity Trust,No
Http://opendatacommunities.org/id/metropolitan-district-council/leeds,Leeds City Council as Accountable Body,30/09/2019,Social Services Pooled Budgets,Jcs For People With Learning Disabilitie,Third Party Payments,Home Care,568,20/09/2019,1909-00452,0.00,1078.65,R,Affinity Trust,No
Http://opendatacommunities.org/id/metropolitan-district-council/leeds,Leeds City Council as Accountable Body,30/09/2019,Social Services Pooled Budgets,Jcs For People With Learning Disabilitie,Third Party Payments,Home Care,568,20/09/2019,1909-00453,0.00,408.00,R,Affinity Trust,No
Http://opendatacommunities.org/id/metropolitan-district-council/leeds,Leeds City Council as Accountable Body,30/09/2019,Social Services Pooled Budgets,Jcs For People With Learning Disabilitie,Third Party Payments,Home Care,568,20/09/2019,1909-00454,0.00,639.20,R,Affinity Trust,No
Http://opendatacommunities.org/id/metropolitan-district-council/leeds,Leeds City Council as Accountable Body,30/09/2019,Social Services Pooled Budgets,Jcs For People With Learning Disabilitie,Third Party Payments,Home Care,568,20/09/2019,1909-00455,0.00,575.28,R,Affinity Trust,No
Http://opendatacommunities.org/id/metropolitan-district-council/leeds,Leeds City Council as Accountable Body,30/09/2019,Social Services Pooled Budgets,Jcs For People With Learning Disabilitie,Third Party Payments,Home Care,568,20/09/2019,1909-00456,0.00,1366.29,R,Affinity Trust,No
Http://opendatacommunities.org/id/metropolitan-district-council/leeds,Leeds City Council as Accountable Body,30/09/2019,Social Services Pooled Budgets,Jcs For People With Learning Disabilitie,Third Party Payments,Home Care,568,20/09/2019,1909-00457,0.00,998.75,R,Affinity Trust,No
Http://opendatacommunities.org/id/metropolitan-district-council/leeds,Leeds City Council as Accountable Body,30/09/2019,Social Services Pooled Budgets,Jcs For People With Learning Disabilitie,Third Party Payments,Home Care,568,24/09/2019,1909-00458,0.00,2752.80,R,Affinity Trust,No
Http://opendatacommunities.org/id/metropolitan-district-council/leeds,Leeds City Council as Accountable Body,30/09/2019,Social Services Pooled Budgets,Jcs For People With Learning Disabilitie,Third Party Payments,Home Care,568,24/09/2019,1909-00459,0.00,1560.00,R,Affinity Trust,No
Http://opendatacommunities.org/id/metropolitan-district-council/leeds,Leeds City Council as Accountable Body,30/09/2019,Social Services Pooled Budgets,Jcs For People With Learning Disabilitie,Third Party Payments,Home Care,568,24/09/2019,1909-00460,0.00,587.97,R,Affinity Trust,No
Http://opendatacommunities.org/id/metropolitan-district-council/leeds,Leeds City Council as Accountable Body,30/09/2019,Social Services Pooled Budgets,Jcs For People With Learning Disabilitie,Third Party Payments,Home Care,568,24/09/2019,1909-00461,0.00,1860.00,R,Affinity Trust,No
Http://opendatacommunities.org/id/metropolitan-district-council/leeds,Leeds City Council as Accountable Body,30/09/2019,Social Services Pooled Budgets,Jcs For People With Learning Disabilitie,Third Party Payments,Home Care,568,24/09/2019,1909-00462,0.00,1891.50,R,Affinity Trust,No
Http://opendatacommunities.org/id/metropolitan-district-council/leeds,Leeds City Council as Accountable Body,30/09/2019,Social Services Pooled Budgets,Jcs For People With Learning Disabilitie,Third Party Payments,Home Care,568,24/09/2019,1909-00463,0.00,991.98,R,Affinity Trust,No
Http://opendatacommunities.org/id/metropolitan-district-council/leeds,Leeds City Council,30/09/2019,Adults and Health,Services For Adults Under 65 Mental/Dis,Third Party Payments,Home Care,568,26/09/2019,1909-00464,0.00,511.36,R,Affinity Trust,No
Http://opendatacommunities.org/id/metropolitan-district-council/leeds,Leeds City Council,30/09/2019,Adults and Health,Services For Older People Under 65 P/Dis,Third Party Payments,Home Care,568,26/09/2019,1909-00465,0.00,925.10,R,Affinity Trust,No
Http://opendatacommunities.org/id/metropolitan-district-council/leeds,Leeds City Council as Accountable Body,30/09/2019,Social Services Pooled Budgets,Jcs For People With Learning Disabilitie,Third Party Payments,Day Centre,564,27/09/2019,1909-00466,0.00,1440.00,R,Affinity Trust,No
Http://opendatacommunities.org/id/metropolitan-district-council/leeds,Leeds City Council as Accountable Body,30/09/2019,Social Services Pooled Budgets,Jcs For People With Learning Disabilitie,Third Party Payments,Day Centre,564,27/09/2019,1909-00467,0.00,1065.33,R,Affinity Trust,No
Http://opendatacommunities.org/id/metropolitan-district-council/leeds,Leeds City Council as Accountable Body,30/09/2019,Social Services Pooled Budgets,Jcs For People With Learning Disabilitie,Third Party Payments,Day Centre,564,27/09/2019,1909-00468,0.00,402.24,R,Affinity Trust,No
Http://opendatacommunities.org/id/metropolitan-district-council/leeds,Leeds City Council as Accountable Body,30/09/2019,Social Services Pooled Budgets,Jcs For People With Learning Disabilitie,Third Party Payments,Day Centre,564,27/09/2019,1909-00469,0.00,1847.01,R,Affinity Trust,No
Http://opendatacommunities.org/id/metropolitan-district-council/leeds,Leeds City Council as Accountable Body,30/09/2019,Social Services Pooled Budgets,Jcs For People With Learning Disabilitie,Third Party Payments,Day Centre,564,27/09/2019,1909-00470,0.00,714.78,R,Affinity Trust,No
Http://opendatacommunities.org/id/metropolitan-district-council/leeds,Leeds City Council as Accountable Body,30/09/2019,Social Services Pooled Budgets,Jcs For People With Learning Disabilitie,Third Party Payments,Day Centre,564,27/09/2019,1909-00471,0.00,2346.40,R,Affinity Trust,No
Http://opendatacommunities.org/id/metropolitan-district-council/leeds,Leeds City Council as Accountable Body,30/09/2019,Social Services Pooled Budgets,Jcs For People With Learning Disabilitie,Third Party Payments,Day Centre,564,27/09/2019,1909-00472,0.00,1217.97,R,Affinity Trust,No
Http://opendatacommunities.org/id/metropolitan-district-council/leeds,Leeds City Council as Accountable Body,30/09/2019,Social Services Pooled Budgets,Jcs For People With Learning Disabilitie,Third Party Payments,Day Centre,564,27/09/2019,1909-00473,0.00,2031.48,R,Affinity Trust,No
Http://opendatacommunities.org/id/metropolitan-district-council/leeds,Leeds City Council as Accountable Body,30/09/2019,Social Services Pooled Budgets,Jcs For People With Learning Disabilitie,Third Party Payments,Home Care,568,27/09/2019,1909-00474,0.00,3126.62,R,Affinity Trust,No
Http://opendatacommunities.org/id/metropolitan-district-council/leeds,Leeds City Council as Accountable Body,30/09/2019,Social Services Pooled Budgets,Jcs For People With Learning Disabilitie,Third Party Payments,Home Care,568,27/09/2019,1909-00475,0.00,525.72,R,Affinity Trust,No
Http://opendatacommunities.org/id/metropolitan-district-council/leeds,Leeds City Council as Accountable Body,30/09/2019,Social Services Pooled Budgets,Jcs For People With Learning Disabilitie,Third Party Payments,Home Care,568,27/09/2019,1909-00476,0.00,1365.07,R,Affinity Trust,No
Http://opendatacommunities.org/id/metropolitan-district-council/leeds,Leeds City Council as Accountable Body,30/09/2019,Social Services Pooled Budgets,Jcs For People With Learning Disabilitie,Third Party Payments,Home Care,568,27/09/2019,1909-00477,0.00,1621.98,R,Affinity Trust,No
Http://opendatacommunities.org/id/metropolitan-district-council/leeds,Leeds City Council as Accountable Body,30/09/2019,Social Services Pooled Budgets,Jcs For People With Learning Disabilitie,Third Party Payments,Home Care,568,27/09/2019,1909-00478,0.00,1005.60,R,Affinity Trust,No
Http://opendatacommunities.org/id/metropolitan-district-council/leeds,Leeds City Council as Accountable Body,30/09/2019,Social Services Pooled Budgets,Jcs For People With Learning Disabilitie,Third Party Payments,Home Care,568,27/09/2019,1909-00479,0.00,360.00,R,Affinity Trust,No
Http://opendatacommunities.org/id/metropolitan-district-council/leeds,Leeds City Council as Accountable Body,30/09/2019,Social Services Pooled Budgets,Jcs For People With Learning Disabilitie,Third Party Payments,Home Care,568,27/09/2019,1909-00480,0.00,1540.27,R,Affinity Trust,No
Http://opendatacommunities.org/id/metropolitan-district-council/leeds,Leeds City Council as Accountable Body,30/09/2019,Social Services Pooled Budgets,Jcs For People With Learning Disabilitie,Transfer Payments,Personal Budgets,627,27/09/2019,1909-00481,0.00,677.86,R,Affinity Trust,No
Http://opendatacommunities.org/id/metropolitan-district-council/leeds,Leeds City Council as Accountable Body,30/09/2019,Social Services Pooled Budgets,Jcs For People With Learning Disabilitie,Third Party Payments,Sheltered Accommodation,569,18/09/2019,1909-00482,0.00,135329.22,R,Affinity Trust North Divisional Office,No
Http://opendatacommunities.org/id/metropolitan-district-council/leeds,Leeds City Council,30/09/2019,Communities and Environment,Parks And Countryside  ,Transport,External Hire -Occasional,304,21/08/2019,1909-00483,0.00,950.00,R,Afi Uplift,Yes
Http://opendatacommunities.org/id/metropolitan-district-council/leeds,Leeds City Council,30/09/2019,Communities and Environment,Parks And Countryside  ,Transport,External Hire -Occasional,304,21/08/2019,1909-00484,0.00,950.00,R,Afi Uplift,Yes
Http://opendatacommunities.org/id/metropolitan-district-council/leeds,Leeds City Council,30/09/2019,Communities and Environment,Parks And Countryside  ,Transport,External Hire -Occasional,304,21/08/2019,1909-00485,0.00,950.00,R,Afi Uplift,Yes
Http://opendatacommunities.org/id/metropolitan-district-council/leeds,Leeds City Council,30/09/2019,Communities and Environment,Parks And Countryside  ,Transport,External Hire -Occasional,304,21/08/2019,1909-00486,0.00,950.00,R,Afi Uplift,Yes
Http://opendatacommunities.org/id/metropolitan-district-council/leeds,Leeds City Council,30/09/2019,Insurance,Insurance,Supplies and Services,Insurance Claims,248,26/09/2019,1909-00487,0.00,2001.24,R,Ageas Insurance Limited,No
Http://opendatacommunities.org/id/metropolitan-district-council/leeds,Leeds City Council,30/09/2019,City Development,Highways,Supplies and Services,Operational Materials,205,20/09/2019,1909-00488,0.00,8102.92,R,Aggregate Industries Uk Ltd,No
Http://opendatacommunities.org/id/metropolitan-district-council/leeds,Leeds City Council,30/09/2019,City Development,Highways,Supplies and Services,Operational Materials,205,27/09/2019,1909-00489,0.00,4630.24,R,Aggregate Industries Uk Ltd,No
Http://opendatacommunities.org/id/metropolitan-district-council/leeds,Leeds City Council,30/09/2019,City Development,Libraries  Arts & Heritage,Supplies and Services,Teaching Materials,202,02/09/2019,1909-00490,0.00,28.90,R,Agnis Smallwood,No
Http://opendatacommunities.org/id/metropolitan-district-council/leeds,Leeds City Council,30/09/2019,City Development,Libraries  Arts & Heritage,Supplies and Services,Other Hired And Contracted Services,265,02/09/2019,1909-00491,0.00,175.00,R,Agnis Smallwood,No
Http://opendatacommunities.org/id/metropolitan-district-council/leeds,Leeds City Council,30/09/2019,Communities and Environment,Parks And Countryside  ,Supplies and Services,Other Hired And Contracted Services,265,08/08/2019,1909-00492,0.00,134.00,R,Ahvla,Yes
Http://opendatacommunities.org/id/metropolitan-district-council/leeds,Leeds City Council,30/09/2019,Children and Families,Learning,Supplies and Services,Teaching Materials,202,06/09/2019,1909-00493,0.00,36.03,R,Aid Training & Operations Ltd,No
Http://opendatacommunities.org/id/metropolitan-district-council/leeds,Leeds City Council as Accountable Body,30/09/2019,Social Services Pooled Budgets,Leeds Community Equip Store Pooled Budgt,Supplies and Services,Other Equipment,203,06/09/2019,1909-00494,0.00,2417.50,R,Aidapt Bathrooms Ltd,No
Http://opendatacommunities.org/id/metropolitan-district-council/leeds,Leeds City Council as Accountable Body,30/09/2019,Social Services Pooled Budgets,Leeds Community Equip Store Pooled Budgt,Supplies and Services,Other Equipment,203,06/09/2019,1909-00495,0.00,1045.00,R,Aidapt Bathrooms Ltd,No
Http://opendatacommunities.org/id/metropolitan-district-council/leeds,Leeds City Council as Accountable Body,30/09/2019,Social Services Pooled Budgets,Leeds Community Equip Store Pooled Budgt,Supplies and Services,Other Equipment,203,06/09/2019,1909-00496,0.00,216.00,R,Aidapt Bathrooms Ltd,No
Http://opendatacommunities.org/id/metropolitan-district-council/leeds,Leeds City Council as Accountable Body,30/09/2019,Social Services Pooled Budgets,Leeds Community Equip Store Pooled Budgt,Supplies and Services,Other Equipment,203,12/09/2019,1909-00497,0.00,318.00,R,Aidapt Bathrooms Ltd,No
Http://opendatacommunities.org/id/metropolitan-district-council/leeds,Leeds City Council as Accountable Body,30/09/2019,Social Services Pooled Budgets,Leeds Community Equip Store Pooled Budgt,Supplies and Services,Other Equipment,203,12/09/2019,1909-00498,0.00,143.00,R,Aidapt Bathrooms Ltd,No
Http://opendatacommunities.org/id/metropolitan-district-council/leeds,Leeds City Council as Accountable Body,30/09/2019,Social Services Pooled Budgets,Leeds Community Equip Store Pooled Budgt,Supplies and Services,Other Equipment,203,12/09/2019,1909-00499,0.00,220.00,R,Aidapt Bathrooms Ltd,No
Http://opendatacommunities.org/id/metropolitan-district-council/leeds,Leeds City Council as Accountable Body,30/09/2019,Social Services Pooled Budgets,Leeds Community Equip Store Pooled Budgt,Supplies and Services,Other Equipment,203,12/09/2019,1909-00500,0.00,165.70,R,Aidapt Bathrooms Ltd,No
Http://opendatacommunities.org/id/metropolitan-district-council/leeds,Leeds City Council as Accountable Body,30/09/2019,Social Services Pooled Budgets,Leeds Community Equip Store Pooled Budgt,Supplies and Services,Other Equipment,203,12/09/2019,1909-00501,0.00,130.56,R,Aidapt Bathrooms Ltd,No
Http://opendatacommunities.org/id/metropolitan-district-council/leeds,Leeds City Council as Accountable Body,30/09/2019,Social Services Pooled Budgets,Leeds Community Equip Store Pooled Budgt,Supplies and Services,Other Equipment,203,12/09/2019,1909-00502,0.00,130.56,R,Aidapt Bathrooms Ltd,No
Http://opendatacommunities.org/id/metropolitan-district-council/leeds,Leeds City Council as Accountable Body,30/09/2019,Social Services Pooled Budgets,Leeds Community Equip Store Pooled Budgt,Supplies and Services,Other Equipment,203,12/09/2019,1909-00503,0.00,261.12,R,Aidapt Bathrooms Ltd,No
Http://opendatacommunities.org/id/metropolitan-district-council/leeds,Leeds City Council as Accountable Body,30/09/2019,Social Services Pooled Budgets,Leeds Community Equip Store Pooled Budgt,Supplies and Services,Other Equipment,203,19/09/2019,1909-00504,0.00,171.20,R,Aidapt Bathrooms Ltd,No
Http://opendatacommunities.org/id/metropolitan-district-council/leeds,Leeds City Council as Accountable Body,30/09/2019,Social Services Pooled Budgets,Leeds Community Equip Store Pooled Budgt,Supplies and Services,Other Equipment,203,30/09/2019,1909-00505,0.00,499.75,R,Aidapt Bathrooms Ltd,No
Http://opendatacommunities.org/id/metropolitan-district-council/leeds,Leeds City Council as Accountable Body,30/09/2019,Social Services Pooled Budgets,Leeds Community Equip Store Pooled Budgt,Supplies and Services,Other Equipment,203,30/09/2019,1909-00506,0.00,1660.92,R,Aidapt Bathrooms Ltd,No
Http://opendatacommunities.org/id/metropolitan-district-council/leeds,Leeds City Council,30/09/2019,Children and Families,Partnerships & Health,Employees,Training & Development,70,24/09/2019,1909-00507,0.00,475.50,R,Aim Project,No
Http://opendatacommunities.org/id/metropolitan-district-council/leeds,Leeds City Council,30/09/2019,Resources and Housing,Leeds Building Services,Supplies and Services,Operational Materials,205,09/09/2019,1909-00508,0.00,46.17,R,Air Conditioning Accessories,No
Http://opendatacommunities.org/id/metropolitan-district-council/leeds,Leeds City Council,30/09/2019,Resources and Housing,Leeds Building Services,Supplies and Services,Operational Materials,205,09/09/2019,1909-00509,0.00,73.64,R,Air Conditioning Accessories,No
Http://opendatacommunities.org/id/metropolitan-district-council/leeds,Leeds City Council,30/09/2019,Resources and Housing,Leeds Building Services,Supplies and Services,Operational Materials,205,10/09/2019,1909-00510,0.00,70.61,R,Air Conditioning Accessories,No
Http://opendatacommunities.org/id/metropolitan-district-council/leeds,Leeds City Council,30/09/2019,Resources and Housing,Leeds Building Services,Supplies and Services,Operational Materials,205,12/09/2019,1909-00511,0.00,19.98,R,Air Conditioning Accessories,No
Http://opendatacommunities.org/id/metropolitan-district-council/leeds,Leeds City Council,30/09/2019,Resources and Housing,Leeds Building Services,Supplies and Services,Operational Materials,205,12/09/2019,1909-00512,0.00,118.62,R,Air Conditioning Accessories,No
Http://opendatacommunities.org/id/metropolitan-district-council/leeds,Leeds City Council,30/09/2019,Resources and Housing,Leeds Building Services,Supplies and Services,Operational Materials,205,12/09/2019,1909-00513,0.00,1700.00,R,Air Conditioning Accessories,No
Http://opendatacommunities.org/id/metropolitan-district-council/leeds,Leeds City Council,30/09/2019,Resources and Housing,Leeds Building Services,Supplies and Services,Operational Materials,205,13/09/2019,1909-00514,0.00,494.22,R,Air Conditioning Accessories,No
Http://opendatacommunities.org/id/metropolitan-district-council/leeds,Leeds City Council,30/09/2019,Resources and Housing,Leeds Building Services,Supplies and Services,Operational Materials,205,16/09/2019,1909-00515,0.00,59.49,R,Air Conditioning Accessories,No
Http://opendatacommunities.org/id/metropolitan-district-council/leeds,Leeds City Council,30/09/2019,Resources and Housing,Leeds Building Services,Supplies and Services,Operational Materials,205,16/09/2019,1909-00516,0.00,64.00,R,Air Conditioning Accessories,No
Http://opendatacommunities.org/id/metropolitan-district-council/leeds,Leeds City Council,30/09/2019,Resources and Housing,Leeds Building Services,Supplies and Services,Operational Materials,205,16/09/2019,1909-00517,0.00,36.02,R,Air Conditioning Accessories,No
Http://opendatacommunities.org/id/metropolitan-district-council/leeds,Leeds City Council,30/09/2019,Resources and Housing,Leeds Building Services,Supplies and Services,Operational Materials,205,18/09/2019,1909-00518,0.00,189.15,R,Air Force Pneumatics & Hydraulics,No
Http://opendatacommunities.org/id/metropolitan-district-council/leeds,Leeds City Council,30/09/2019,Communities and Environment,Environmental Health,Supplies and Services,Other Hired And Contracted Services,265,03/09/2019,1909-00519,0.00,10.45,R,Air Liquide Uk,No
Http://opendatacommunities.org/id/metropolitan-district-council/leeds,Leeds City Council,30/09/2019,Communities and Environment,Environmental Health,Supplies and Services,Other Hired And Contracted Services,265,03/09/2019,1909-00520,0.00,10.45,R,Air Liquide Uk,No
Http://opendatacommunities.org/id/metropolitan-district-council/leeds,Leeds City Council,30/09/2019,Communities and Environment,Environmental Health,Supplies and Services,Other Hired And Contracted Services,265,03/09/2019,1909-00521,0.00,15.93,R,Air Liquide Uk,No
Http://opendatacommunities.org/id/metropolitan-district-council/leeds,Leeds City Council,30/09/2019,Communities and Environment,Environmental Health,Supplies and Services,Other Hired And Contracted Services,265,03/09/2019,1909-00522,0.00,73.15,R,Air Liquide Uk,No
Http://opendatacommunities.org/id/metropolitan-district-council/leeds,Leeds City Council,30/09/2019,Resources and Housing,Leeds Building Services,Supplies and Services,Operational Materials,205,09/09/2019,1909-00523,0.00,226.39,R,Air Liquide Uk,No
Http://opendatacommunities.org/id/metropolitan-district-council/leeds,Leeds City Council,30/09/2019,Resources and Housing,Leeds Building Services,Supplies and Services,Operational Materials,205,17/09/2019,1909-00524,0.00,182.58,R,Air Liquide Uk,No
Http://opendatacommunities.org/id/metropolitan-district-council/leeds,Leeds City Council,30/09/2019,Resources and Housing,Leeds Building Services,Supplies and Services,Operational Materials,205,27/09/2019,1909-00525,0.00,125.28,R,Air Liquide Uk,No
Http://opendatacommunities.org/id/metropolitan-district-council/leeds,Leeds City Council,30/09/2019,Resources and Housing,Leeds Building Services,Supplies and Services,Operational Materials,205,27/09/2019,1909-00526,0.00,14.40,R,Air Liquide Uk,No
Http://opendatacommunities.org/id/metropolitan-district-council/leeds,Leeds City Council,30/09/2019,Children and Families,Social Care  ,Supplies and Services,Training Allowances,257,27/08/2019,1909-00527,0.00,249.58,R,Airbnb * Hmabs4fntk,Yes
Http://opendatacommunities.org/id/metropolitan-district-council/leeds,Leeds City Council,30/09/2019,Resources and Housing,Human Resources,Employees,Occupational Health,85,06/09/2019,1909-00528,0.00,70.00,R,Aire Valley Surgery,No
Http://opendatacommunities.org/id/metropolitan-district-council/leeds,Leeds City Council,30/09/2019,Resources and Housing,Human Resources,Employees,Occupational Health,85,18/09/2019,1909-00529,0.00,50.00,R,Aire Valley Surgery,No
Http://opendatacommunities.org/id/metropolitan-district-council/leeds,Leeds City Council,30/09/2019,Communities and Environment,Parks and Countryside,Supplies and Services,Other Hired And Contracted Services,265,13/09/2019,1909-00530,0.00,625.00,R,Aire Valley Tree Services Ltd,No
Http://opendatacommunities.org/id/metropolitan-district-council/leeds,Leeds City Council,30/09/2019,Communities and Environment,Parks and Countryside,Supplies and Services,Other Hired And Contracted Services,265,20/09/2019,1909-00531,0.00,475.00,R,Aire Valley Tree Services Ltd,No
Http://opendatacommunities.org/id/metropolitan-district-council/leeds,Leeds City Council,30/09/2019,Communities and Environment,Parks and Countryside,Supplies and Services,Other Hired And Contracted Services,265,27/09/2019,1909-00532,0.00,995.00,R,Aire Valley Tree Services Ltd,No
Http://opendatacommunities.org/id/metropolitan-district-council/leeds,Leeds City Council,30/09/2019,Adults and Health,Services For Older People - 65 And Over,Third Party Payments,Residential Care Dementia,571,18/09/2019,1909-00533,0.00,45063.82,R,Aire View Residential Home,No
Http://opendatacommunities.org/id/metropolitan-district-council/leeds,Leeds City Council,30/09/2019,Adults and Health,Services For Older People - 65 And Over,Third Party Payments,Residential,580,18/09/2019,1909-00534,0.00,14361.12,R,Aire View Residential Home,No
Http://opendatacommunities.org/id/metropolitan-district-council/leeds,Leeds City Council,30/09/2019,Strategic Accounts,Miscellaneous,Supplies and Services,Non-Recurring Grants,227,11/09/2019,1909-00535,0.00,125.00,R,Aireborough Neighbourhood Development,No
Http://opendatacommunities.org/id/metropolitan-district-council/leeds,Leeds City Council,30/09/2019,Children and Families,Social Care,Third Party Payments,Services Rendered By Voluntary Sector,505,30/09/2019,1909-00536,0.00,27161.00,R,Aireborough Supported Activities Scheme,No
Http://opendatacommunities.org/id/metropolitan-district-council/leeds,Leeds City Council,30/09/2019,Children and Families,Social Care,Third Party Payments,Services Rendered By Voluntary Sector,505,30/09/2019,1909-00537,0.00,27161.00,R,Aireborough Supported Activities Scheme,No
Http://opendatacommunities.org/id/metropolitan-district-council/leeds,Leeds City Council,30/09/2019,Adults and Health,Services For Older People - 65 And Over,Third Party Payments,Residential Care Dementia,571,18/09/2019,1909-00538,0.00,3493.40,R,Airedale Care Home,No
Http://opendatacommunities.org/id/metropolitan-district-council/leeds,Leeds City Council,30/09/2019,Adults and Health,Services For Older People - 65 And Over,Third Party Payments,Residential,580,18/09/2019,1909-00539,0.00,15471.40,R,Airedale Care Home,No
Http://opendatacommunities.org/id/metropolitan-district-council/leeds,Leeds City Council,30/09/2019,Resources and Housing,Facilities Management,Supplies and Services,Operational Furniture And Equipment,203,02/09/2019,1909-00540,0.00,1175.00,R,Airedale Catering Equipment Ltd,No
Http://opendatacommunities.org/id/metropolitan-district-council/leeds,Leeds City Council,30/09/2019,Resources and Housing,Commercial Services,Supplies and Services,Operational Furniture And Equipment,203,06/09/2019,1909-00541,0.00,2539.00,R,Airedale Catering Equipment Ltd,No
Http://opendatacommunities.org/id/metropolitan-district-council/leeds,Leeds City Council,30/09/2019,Children and Families,Social Care,Supplies and Services,Operational Furniture And Equipment,203,12/09/2019,1909-00542,0.00,799.00,R,Airedale Catering Equipment Ltd,No
Http://opendatacommunities.org/id/metropolitan-district-council/leeds,Leeds City Council,30/09/2019,Resources and Housing,Commercial Services,Premises,Fixtures & Fittings,131,20/09/2019,1909-00543,0.00,44396.00,R,Airedale Catering Equipment Ltd,No
Http://opendatacommunities.org/id/metropolitan-district-council/leeds,Leeds City Council,30/09/2019,Resources and Housing,Commercial Services,Premises,Fixtures & Fittings,131,20/09/2019,1909-00544,0.00,3238.00,R,Airedale Catering Equipment Ltd,No
Http://opendatacommunities.org/id/metropolitan-district-council/leeds,Leeds City Council,30/09/2019,Resources and Housing,Commercial Services,Supplies and Services,Operational Furniture And Equipment,203,20/09/2019,1909-00545,0.00,1787.00,R,Airedale Catering Equipment Ltd,No
Http://opendatacommunities.org/id/metropolitan-district-council/leeds,Leeds City Council,30/09/2019,Resources and Housing,Commercial Services,Premises,Fixtures & Fittings,131,27/09/2019,1909-00546,0.00,26191.00,R,Airedale Catering Equipment Ltd,No
Http://opendatacommunities.org/id/metropolitan-district-council/leeds,Leeds City Council,30/09/2019,Resources and Housing,Leeds Building Services,Supplies and Services,Other Hired And Contracted Services,265,27/09/2019,1909-00547,0.00,5224.00,R,Airedale Catering Equipment Ltd,No
Http://opendatacommunities.org/id/metropolitan-district-council/leeds,Leeds City Council,30/09/2019,Adults and Health,Assessment And Care Management,Employees,Training Costs,71,13/09/2019,1909-00548,0.00,120.00,R,Airedale Community Trading (Act) Ltd,No
Http://opendatacommunities.org/id/metropolitan-district-council/leeds,Leeds City Council,30/09/2019,Adults and Health,Assessment And Care Management,Employees,Training Costs,71,13/09/2019,1909-00549,0.00,120.00,R,Airedale Community Trading (Act) Ltd,No
Http://opendatacommunities.org/id/metropolitan-district-council/leeds,Leeds City Council,30/09/2019,Adults and Health,Assessment And Care Management,Employees,Training Costs,71,13/09/2019,1909-00550,0.00,-120.00,R,Airedale Community Trading (Act) Ltd,No
Http://opendatacommunities.org/id/metropolitan-district-council/leeds,Leeds City Council,30/09/2019,Communities and Environment,Environmental Health,Supplies and Services,Other Hired And Contracted Services,265,06/09/2019,1909-00551,0.00,388.21,R,Aireworth Vets,No
Http://opendatacommunities.org/id/metropolitan-district-council/leeds,Leeds City Council,30/09/2019,Children and Families,Social Care  ,Third Party Payments,Contact,548,12/08/2019,1909-00552,0.00,35.96,R,Airobounce Ltd,Yes
Http://opendatacommunities.org/id/metropolitan-district-council/leeds,Leeds City Council,30/09/2019,Children and Families,Social Care  ,Third Party Payments,Contact,548,14/08/2019,1909-00553,0.00,5.00,R,Airobounce Ltd,Yes
Http://opendatacommunities.org/id/metropolitan-district-council/leeds,Leeds City Council,30/09/2019,Resources and Housing,Commercial Services,Supplies and Services,Other Hired And Contracted Services,265,18/09/2019,1909-00554,0.00,125.00,R,Air-Weigh Europe Limited,No
Http://opendatacommunities.org/id/metropolitan-district-council/leeds,Leeds City Council,30/09/2019,Resources and Housing,Commercial Services,Supplies and Services,Other Hired And Contracted Services,265,18/09/2019,1909-00555,0.00,125.00,R,Air-Weigh Europe Limited,No
Http://opendatacommunities.org/id/metropolitan-district-council/leeds,Leeds City Council,30/09/2019,Resources and Housing,Commercial Services,Supplies and Services,Other Hired And Contracted Services,265,26/09/2019,1909-00556,0.00,90.00,R,Air-Weigh Europe Limited,No
Http://opendatacommunities.org/id/metropolitan-district-council/leeds,Leeds City Council,30/09/2019,Resources and Housing,Commercial Services,Supplies and Services,Other Hired And Contracted Services,265,26/09/2019,1909-00557,0.00,125.00,R,Air-Weigh Europe Limited,No
Http://opendatacommunities.org/id/metropolitan-district-council/leeds,Leeds City Council,30/09/2019,Communities and Environment,Elections  Licensing and Registration,Income,Admissions  Booking Fees & Ticket Sales,933,26/09/2019,1909-00558,0.00,45.00,R,REDACTED PERSONAL DATA,No
Http://opendatacommunities.org/id/metropolitan-district-council/leeds,Leeds City Council,30/09/2019,Adults and Health,Services For Adults Under 65 Mental/Dis,Third Party Payments,Services Provided By Other NHS Bodies,522,12/09/2019,1909-00559,0.00,175.00,R,Ait Mitra Limited,No
Http://opendatacommunities.org/id/metropolitan-district-council/leeds,Leeds City Council,30/09/2019,Adults and Health,Services For Adults Under 65 Mental/Dis,Third Party Payments,Services Provided By Other NHS Bodies,522,12/09/2019,1909-00560,0.00,175.00,R,Ait Mitra Limited,No
Http://opendatacommunities.org/id/metropolitan-district-council/leeds,Leeds City Council,30/09/2019,Adults and Health,Services For Adults Under 65 Mental/Dis,Third Party Payments,Services Provided By Other NHS Bodies,522,12/09/2019,1909-00561,0.00,175.00,R,Ait Mitra Limited,No
Http://opendatacommunities.org/id/metropolitan-district-council/leeds,Leeds City Council,30/09/2019,Adults and Health,Services For Adults Under 65 Mental/Dis,Third Party Payments,Services Provided By Other NHS Bodies,522,12/09/2019,1909-00562,0.00,175.00,R,Ait Mitra Limited,No
Http://opendatacommunities.org/id/metropolitan-district-council/leeds,Leeds City Council,30/09/2019,Adults and Health,Services For Adults Under 65 Mental/Dis,Third Party Payments,Services Provided By Other NHS Bodies,522,12/09/2019,1909-00563,0.00,239.50,R,Ait Mitra Limited,No
Http://opendatacommunities.org/id/metropolitan-district-council/leeds,Leeds City Council,30/09/2019,Adults and Health,Services For Adults Under 65 Mental/Dis,Third Party Payments,Services Provided By Other NHS Bodies,522,13/09/2019,1909-00564,0.00,239.50,R,Ait Mitra Limited,No
Http://opendatacommunities.org/id/metropolitan-district-council/leeds,Leeds City Council,30/09/2019,Adults and Health,Services For Adults Under 65 Mental/Dis,Third Party Payments,Services Provided By Other NHS Bodies,522,13/09/2019,1909-00565,0.00,175.00,R,Ait Mitra Limited,No
Http://opendatacommunities.org/id/metropolitan-district-council/leeds,Leeds City Council,30/09/2019,Adults and Health,Services For Adults Under 65 Mental/Dis,Third Party Payments,Services Provided By Other NHS Bodies,522,13/09/2019,1909-00566,0.00,175.00,R,Ait Mitra Limited,No
Http://opendatacommunities.org/id/metropolitan-district-council/leeds,Leeds City Council,30/09/2019,Adults and Health,Services For Adults Under 65 Mental/Dis,Third Party Payments,Services Provided By Other NHS Bodies,522,13/09/2019,1909-00567,0.00,175.00,R,Ait Mitra Limited,No
Http://opendatacommunities.org/id/metropolitan-district-council/leeds,Leeds City Council,30/09/2019,Adults and Health,Services For Adults Under 65 Mental/Dis,Third Party Payments,Services Provided By Other NHS Bodies,522,13/09/2019,1909-00568,0.00,175.00,R,Ait Mitra Limited,No
Http://opendatacommunities.org/id/metropolitan-district-council/leeds,Leeds City Council as Accountable Body,30/09/2019,Social Services Pooled Budgets,Jcs For People With Learning Disabilitie,Third Party Payments,Residential,580,18/09/2019,1909-00569,0.00,8763.24,R,Aitch Care Homes,No
Http://opendatacommunities.org/id/metropolitan-district-council/leeds,Leeds City Council,30/09/2019,Communities and Environment,Parks and Countryside,Supplies and Services,Operational Materials,205,20/09/2019,1909-00570,0.00,340.00,R,Aitkens Sportsturf Ltd,No
Http://opendatacommunities.org/id/metropolitan-district-council/leeds,Leeds City Council,30/09/2019,Resources and Housing,Leeds Building Services,Supplies and Services,Operational Furniture And Equipment,203,09/09/2019,1909-00571,0.00,88.46,R,Ajm Fixings & Power Tools Ltd,No
Http://opendatacommunities.org/id/metropolitan-district-council/leeds,Leeds City Council,30/09/2019,Resources and Housing,Leeds Building Services,Supplies and Services,Operational Furniture And Equipment,203,09/09/2019,1909-00572,0.00,2207.25,R,Ajm Fixings & Power Tools Ltd,No
Http://opendatacommunities.org/id/metropolitan-district-council/leeds,Leeds City Council,30/09/2019,Resources and Housing,Leeds Building Services,Supplies and Services,Operational Furniture And Equipment,203,09/09/2019,1909-00573,0.00,1130.00,R,Ajm Fixings & Power Tools Ltd,No
Http://opendatacommunities.org/id/metropolitan-district-council/leeds,Leeds City Council,30/09/2019,Resources and Housing,Leeds Building Services,Supplies and Services,Operational Furniture And Equipment,203,09/09/2019,1909-00574,0.00,83.87,R,Ajm Fixings & Power Tools Ltd,No
Http://opendatacommunities.org/id/metropolitan-district-council/leeds,Leeds City Council,30/09/2019,Resources and Housing,Leeds Building Services,Supplies and Services,Operational Furniture And Equipment,203,09/09/2019,1909-00575,0.00,553.00,R,Ajm Fixings & Power Tools Ltd,No
Http://opendatacommunities.org/id/metropolitan-district-council/leeds,Leeds City Council,30/09/2019,Resources and Housing,Leeds Building Services,Supplies and Services,Operational Materials,205,09/09/2019,1909-00576,0.00,160.00,R,Ajm Fixings & Power Tools Ltd,No
Http://opendatacommunities.org/id/metropolitan-district-council/leeds,Leeds City Council,30/09/2019,Resources and Housing,Leeds Building Services,Supplies and Services,Stores - Central And Other Depots,5,10/09/2019,1909-00577,0.00,647.40,R,Ajm Fixings & Power Tools Ltd,No
Http://opendatacommunities.org/id/metropolitan-district-council/leeds,Leeds City Council,30/09/2019,Resources and Housing,Leeds Building Services,Supplies and Services,Operational Furniture And Equipment,203,10/09/2019,1909-00578,0.00,28.90,R,Ajm Fixings & Power Tools Ltd,No
Http://opendatacommunities.org/id/metropolitan-district-council/leeds,Leeds City Council,30/09/2019,Resources and Housing,Leeds Building Services,Supplies and Services,Operational Materials,205,10/09/2019,1909-00579,0.00,502.50,R,Ajm Fixings & Power Tools Ltd,No
Http://opendatacommunities.org/id/metropolitan-district-council/leeds,Leeds City Council,30/09/2019,Resources and Housing,Leeds Building Services,Supplies and Services,Operational Materials,205,10/09/2019,1909-00580,0.00,414.00,R,Ajm Fixings & Power Tools Ltd,No
Http://opendatacommunities.org/id/metropolitan-district-council/leeds,Leeds City Council,30/09/2019,Resources and Housing,Leeds Building Services,Supplies and Services,Stores - Central And Other Depots,5,11/09/2019,1909-00581,0.00,100.00,R,Ajm Fixings & Power Tools Ltd,No
Http://opendatacommunities.org/id/metropolitan-district-council/leeds,Leeds City Council,30/09/2019,Resources and Housing,Leeds Building Services,Supplies and Services,Stores - Central And Other Depots,5,11/09/2019,1909-00582,0.00,811.20,R,Ajm Fixings & Power Tools Ltd,No
Http://opendatacommunities.org/id/metropolitan-district-council/leeds,Leeds City Council,30/09/2019,Resources and Housing,Leeds Building Services,Supplies and Services,Stores - Central And Other Depots,5,12/09/2019,1909-00583,0.00,452.10,R,Ajm Fixings & Power Tools Ltd,No
Http://opendatacommunities.org/id/metropolitan-district-council/leeds,Leeds City Council,30/09/2019,Resources and Housing,Leeds Building Services,Supplies and Services,Operational Furniture And Equipment,203,12/09/2019,1909-00584,0.00,975.27,R,Ajm Fixings & Power Tools Ltd,No
Http://opendatacommunities.org/id/metropolitan-district-council/leeds,Leeds City Council,30/09/2019,Resources and Housing,Leeds Building Services,Supplies and Services,Operational Furniture And Equipment,203,12/09/2019,1909-00585,0.00,485.00,R,Ajm Fixings & Power Tools Ltd,No
Http://opendatacommunities.org/id/metropolitan-district-council/leeds,Leeds City Council,30/09/2019,Resources and Housing,Leeds Building Services,Supplies and Services,Operational Furniture And Equipment,203,12/09/2019,1909-00586,0.00,51.96,R,Ajm Fixings & Power Tools Ltd,No
Http://opendatacommunities.org/id/metropolitan-district-council/leeds,Leeds City Council,30/09/2019,Resources and Housing,Leeds Building Services,Supplies and Services,Operational Furniture And Equipment,203,27/09/2019,1909-00587,0.00,78.00,R,Ajm Fixings & Power Tools Ltd,No
Http://opendatacommunities.org/id/metropolitan-district-council/leeds,Leeds City Council,30/09/2019,Resources and Housing,Leeds Building Services,Supplies and Services,Operational Furniture And Equipment,203,27/09/2019,1909-00588,0.00,152.50,R,Ajm Fixings & Power Tools Ltd,No
Http://opendatacommunities.org/id/metropolitan-district-council/leeds,Leeds City Council,30/09/2019,Resources and Housing,Leeds Building Services,Supplies and Services,Operational Furniture And Equipment,203,27/09/2019,1909-00589,0.00,94.27,R,Ajm Fixings & Power Tools Ltd,No
Http://opendatacommunities.org/id/metropolitan-district-council/leeds,Leeds City Council,30/09/2019,Resources and Housing,Leeds Building Services,Supplies and Services,Operational Furniture And Equipment,203,27/09/2019,1909-00590,0.00,505.49,R,Ajm Fixings & Power Tools Ltd,No
Http://opendatacommunities.org/id/metropolitan-district-council/leeds,Leeds City Council,30/09/2019,Resources and Housing,Leeds Building Services,Supplies and Services,Operational Furniture And Equipment,203,27/09/2019,1909-00591,0.00,1299.44,R,Ajm Fixings & Power Tools Ltd,No
Http://opendatacommunities.org/id/metropolitan-district-council/leeds,Leeds City Council,30/09/2019,Resources and Housing,Commercial Services,Supplies and Services,Other Hired And Contracted Services,265,06/09/2019,1909-00592,0.00,306.50,R,Akua Uk Ltd,No
Http://opendatacommunities.org/id/metropolitan-district-council/leeds,Leeds City Council,30/09/2019,Resources and Housing,Commercial Services,Supplies and Services,Other Hired And Contracted Services,265,06/09/2019,1909-00593,0.00,540.00,R,Akua Uk Ltd,No
Http://opendatacommunities.org/id/metropolitan-district-council/leeds,Leeds City Council,30/09/2019,Resources and Housing,Commercial Services,Supplies and Services,Other Hired And Contracted Services,265,06/09/2019,1909-00594,0.00,1010.38,R,Akua Uk Ltd,No
Http://opendatacommunities.org/id/metropolitan-district-council/leeds,Leeds City Council,30/09/2019,Resources and Housing,Commercial Services,Supplies and Services,Other Hired And Contracted Services,265,06/09/2019,1909-00595,0.00,464.00,R,Akua Uk Ltd,No
Http://opendatacommunities.org/id/metropolitan-district-council/leeds,Leeds City Council,30/09/2019,Resources and Housing,Leeds Building Services,Supplies and Services,Operational Materials,205,09/09/2019,1909-00596,0.00,496.73,R,Akw Medicare Ltd,No
Http://opendatacommunities.org/id/metropolitan-district-council/leeds,Leeds City Council,30/09/2019,Children and Families,Social Care  ,Supplies and Services,Teaching Materials,202,15/08/2019,1909-00597,0.00,9.98,R,Al Murad,Yes
Http://opendatacommunities.org/id/metropolitan-district-council/leeds,Leeds City Council,30/09/2019,Resources and Housing,Democratic Services  ,Supplies and Services,Operational Materials,205,01/08/2019,1909-00598,0.00,7.00,R,Alan Brown Flowers,Yes
Http://opendatacommunities.org/id/metropolitan-district-council/leeds,Leeds City Council,30/09/2019,Resources and Housing,Democratic Services  ,Premises,Grounds Maintenance Work,111,05/08/2019,1909-00599,0.00,25.00,R,Alan Brown Flowers,Yes
Http://opendatacommunities.org/id/metropolitan-district-council/leeds,Leeds City Council,30/09/2019,Adults and Health,Services For Older People - 65 And Over,Third Party Payments,Residential Care Dementia,571,18/09/2019,1909-00600,0.00,1141.68,R,Albemarle,No
Http://opendatacommunities.org/id/metropolitan-district-council/leeds,Leeds City Council,30/09/2019,Communities and Environment,Customer Access  ,Supplies and Services,Office Furniture & Equipment,201,14/08/2019,1909-00601,0.00,20.41,R,Aldi,Yes
Http://opendatacommunities.org/id/metropolitan-district-council/leeds,Leeds City Council,30/09/2019,City Development,Libraries  Arts & Heritage  ,Supplies and Services,Food & Drink,231,05/08/2019,1909-00602,0.00,8.17,R,Aldi 40 779,Yes
Http://opendatacommunities.org/id/metropolitan-district-council/leeds,Leeds City Council,30/09/2019,Children and Families,Social Care  ,Supplies and Services,Food & Drink,231,20/08/2019,1909-00603,0.00,75.28,R,Aldi 40 779,Yes
Http://opendatacommunities.org/id/metropolitan-district-council/leeds,Leeds City Council,30/09/2019,Children and Families,Social Care  ,Supplies and Services,Food & Drink,231,13/08/2019,1909-00604,0.00,85.91,R,Aldi 49 779,Yes
Http://opendatacommunities.org/id/metropolitan-district-council/leeds,Leeds City Council,30/09/2019,Children and Families,Social Care  ,Third Party Payments,Section 17,551,16/08/2019,1909-00605,0.00,47.36,R,Aldi 49 779,Yes
Http://opendatacommunities.org/id/metropolitan-district-council/leeds,Leeds City Council,30/09/2019,Children and Families,Social Care  ,Transfer Payments,Leaving Care Allowances,634,02/08/2019,1909-00606,0.00,21.39,R,Aldi 71 779,Yes
Http://opendatacommunities.org/id/metropolitan-district-council/leeds,Leeds City Council,30/09/2019,Children and Families,Social Care  ,Transfer Payments,Leaving Care Allowances,634,19/08/2019,1909-00607,0.00,69.42,R,Aldi 71 779,Yes
Http://opendatacommunities.org/id/metropolitan-district-council/leeds,Leeds City Council,30/09/2019,Children and Families,Social Care  ,Supplies and Services,Food & Drink,231,07/08/2019,1909-00608,0.00,10.43,R,Aldi 779117,Yes
Http://opendatacommunities.org/id/metropolitan-district-council/leeds,Leeds City Council,30/09/2019,Children and Families,Social Care  ,Supplies and Services,Food & Drink,231,11/08/2019,1909-00609,0.00,4.60,R,Aldi 85 779,Yes
Http://opendatacommunities.org/id/metropolitan-district-council/leeds,Leeds City Council,30/09/2019,Strategic Landlord,Housing Management  ,Supplies and Services,Food & Drink,231,01/08/2019,1909-00610,0.00,16.49,R,Aldi 88 779,Yes
Http://opendatacommunities.org/id/metropolitan-district-council/leeds,Leeds City Council,30/09/2019,Resources and Housing,Strategic Housing Partnership & Support  ,Supplies and Services,Other Hired And Contracted Services,265,02/08/2019,1909-00611,0.00,28.58,R,Aldi 88 779,Yes
Http://opendatacommunities.org/id/metropolitan-district-council/leeds,Leeds City Council,30/09/2019,Resources and Housing,Strategic Housing Partnership & Support  ,Supplies and Services,Other Hired And Contracted Services,265,09/08/2019,1909-00612,0.00,29.06,R,Aldi 88 779,Yes
Http://opendatacommunities.org/id/metropolitan-district-council/leeds,Leeds City Council,30/09/2019,Communities and Environment,Customer Access  ,Supplies and Services,Food & Drink,231,01/08/2019,1909-00613,0.00,6.65,R,Aldi 89 779,Yes
Http://opendatacommunities.org/id/metropolitan-district-council/leeds,Leeds City Council,30/09/2019,Communities and Environment,Customer Access  ,Supplies and Services,Food & Drink,231,27/08/2019,1909-00614,0.00,2.67,R,Aldi 89 779,Yes
Http://opendatacommunities.org/id/metropolitan-district-council/leeds,Leeds City Council,30/09/2019,Communities and Environment,Customer Access  ,Supplies and Services,Food & Drink,231,27/08/2019,1909-00615,0.00,9.15,R,Aldi 89 779,Yes
Http://opendatacommunities.org/id/metropolitan-district-council/leeds,Leeds City Council,30/09/2019,Communities and Environment,Customer Access  ,Supplies and Services,Food & Drink,231,29/08/2019,1909-00616,0.00,11.80,R,Aldi 89 779,Yes
Http://opendatacommunities.org/id/metropolitan-district-council/leeds,Leeds City Council,30/09/2019,Communities and Environment,Parks And Countryside  ,Supplies and Services,Operational Materials,205,15/08/2019,1909-00617,0.00,6.63,R,Aldi Stores,Yes
Http://opendatacommunities.org/id/metropolitan-district-council/leeds,Leeds City Council,30/09/2019,Communities and Environment,Customer Access,Supplies and Services,Bought In Professional Services,277,05/09/2019,1909-00618,0.00,64.50,R,Alena Zueva,No
Http://opendatacommunities.org/id/metropolitan-district-council/leeds,Leeds City Council,30/09/2019,Communities and Environment,Customer Access,Supplies and Services,Bought In Professional Services,277,05/09/2019,1909-00619,0.00,34.50,R,Alena Zueva,No
Http://opendatacommunities.org/id/metropolitan-district-council/leeds,Leeds City Council,30/09/2019,Communities and Environment,Customer Access,Supplies and Services,Bought In Professional Services,277,05/09/2019,1909-00620,0.00,25.50,R,Alena Zueva,No
Http://opendatacommunities.org/id/metropolitan-district-council/leeds,Leeds City Council,30/09/2019,Communities and Environment,Customer Access,Supplies and Services,Bought In Professional Services,277,09/09/2019,1909-00621,0.00,25.50,R,Alena Zueva,No
Http://opendatacommunities.org/id/metropolitan-district-council/leeds,Leeds City Council,30/09/2019,Communities and Environment,Customer Access,Supplies and Services,Bought In Professional Services,277,09/09/2019,1909-00622,0.00,25.50,R,Alena Zueva,No
Http://opendatacommunities.org/id/metropolitan-district-council/leeds,Leeds City Council,30/09/2019,Communities and Environment,Customer Access,Supplies and Services,Bought In Professional Services,277,09/09/2019,1909-00623,0.00,33.00,R,Alena Zueva,No
Http://opendatacommunities.org/id/metropolitan-district-council/leeds,Leeds City Council,30/09/2019,Communities and Environment,Customer Access,Supplies and Services,Bought In Professional Services,277,09/09/2019,1909-00624,0.00,42.00,R,Alena Zueva,No
Http://opendatacommunities.org/id/metropolitan-district-council/leeds,Leeds City Council,30/09/2019,Communities and Environment,Customer Access,Supplies and Services,Bought In Professional Services,277,09/09/2019,1909-00625,0.00,82.50,R,Alena Zueva,No
Http://opendatacommunities.org/id/metropolitan-district-council/leeds,Leeds City Council,30/09/2019,Communities and Environment,Customer Access,Supplies and Services,Bought In Professional Services,277,13/09/2019,1909-00626,0.00,33.00,R,Alena Zueva,No
Http://opendatacommunities.org/id/metropolitan-district-council/leeds,Leeds City Council,30/09/2019,Communities and Environment,Customer Access,Supplies and Services,Bought In Professional Services,277,19/09/2019,1909-00627,0.00,25.50,R,Alena Zueva,No
Http://opendatacommunities.org/id/metropolitan-district-council/leeds,Leeds City Council,30/09/2019,Communities and Environment,Customer Access,Supplies and Services,Bought In Professional Services,277,19/09/2019,1909-00628,0.00,61.50,R,Alena Zueva,No
Http://opendatacommunities.org/id/metropolitan-district-council/leeds,Leeds City Council,30/09/2019,Children and Families,Social Care,Support Services,Legal Disbursements,411,23/09/2019,1909-00629,0.00,166.75,R,Alere Toxicology Plc,No
Http://opendatacommunities.org/id/metropolitan-district-council/leeds,Leeds City Council,30/09/2019,Children and Families,Social Care,Transfer Payments,16 Plus Top Up Allowance,625,20/09/2019,1909-00630,0.00,60.00,R,REDACTED PERSONAL DATA,No
Http://opendatacommunities.org/id/metropolitan-district-council/leeds,Leeds City Council,30/09/2019,Children and Families,Social Care,Transfer Payments,16 Plus Top Up Allowance,625,27/09/2019,1909-00631,0.00,30.00,R,REDACTED PERSONAL DATA,No
Http://opendatacommunities.org/id/metropolitan-district-council/leeds,Leeds City Council,30/09/2019,Children and Families,Social Care,Support Services,Legal Disbursements,411,20/09/2019,1909-00632,0.00,14000.00,R,Alex Taylor,No
Http://opendatacommunities.org/id/metropolitan-district-council/leeds,Leeds City Council,30/09/2019,Resources and Housing,Commercial Services,Supplies and Services,Other Hired And Contracted Services,265,06/09/2019,1909-00633,0.00,225.00,R,Alex Wagg,No
Http://opendatacommunities.org/id/metropolitan-district-council/leeds,Leeds City Council,30/09/2019,Resources and Housing,Commercial Services,Supplies and Services,Other Hired And Contracted Services,265,13/09/2019,1909-00634,0.00,120.00,R,Alex Wagg,No
Http://opendatacommunities.org/id/metropolitan-district-council/leeds,Leeds City Council,30/09/2019,Resources and Housing,Commercial Services,Supplies and Services,Other Hired And Contracted Services,265,13/09/2019,1909-00635,0.00,80.00,R,Alex Wagg,No
Http://opendatacommunities.org/id/metropolitan-district-council/leeds,Leeds City Council,30/09/2019,Resources and Housing,Commercial Services,Supplies and Services,Other Hired And Contracted Services,265,13/09/2019,1909-00636,0.00,75.00,R,Alex Wagg,No
Http://opendatacommunities.org/id/metropolitan-district-council/leeds,Leeds City Council,30/09/2019,Resources and Housing,Commercial Services,Supplies and Services,Other Hired And Contracted Services,265,13/09/2019,1909-00637,0.00,167.50,R,Alex Wagg,No
Http://opendatacommunities.org/id/metropolitan-district-council/leeds,Leeds City Council,30/09/2019,Resources and Housing,Commercial Services,Supplies and Services,Other Hired And Contracted Services,265,13/09/2019,1909-00638,0.00,75.00,R,Alex Wagg,No
Http://opendatacommunities.org/id/metropolitan-district-council/leeds,Leeds City Council,30/09/2019,Resources and Housing,Commercial Services,Supplies and Services,Other Hired And Contracted Services,265,18/09/2019,1909-00639,0.00,220.00,R,Alex Wagg,No
Http://opendatacommunities.org/id/metropolitan-district-council/leeds,Leeds City Council,30/09/2019,Resources and Housing,Commercial Services,Supplies and Services,Other Hired And Contracted Services,265,27/09/2019,1909-00640,0.00,80.00,R,Alex Wagg,No
Http://opendatacommunities.org/id/metropolitan-district-council/leeds,Leeds City Council,30/09/2019,Resources and Housing,Commercial Services,Supplies and Services,Other Hired And Contracted Services,265,27/09/2019,1909-00641,0.00,80.00,R,Alex Wagg,No
Http://opendatacommunities.org/id/metropolitan-district-council/leeds,Leeds City Council,30/09/2019,Resources and Housing,Commercial Services,Supplies and Services,Other Hired And Contracted Services,265,27/09/2019,1909-00642,0.00,450.00,R,Alex Wagg,No
Http://opendatacommunities.org/id/metropolitan-district-council/leeds,Leeds City Council,30/09/2019,Resources and Housing,Commercial Services,Transport,Vehicle Spares,345,27/09/2019,1909-00643,0.00,380.00,R,Alex Wagg,No
Http://opendatacommunities.org/id/metropolitan-district-council/leeds,Leeds City Council,30/09/2019,Resources and Housing,Commercial Services,Transport,Vehicle Spares,345,27/09/2019,1909-00644,0.00,397.50,R,Alex Wagg,No
Http://opendatacommunities.org/id/metropolitan-district-council/leeds,Leeds City Council,30/09/2019,Children and Families,Social Care,Supplies and Services,Other Hired And Contracted Services,265,12/09/2019,1909-00645,0.00,250.00,R,REDACTED PERSONAL DATA,No
Http://opendatacommunities.org/id/metropolitan-district-council/leeds,Leeds City Council,30/09/2019,Adults and Health,Services For Older People - 65 And Over,Third Party Payments,Residential Care Dementia,571,18/09/2019,1909-00646,0.00,20140.08,R,Alexander Residential Home,No
Http://opendatacommunities.org/id/metropolitan-district-council/leeds,Leeds City Council,30/09/2019,Adults and Health,Services For Older People - 65 And Over,Third Party Payments,Residential,580,18/09/2019,1909-00647,0.00,44508.78,R,Alexander Residential Home,No
Http://opendatacommunities.org/id/metropolitan-district-council/leeds,Leeds City Council,30/09/2019,Communities and Environment,Customer Access,Supplies and Services,Bought In Professional Services,277,13/09/2019,1909-00648,0.00,54.00,R,Alexandra Costenco,No
Http://opendatacommunities.org/id/metropolitan-district-council/leeds,Leeds City Council,30/09/2019,Communities and Environment,Customer Access,Supplies and Services,Bought In Professional Services,277,13/09/2019,1909-00649,0.00,49.50,R,Alexandra Costenco,No
Http://opendatacommunities.org/id/metropolitan-district-council/leeds,Leeds City Council,30/09/2019,Communities and Environment,Customer Access,Supplies and Services,Bought In Professional Services,277,26/09/2019,1909-00650,0.00,54.00,R,Alexandra Costenco,No
Http://opendatacommunities.org/id/metropolitan-district-council/leeds,Leeds City Council,30/09/2019,Communities and Environment,Customer Access,Supplies and Services,Bought In Professional Services,277,26/09/2019,1909-00651,0.00,22.50,R,Alexandra Costenco,No
Http://opendatacommunities.org/id/metropolitan-district-council/leeds,Leeds City Council,30/09/2019,Adults and Health,Services For Older People - 65 And Over,Third Party Payments,Residential Care Dementia,571,18/09/2019,1909-00652,0.00,1834.60,R,Alexandra Court,No
Http://opendatacommunities.org/id/metropolitan-district-council/leeds,Leeds City Council,30/09/2019,Adults and Health,Services For Older People - 65 And Over,Third Party Payments,Residential,580,18/09/2019,1909-00653,0.00,10661.61,R,Alexandra Court,No
Http://opendatacommunities.org/id/metropolitan-district-council/leeds,Leeds City Council,30/09/2019,Communities and Environment,Parks and Countryside,Supplies and Services,Other Hired And Contracted Services,265,02/09/2019,1909-00654,0.00,300.00,R,Alexandra Docherty (Sandy),No
Http://opendatacommunities.org/id/metropolitan-district-council/leeds,Leeds City Council,30/09/2019,Communities and Environment,Customer Access,Supplies and Services,Bought In Professional Services,277,09/09/2019,1909-00655,0.00,33.00,R,Alexandra Hirst,No
Http://opendatacommunities.org/id/metropolitan-district-council/leeds,Leeds City Council,30/09/2019,Communities and Environment,Customer Access,Supplies and Services,Bought In Professional Services,277,13/09/2019,1909-00656,0.00,33.00,R,Alexandra Hirst,No
Http://opendatacommunities.org/id/metropolitan-district-council/leeds,Leeds City Council,30/09/2019,Communities and Environment,Customer Access,Supplies and Services,Bought In Professional Services,277,19/09/2019,1909-00657,0.00,55.50,R,Alexandra Hirst,No
Http://opendatacommunities.org/id/metropolitan-district-council/leeds,Leeds City Council,30/09/2019,Communities and Environment,Customer Access,Supplies and Services,Bought In Professional Services,277,26/09/2019,1909-00658,0.00,33.00,R,Alexandra Hirst,No
Http://opendatacommunities.org/id/metropolitan-district-council/leeds,Leeds City Council,30/09/2019,Resources and Housing,Leeds Building Services,Supplies and Services,Other Hired And Contracted Services,265,03/09/2019,1909-00659,0.00,360.00,R,Alfred Bagnall & Sons (Leeds) Ltd,No
Http://opendatacommunities.org/id/metropolitan-district-council/leeds,Leeds City Council,30/09/2019,Resources and Housing,Leeds Building Services,Supplies and Services,Other Hired And Contracted Services,265,03/09/2019,1909-00660,0.00,4000.00,R,Alfred Bagnall & Sons (Leeds) Ltd,No
Http://opendatacommunities.org/id/metropolitan-district-council/leeds,Leeds City Council,30/09/2019,Resources and Housing,Leeds Building Services,Supplies and Services,Other Hired And Contracted Services,265,03/09/2019,1909-00661,0.00,1378.50,R,Alfred Bagnall & Sons (Leeds) Ltd,No
Http://opendatacommunities.org/id/metropolitan-district-council/leeds,Leeds City Council,30/09/2019,Resources and Housing,Leeds Building Services,Supplies and Services,Other Hired And Contracted Services,265,03/09/2019,1909-00662,0.00,1200.00,R,Alfred Bagnall & Sons (Leeds) Ltd,No
Http://opendatacommunities.org/id/metropolitan-district-council/leeds,Leeds City Council,30/09/2019,Resources and Housing,Leeds Building Services,Supplies and Services,Other Hired And Contracted Services,265,03/09/2019,1909-00663,0.00,1200.00,R,Alfred Bagnall & Sons (Leeds) Ltd,No
Http://opendatacommunities.org/id/metropolitan-district-council/leeds,Leeds City Council,30/09/2019,Resources and Housing,Leeds Building Services,Supplies and Services,Other Hired And Contracted Services,265,05/09/2019,1909-00664,0.00,6222.00,R,Alfred Bagnall & Sons (Leeds) Ltd,No
Http://opendatacommunities.org/id/metropolitan-district-council/leeds,Leeds City Council,30/09/2019,Resources and Housing,Leeds Building Services,Supplies and Services,Other Hired And Contracted Services,265,05/09/2019,1909-00665,0.00,140.00,R,Alfred Bagnall & Sons (Leeds) Ltd,No
Http://opendatacommunities.org/id/metropolitan-district-council/leeds,Leeds City Council,30/09/2019,Resources and Housing,Leeds Building Services,Supplies and Services,Other Hired And Contracted Services,265,05/09/2019,1909-00666,0.00,140.00,R,Alfred Bagnall & Sons (Leeds) Ltd,No
Http://opendatacommunities.org/id/metropolitan-district-council/leeds,Leeds City Council,30/09/2019,City Development,Libraries  Arts & Heritage,Premises,Painting Interior,193,06/09/2019,1909-00667,0.00,690.00,R,Alfred Bagnall & Sons (Leeds) Ltd,No
Http://opendatacommunities.org/id/metropolitan-district-council/leeds,Leeds City Council,30/09/2019,Resources and Housing,Leeds Building Services,Supplies and Services,Other Hired And Contracted Services,265,10/09/2019,1909-00668,0.00,1000.00,R,Alfred Bagnall & Sons (Leeds) Ltd,No
Http://opendatacommunities.org/id/metropolitan-district-council/leeds,Leeds City Council,30/09/2019,Resources and Housing,Leeds Building Services,Supplies and Services,Other Hired And Contracted Services,265,13/09/2019,1909-00669,0.00,-800.00,R,Alfred Bagnall & Sons (Leeds) Ltd,No
Http://opendatacommunities.org/id/metropolitan-district-council/leeds,Leeds City Council,30/09/2019,Resources and Housing,Leeds Building Services,Supplies and Services,Other Hired And Contracted Services,265,13/09/2019,1909-00670,0.00,-800.00,R,Alfred Bagnall & Sons (Leeds) Ltd,No
Http://opendatacommunities.org/id/metropolitan-district-council/leeds,Leeds City Council,30/09/2019,Resources and Housing,Leeds Building Services,Supplies and Services,Other Hired And Contracted Services,265,13/09/2019,1909-00671,0.00,-40.00,R,Alfred Bagnall & Sons (Leeds) Ltd,No
Http://opendatacommunities.org/id/metropolitan-district-council/leeds,Leeds City Council,30/09/2019,Resources and Housing,Leeds Building Services,Supplies and Services,Other Hired And Contracted Services,265,13/09/2019,1909-00672,0.00,520.00,R,Alfred Bagnall & Sons (Leeds) Ltd,No
Http://opendatacommunities.org/id/metropolitan-district-council/leeds,Leeds City Council,30/09/2019,Resources and Housing,Leeds Building Services,Supplies and Services,Other Hired And Contracted Services,265,13/09/2019,1909-00673,0.00,4000.00,R,Alfred Bagnall & Sons (Leeds) Ltd,No
Http://opendatacommunities.org/id/metropolitan-district-council/leeds,Leeds City Council,30/09/2019,Resources and Housing,Leeds Building Services,Supplies and Services,Other Hired And Contracted Services,265,13/09/2019,1909-00674,0.00,2700.00,R,Alfred Bagnall & Sons (Leeds) Ltd,No
Http://opendatacommunities.org/id/metropolitan-district-council/leeds,Leeds City Council,30/09/2019,Resources and Housing,Leeds Building Services,Supplies and Services,Other Hired And Contracted Services,265,20/09/2019,1909-00675,0.00,1036.51,R,Alfred Bagnall & Sons (Leeds) Ltd,No
Http://opendatacommunities.org/id/metropolitan-district-council/leeds,Leeds City Council,30/09/2019,Resources and Housing,Leeds Building Services,Supplies and Services,Other Hired And Contracted Services,265,20/09/2019,1909-00676,0.00,3377.00,R,Alfred Bagnall & Sons (Leeds) Ltd,No
Http://opendatacommunities.org/id/metropolitan-district-council/leeds,Leeds City Council,30/09/2019,Resources and Housing,Leeds Building Services,Supplies and Services,Other Hired And Contracted Services,265,20/09/2019,1909-00677,0.00,200.00,R,Alfred Bagnall & Sons (Leeds) Ltd,No
Http://opendatacommunities.org/id/metropolitan-district-council/leeds,Leeds City Council,30/09/2019,Resources and Housing,Leeds Building Services,Supplies and Services,Other Hired And Contracted Services,265,20/09/2019,1909-00678,0.00,200.00,R,Alfred Bagnall & Sons (Leeds) Ltd,No
Http://opendatacommunities.org/id/metropolitan-district-council/leeds,Leeds City Council,30/09/2019,Resources and Housing,Leeds Building Services,Supplies and Services,Other Hired And Contracted Services,265,20/09/2019,1909-00679,0.00,200.00,R,Alfred Bagnall & Sons (Leeds) Ltd,No
Http://opendatacommunities.org/id/metropolitan-district-council/leeds,Leeds City Council,30/09/2019,Resources and Housing,Leeds Building Services,Supplies and Services,Other Hired And Contracted Services,265,24/09/2019,1909-00680,0.00,750.00,R,Alfred Bagnall & Sons (Leeds) Ltd,No
Http://opendatacommunities.org/id/metropolitan-district-council/leeds,Leeds City Council,30/09/2019,City Development,Recreation,Premises,Maintenance Of Buildings,101,25/09/2019,1909-00681,0.00,3270.00,R,Alfred Bagnall & Sons (Leeds) Ltd,No
Http://opendatacommunities.org/id/metropolitan-district-council/leeds,Leeds City Council,30/09/2019,Resources and Housing,Leeds Building Services,Supplies and Services,Other Hired And Contracted Services,265,27/09/2019,1909-00682,0.00,200.00,R,Alfred Bagnall & Sons (Leeds) Ltd,No
Http://opendatacommunities.org/id/metropolitan-district-council/leeds,Leeds City Council,30/09/2019,Resources and Housing,Leeds Building Services,Supplies and Services,Other Hired And Contracted Services,265,27/09/2019,1909-00683,0.00,200.00,R,Alfred Bagnall & Sons (Leeds) Ltd,No
Http://opendatacommunities.org/id/metropolitan-district-council/leeds,Leeds City Council,30/09/2019,Resources and Housing,Leeds Building Services,Supplies and Services,Other Hired And Contracted Services,265,27/09/2019,1909-00684,0.00,200.00,R,Alfred Bagnall & Sons (Leeds) Ltd,No
Http://opendatacommunities.org/id/metropolitan-district-council/leeds,Leeds City Council,30/09/2019,Resources and Housing,Leeds Building Services,Supplies and Services,Other Hired And Contracted Services,265,27/09/2019,1909-00685,0.00,200.00,R,Alfred Bagnall & Sons (Leeds) Ltd,No
Http://opendatacommunities.org/id/metropolitan-district-council/leeds,Leeds City Council,30/09/2019,Resources and Housing,Leeds Building Services,Supplies and Services,Other Hired And Contracted Services,265,27/09/2019,1909-00686,0.00,200.00,R,Alfred Bagnall & Sons (Leeds) Ltd,No
Http://opendatacommunities.org/id/metropolitan-district-council/leeds,Leeds City Council,30/09/2019,Resources and Housing,Leeds Building Services,Supplies and Services,Other Hired And Contracted Services,265,27/09/2019,1909-00687,0.00,200.00,R,Alfred Bagnall & Sons (Leeds) Ltd,No
Http://opendatacommunities.org/id/metropolitan-district-council/leeds,Leeds City Council,30/09/2019,Resources and Housing,Leeds Building Services,Supplies and Services,Other Hired And Contracted Services,265,27/09/2019,1909-00688,0.00,200.00,R,Alfred Bagnall & Sons (Leeds) Ltd,No
Http://opendatacommunities.org/id/metropolitan-district-council/leeds,Leeds City Council,30/09/2019,Resources and Housing,Leeds Building Services,Supplies and Services,Other Hired And Contracted Services,265,27/09/2019,1909-00689,0.00,1200.00,R,Alfred Bagnall & Sons (Leeds) Ltd,No
Http://opendatacommunities.org/id/metropolitan-district-council/leeds,Leeds City Council,30/09/2019,Resources and Housing,Leeds Building Services,Supplies and Services,Other Hired And Contracted Services,265,27/09/2019,1909-00690,0.00,1200.00,R,Alfred Bagnall & Sons (Leeds) Ltd,No
Http://opendatacommunities.org/id/metropolitan-district-council/leeds,Leeds City Council,30/09/2019,Resources and Housing,Leeds Building Services,Supplies and Services,Other Hired And Contracted Services,265,27/09/2019,1909-00691,0.00,670.00,R,Alfred Bagnall & Sons (Leeds) Ltd,No
Http://opendatacommunities.org/id/metropolitan-district-council/leeds,Leeds City Council,30/09/2019,Resources and Housing,Leeds Building Services,Supplies and Services,Other Hired And Contracted Services,265,27/09/2019,1909-00692,0.00,1200.00,R,Alfred Bagnall & Sons (Leeds) Ltd,No
Http://opendatacommunities.org/id/metropolitan-district-council/leeds,Leeds City Council,30/09/2019,Resources and Housing,Leeds Building Services,Supplies and Services,Other Hired And Contracted Services,265,27/09/2019,1909-00693,0.00,1200.00,R,Alfred Bagnall & Sons (Leeds) Ltd,No
Http://opendatacommunities.org/id/metropolitan-district-council/leeds,Leeds City Council,30/09/2019,Resources and Housing,Leeds Building Services,Supplies and Services,Other Hired And Contracted Services,265,27/09/2019,1909-00694,0.00,1200.00,R,Alfred Bagnall & Sons (Leeds) Ltd,No
Http://opendatacommunities.org/id/metropolitan-district-council/leeds,Leeds City Council,30/09/2019,Communities and Environment,Customer Access,Supplies and Services,Bought In Professional Services,277,05/09/2019,1909-00695,0.00,18.00,R,Ali Pourakaberian,No
Http://opendatacommunities.org/id/metropolitan-district-council/leeds,Leeds City Council,30/09/2019,Communities and Environment,Customer Access,Supplies and Services,Bought In Professional Services,277,05/09/2019,1909-00696,0.00,22.50,R,Ali Pourakaberian,No
Http://opendatacommunities.org/id/metropolitan-district-council/leeds,Leeds City Council,30/09/2019,Communities and Environment,Customer Access,Supplies and Services,Bought In Professional Services,277,05/09/2019,1909-00697,0.00,18.00,R,Ali Pourakaberian,No
Http://opendatacommunities.org/id/metropolitan-district-council/leeds,Leeds City Council,30/09/2019,Communities and Environment,Customer Access,Supplies and Services,Bought In Professional Services,277,05/09/2019,1909-00698,0.00,45.00,R,Ali Pourakaberian,No
Http://opendatacommunities.org/id/metropolitan-district-council/leeds,Leeds City Council,30/09/2019,Communities and Environment,Customer Access,Supplies and Services,Bought In Professional Services,277,13/09/2019,1909-00699,0.00,18.00,R,Ali Pourakaberian,No
Http://opendatacommunities.org/id/metropolitan-district-council/leeds,Leeds City Council,30/09/2019,Communities and Environment,Customer Access,Supplies and Services,Bought In Professional Services,277,13/09/2019,1909-00700,0.00,18.00,R,Ali Pourakaberian,No
Http://opendatacommunities.org/id/metropolitan-district-council/leeds,Leeds City Council,30/09/2019,Communities and Environment,Customer Access,Supplies and Services,Bought In Professional Services,277,19/09/2019,1909-00701,0.00,18.00,R,Ali Pourakaberian,No
Http://opendatacommunities.org/id/metropolitan-district-council/leeds,Leeds City Council,30/09/2019,Communities and Environment,Customer Access,Supplies and Services,Bought In Professional Services,277,19/09/2019,1909-00702,0.00,28.50,R,Ali Pourakaberian,No
Http://opendatacommunities.org/id/metropolitan-district-council/leeds,Leeds City Council,30/09/2019,Communities and Environment,Customer Access,Supplies and Services,Bought In Professional Services,277,19/09/2019,1909-00703,0.00,18.00,R,Ali Pourakaberian,No
Http://opendatacommunities.org/id/metropolitan-district-council/leeds,Leeds City Council,30/09/2019,Communities and Environment,Customer Access,Supplies and Services,Bought In Professional Services,277,26/09/2019,1909-00704,0.00,18.00,R,Ali Pourakaberian,No
Http://opendatacommunities.org/id/metropolitan-district-council/leeds,Leeds City Council,30/09/2019,Communities and Environment,Customer Access,Supplies and Services,Bought In Professional Services,277,26/09/2019,1909-00705,0.00,27.00,R,Ali Pourakaberian,No
Http://opendatacommunities.org/id/metropolitan-district-council/leeds,Leeds City Council,30/09/2019,Communities and Environment,Customer Access,Supplies and Services,Bought In Professional Services,277,26/09/2019,1909-00706,0.00,18.00,R,Ali Pourakaberian,No
Http://opendatacommunities.org/id/metropolitan-district-council/leeds,Leeds City Council,30/09/2019,City Development,Libraries  Arts & Heritage,Supplies and Services,Bought In Professional Services,277,06/09/2019,1909-00707,0.00,1870.00,R,Alice Mary Duggan,No
Http://opendatacommunities.org/id/metropolitan-district-council/leeds,Leeds City Council,30/09/2019,City Development,Recreation,Income,Sporting & Other Recreational Fees,928,18/09/2019,1909-00708,0.00,120.00,R,REDACTED PERSONAL DATA,No
Http://opendatacommunities.org/id/metropolitan-district-council/leeds,Leeds City Council,30/09/2019,Children and Families,Social Care,Third Party Payments,Services Rendered By Other Organisations,511,06/09/2019,1909-00709,0.00,225.75,R,REDACTED PERSONAL DATA,No
Http://opendatacommunities.org/id/metropolitan-district-council/leeds,Leeds City Council,30/09/2019,Adults and Health,Social Services Support Services,Supplies and Services,Bought In Professional Services,277,24/09/2019,1909-00710,0.00,250.00,R,REDACTED PERSONAL DATA,No
Http://opendatacommunities.org/id/metropolitan-district-council/leeds,Leeds City Council,30/09/2019,Strategic Landlord,Property and Contracts,Support Services,Legal Disbursements,411,12/09/2019,1909-00711,0.00,984.32,R,Alison Law Solicitors,No
Http://opendatacommunities.org/id/metropolitan-district-council/leeds,Leeds City Council,30/09/2019,Resources and Housing,Leeds Building Services,Supplies and Services,Other Hired And Contracted Services,265,27/09/2019,1909-00712,0.00,975.00,R,All Clear Solutions Ltd,No
Http://opendatacommunities.org/id/metropolitan-district-council/leeds,Leeds City Council,30/09/2019,Children and Families,Learning,Supplies and Services,Other Hired And Contracted Services,265,05/09/2019,1909-00713,0.00,96.00,R,All Hallows Church,No
Http://opendatacommunities.org/id/metropolitan-district-council/leeds,Leeds City Council,30/09/2019,Children and Families,Learning,Supplies and Services,Other Hired And Contracted Services,265,05/09/2019,1909-00714,0.00,224.00,R,All Hallows Church,No
Http://opendatacommunities.org/id/metropolitan-district-council/leeds,Leeds City Council,30/09/2019,Adults and Health,Services For Adults Under 65 Mental/Dis,Third Party Payments,Home Care,568,10/09/2019,1909-00715,0.00,564.00,R,All Seasons Home Care,No
Http://opendatacommunities.org/id/metropolitan-district-council/leeds,Leeds City Council,30/09/2019,Children and Families,Social Care,Third Party Payments,Services Rendered By Other Organisations,511,04/09/2019,1909-00716,0.00,819.00,R,All Stars Childcare,No
Http://opendatacommunities.org/id/metropolitan-district-council/leeds,Leeds City Council,30/09/2019,Children and Families,Social Care,Third Party Payments,Services Rendered By Other Organisations,511,06/09/2019,1909-00717,0.00,9180.50,R,All Stars Childcare,No
Http://opendatacommunities.org/id/metropolitan-district-council/leeds,Leeds City Council as Accountable Body,30/09/2019,Social Services Pooled Budgets,Jcs For People With Learning Disabilitie,Third Party Payments,Sheltered Accommodation,569,18/09/2019,1909-00718,0.00,11950.76,R,Allerton Avenue,No
Http://opendatacommunities.org/id/metropolitan-district-council/leeds,Leeds City Council,30/09/2019,Strategic Accounts,Miscellaneous,Supplies and Services,Non-Recurring Grants,227,23/09/2019,1909-00719,0.00,20.00,R,Allerton Bywater Community Partnership,No
Http://opendatacommunities.org/id/metropolitan-district-council/leeds,Leeds City Council,30/09/2019,Adults and Health,Services For Older People - 65 And Over,Third Party Payments,Nursing Care Dementia,574,18/09/2019,1909-00720,0.00,2224.00,R,Allerton Park N H,No
Http://opendatacommunities.org/id/metropolitan-district-council/leeds,Leeds City Council,30/09/2019,Resources and Housing,Strategic Housing Partnerships,Capital,Construction,3,05/09/2019,1909-00721,0.00,7070.00,C,Allerton Paving,No
Http://opendatacommunities.org/id/metropolitan-district-council/leeds,Leeds City Council,30/09/2019,Resources and Housing,Finance,Supplies and Services,Bank Charges,263,02/09/2019,1909-00722,0.00,-54.40,R,Alliance & Leicester Commercial Bank,No
Http://opendatacommunities.org/id/metropolitan-district-council/leeds,Leeds City Council,30/09/2019,Resources and Housing,Finance,Supplies and Services,Bank Charges,263,05/09/2019,1909-00723,0.00,100.14,R,Alliance & Leicester Commercial Bank,No
Http://opendatacommunities.org/id/metropolitan-district-council/leeds,Leeds City Council,30/09/2019,Resources and Housing,Finance,Supplies and Services,Bank Charges,263,05/09/2019,1909-00724,0.00,87.98,R,Alliance & Leicester Commercial Bank,No
Http://opendatacommunities.org/id/metropolitan-district-council/leeds,Leeds City Council,30/09/2019,Resources and Housing,Commercial Services,Supplies and Services,Crockery  Cutlery & Utensils,221,03/09/2019,1909-00725,0.00,226.92,R,Alliance Disposables Ltd,No
Http://opendatacommunities.org/id/metropolitan-district-council/leeds,Leeds City Council,30/09/2019,Resources and Housing,Commercial Services,Transport,Vehicle Spares,345,02/09/2019,1909-00726,0.00,8.44,R,Alliance Electronics Ltd,No
Http://opendatacommunities.org/id/metropolitan-district-council/leeds,Leeds City Council,30/09/2019,City Development,Recreation,Employees,Training & Development,70,11/09/2019,1909-00727,0.00,937.50,R,Alliance Leisure Service Ltd,No
Http://opendatacommunities.org/id/metropolitan-district-council/leeds,Leeds City Council,30/09/2019,City Development,Highways,Supplies and Services,Other Hired And Contracted Services,265,02/09/2019,1909-00728,0.00,16601.48,R,Allied Exploration & Geotechnics Ltd,No
Http://opendatacommunities.org/id/metropolitan-district-council/leeds,Leeds City Council,30/09/2019,City Development,Highways,Capital,Other Costs,7,10/09/2019,1909-00729,0.00,1946.80,C,Allied Exploration & Geotechnics Ltd,No
Http://opendatacommunities.org/id/metropolitan-district-council/leeds,Leeds City Council,30/09/2019,City Development,Highways,Supplies and Services,Other Hired And Contracted Services,265,10/09/2019,1909-00730,0.00,3187.78,R,Allied Exploration & Geotechnics Ltd,No
Http://opendatacommunities.org/id/metropolitan-district-council/leeds,Leeds City Council,30/09/2019,Children and Families,Social Care,Third Party Payments,Services Rendered By Voluntary Sector,505,03/09/2019,1909-00731,0.00,684.00,R,Allied Healthcare,No
Http://opendatacommunities.org/id/metropolitan-district-council/leeds,Leeds City Council as Accountable Body,30/09/2019,Social Services Pooled Budgets,Jcs For People With Learning Disabilitie,Third Party Payments,Home Care,568,03/09/2019,1909-00732,0.00,222.40,R,Allied Healthcare,No
Http://opendatacommunities.org/id/metropolitan-district-council/leeds,Leeds City Council as Accountable Body,30/09/2019,Social Services Pooled Budgets,Jcs For People With Learning Disabilitie,Third Party Payments,Home Care,568,03/09/2019,1909-00733,0.00,987.92,R,Allied Healthcare,No
Http://opendatacommunities.org/id/metropolitan-district-council/leeds,Leeds City Council,30/09/2019,Adults and Health,Services For Adults Under 65 Mental/Dis,Third Party Payments,Home Care,568,04/09/2019,1909-00734,0.00,495.18,R,Allied Healthcare,No
Http://opendatacommunities.org/id/metropolitan-district-council/leeds,Leeds City Council,30/09/2019,Adults and Health,Services For Older People - 65 And Over,Third Party Payments,Home Care,568,04/09/2019,1909-00735,0.00,8164.83,R,Allied Healthcare,No
Http://opendatacommunities.org/id/metropolitan-district-council/leeds,Leeds City Council,30/09/2019,Adults and Health,Services For Older People Under 65 P/Dis,Third Party Payments,Home Care,568,04/09/2019,1909-00736,0.00,1174.60,R,Allied Healthcare,No
Http://opendatacommunities.org/id/metropolitan-district-council/leeds,Leeds City Council as Accountable Body,30/09/2019,Social Services Pooled Budgets,Jcs For People With Learning Disabilitie,Third Party Payments,Nursing Home - Physical Disabl,575,04/09/2019,1909-00737,0.00,4131.56,R,Allied Healthcare,No
Http://opendatacommunities.org/id/metropolitan-district-council/leeds,Leeds City Council as Accountable Body,30/09/2019,Social Services Pooled Budgets,Jcs For People With Learning Disabilitie,Third Party Payments,Home Care,568,05/09/2019,1909-00738,0.00,15100.40,R,Allied Healthcare,No
Http://opendatacommunities.org/id/metropolitan-district-council/leeds,Leeds City Council,30/09/2019,Adults and Health,Other Generic Services,Third Party Payments,Home Care,568,17/09/2019,1909-00739,0.00,3124.71,R,Allied Healthcare,No
Http://opendatacommunities.org/id/metropolitan-district-council/leeds,Leeds City Council,30/09/2019,Adults and Health,Other Generic Services,Third Party Payments,Home Care,568,17/09/2019,1909-00740,0.00,5427.90,R,Allied Healthcare,No
Http://opendatacommunities.org/id/metropolitan-district-council/leeds,Leeds City Council,30/09/2019,Adults and Health,Services For Adults Under 65 Mental/Dis,Third Party Payments,Home Care,568,17/09/2019,1909-00741,0.00,545.02,R,Allied Healthcare,No
Http://opendatacommunities.org/id/metropolitan-district-council/leeds,Leeds City Council,30/09/2019,Adults and Health,Services For Older People - 65 And Over,Third Party Payments,Home Care,568,17/09/2019,1909-00742,0.00,21779.91,R,Allied Healthcare,No
Http://opendatacommunities.org/id/metropolitan-district-council/leeds,Leeds City Council,30/09/2019,Adults and Health,Services For Older People - 65 And Over,Third Party Payments,Home Care,568,17/09/2019,1909-00743,0.00,8140.80,R,Allied Healthcare,No
Http://opendatacommunities.org/id/metropolitan-district-council/leeds,Leeds City Council,30/09/2019,Adults and Health,Services For Older People - 65 And Over,Third Party Payments,Home Care,568,17/09/2019,1909-00744,0.00,12207.10,R,Allied Healthcare,No
Http://opendatacommunities.org/id/metropolitan-district-council/leeds,Leeds City Council,30/09/2019,Adults and Health,Services For Older People - 65 And Over,Third Party Payments,Home Care,568,17/09/2019,1909-00745,0.00,2261.75,R,Allied Healthcare,No
Http://opendatacommunities.org/id/metropolitan-district-council/leeds,Leeds City Council,30/09/2019,Adults and Health,Services For Older People - 65 And Over,Third Party Payments,HCAIT Other,577,17/09/2019,1909-00746,0.00,904.96,R,Allied Healthcare,No
Http://opendatacommunities.org/id/metropolitan-district-council/leeds,Leeds City Council,30/09/2019,Adults and Health,Services For Older People Under 65 P/Dis,Third Party Payments,Home Care,568,17/09/2019,1909-00747,0.00,4750.77,R,Allied Healthcare,No
Http://opendatacommunities.org/id/metropolitan-district-council/leeds,Leeds City Council,30/09/2019,Adults and Health,Services For Older People Under 65 P/Dis,Third Party Payments,Home Care,568,17/09/2019,1909-00748,0.00,1174.60,R,Allied Healthcare,No
Http://opendatacommunities.org/id/metropolitan-district-council/leeds,Leeds City Council,30/09/2019,Adults and Health,Services For Older People Under 65 P/Dis,Third Party Payments,Home Care,568,17/09/2019,1909-00749,0.00,2395.69,R,Allied Healthcare,No
Http://opendatacommunities.org/id/metropolitan-district-council/leeds,Leeds City Council as Accountable Body,30/09/2019,Social Services Pooled Budgets,Jcs For People With Learning Disabilitie,Third Party Payments,Home Care,568,17/09/2019,1909-00750,0.00,150.52,R,Allied Healthcare,No
Http://opendatacommunities.org/id/metropolitan-district-council/leeds,Leeds City Council as Accountable Body,30/09/2019,Social Services Pooled Budgets,Jcs For People With Learning Disabilitie,Third Party Payments,Nursing Home - Physical Disabl,575,17/09/2019,1909-00751,0.00,5769.81,R,Allied Healthcare,No
Http://opendatacommunities.org/id/metropolitan-district-council/leeds,Leeds City Council as Accountable Body,30/09/2019,Social Services Pooled Budgets,Jcs For People With Learning Disabilitie,Third Party Payments,Home Care,568,25/09/2019,1909-00752,0.00,5468.75,R,Allied Healthcare,No
Http://opendatacommunities.org/id/metropolitan-district-council/leeds,Leeds City Council as Accountable Body,30/09/2019,Social Services Pooled Budgets,Jcs For People With Learning Disabilitie,Third Party Payments,Home Care,568,25/09/2019,1909-00753,0.00,13877.50,R,Allied Healthcare,No
Http://opendatacommunities.org/id/metropolitan-district-council/leeds,Leeds City Council as Accountable Body,30/09/2019,Social Services Pooled Budgets,Jcs For People With Learning Disabilitie,Third Party Payments,Home Care,568,25/09/2019,1909-00754,0.00,14192.50,R,Allied Healthcare,No
Http://opendatacommunities.org/id/metropolitan-district-council/leeds,Leeds City Council,30/09/2019,Adults and Health,Other Generic Services,Third Party Payments,Home Care,568,26/09/2019,1909-00755,0.00,3916.89,R,Allied Healthcare,No
Http://opendatacommunities.org/id/metropolitan-district-council/leeds,Leeds City Council,30/09/2019,Adults and Health,Other Generic Services,Third Party Payments,Home Care,568,26/09/2019,1909-00756,0.00,6909.61,R,Allied Healthcare,No
Http://opendatacommunities.org/id/metropolitan-district-council/leeds,Leeds City Council as Accountable Body,30/09/2019,Social Services Pooled Budgets,Jcs For People With Learning Disabilitie,Third Party Payments,Home Care,568,26/09/2019,1909-00757,0.00,166.81,R,Allied Healthcare,No
Http://opendatacommunities.org/id/metropolitan-district-council/leeds,Leeds City Council as Accountable Body,30/09/2019,Social Services Pooled Budgets,Jcs For People With Learning Disabilitie,Third Party Payments,Home Care,568,27/09/2019,1909-00758,0.00,13991.25,R,Allied Healthcare,No
Http://opendatacommunities.org/id/metropolitan-district-council/leeds,Leeds City Council,30/09/2019,Children and Families,Social Care,Third Party Payments,Services Rendered By Other Organisations,511,06/09/2019,1909-00759,0.00,209.63,R,REDACTED PERSONAL DATA,No
Http://opendatacommunities.org/id/metropolitan-district-council/leeds,Leeds City Council,30/09/2019,Resources and Housing,Strategic Housing Partnership & Support  ,Supplies and Services,Other Hired And Contracted Services,265,14/08/2019,1909-00760,0.00,93.87,R,Allpay *robin Hood Energy,Yes
Http://opendatacommunities.org/id/metropolitan-district-council/leeds,Leeds City Council,30/09/2019,Children and Families,Learning,Transport,Fuel (Non LCC Supplies),321,09/09/2019,1909-00761,0.00,559.74,R,Allstar Business Solutions Ltd,No
Http://opendatacommunities.org/id/metropolitan-district-council/leeds,Leeds City Council,30/09/2019,City Development,Highways,Transport,Fuel (Non LCC Supplies),321,09/09/2019,1909-00762,0.00,289.33,R,Allstar Business Solutions Ltd,No
Http://opendatacommunities.org/id/metropolitan-district-council/leeds,Leeds City Council,30/09/2019,Communities and Environment,Parks and Countryside,Transport,Fuel (Non LCC Supplies),321,09/09/2019,1909-00763,0.00,681.23,R,Allstar Business Solutions Ltd,No
Http://opendatacommunities.org/id/metropolitan-district-council/leeds,Leeds City Council,30/09/2019,Adults and Health,Services For Older People Under 65 P/Dis,Third Party Payments,Residential,580,18/09/2019,1909-00764,0.00,3346.44,R,Alne Hall,No
Http://opendatacommunities.org/id/metropolitan-district-council/leeds,Leeds City Council,30/09/2019,Children and Families,Social Care  ,Supplies and Services,Food & Drink,231,04/08/2019,1909-00765,0.00,17.20,R,Alpamare Uk,Yes
